Workbook

Sheet BinResultsHPEFT1Y
A2: HP EFT / BH ExFT (°C) | B2: Count | C2: ODA Temperature (°C) | D2: EL 007 (kW) | E2: GHE EFT (°C) | F2: GHE ExFT (°C) | G2: Clg Provided (kW) | H2: Bldg Htg Provided (kW) | I2: EL 003 (kW) | J2: CP Energy (kW) | K2: DHW Provided by HP (kW) | L2: DHW by LPS (kW) | M2: Useful Bldg Htg by LPS (kW) | N2: Bldg Htg Uncertainty (kW) | O2: Bldg Clg Uncertainty (kW) | P2: DHW Htg by HP Uncertainty (kW) | Q2: Bldg + DHW Htg by HP Uncertainty (kW) | R2: EL007+EL011 Uncertainty (kW) | S2: EL011 Uncertainty (kW) | T2: LPS DHW Uncertainty (kW) | U2: CP Power for Heat Extraction from GHE (kW) | V2: CP Power for Heat Rejection to GHE (kW) | W2: Heat Extraction by GHE (kW) | X2: Heat Rejection to GHE (kW) | Y2: EL007 Uncertainty (kW) | Z2: LPS Electricity going to bldg heat (kW) | AA2: Alt Calc GHE Heat Extraction (kW) | AB2: Alt Calc GHE Heat Extraction (kW) | AC2: HtgFrac | AD2: COP H4 | AE2: COP H3 | AF2: COP H2 | AG2: COP C3 | AH2: COP C2 | AI2: Overall (H+C) COP | AJ2: Not used | AK2: Not used | AL2: Not used | AM2: Not used | AN2: Error COP H4 | AO2: Error COP H3 | AP2: Error COP H2 | AQ2: Error COP H3b | AR2: Error COP C2 | AS2: BPF0, heating | AT2: BPF0, cooling | AU2: BPF1*, heating | AV2: BPF2, heating | AW2: BPF3+, heating | AX2: BPF4+, heating | AY2: BPF2, cooling | AZ2: BPF3, cooling | BA2: BPF4, cooling | BB2: Error BPF0, heating | BC2: Error BPF0, cooling | BD2: Error BPF1*, heating | BE2: Error BPF2, heating | BF2: Error BPF3+, heating | BG2: Error BPF4+, heating | BH2: Error BPF2, cooling | BI2: Error BPF3, cooling | BJ2: Error BPF4, cooling | BK2: Htg & Clg Provided Boundary 2 | BL2: Htg & Clg Provided Boundary 4+ | BM2: Electricity Used Boundary 2 | BN2: Electricity Used Boundary 4+ | BO2: BPFHC2 | BP2: BPFHC4+ | BQ2: Error BPFHC2 | BR2: Error BPFHC4+
A3: 3 | B3: 2 | C3: 7.949944452 | D3: 3.518829063 | E3: 11.41754017 | F3: 3.133985025 | G3: 0 | H3: 0 | I3: 8.970688685 | J3: 0 | K3: 1.894712779 | L3: 0.2046235738 | M3: 0 | N3: 0 | O3: 0 | P3: 0.1453181864 | Q3: 0.1453181864 | R3: 0.1933705183 | S3: 0.19 | T3: 0.05877364693 | U3: 0 | V3: 0 | W3: 0 | X3: 0 | Y3: 0.03518829063 | Z3: 2.795376426 | AA3: 1.375883715 | AB3: 0 | AC3: 1 | AD3: 0.1680878633 | AE3: 0.5966008336 | AF3: 3.651901777 | AG3: 0 | AH3: 0 | AI3: 0.5966008336 | AJ3: 0 | AK3: 0 | AL3: 0 | AM3: 0 | AN3: 0.01192270349 | AO3: 0.05272881631 | AP3: 1.518394834 | AQ3: 0.0553109882 | AR3: 0 | AS3: 0 | AT3: 0 | AU3: 3.651901777 | AV3: 3.651901777 | AW3: 0.5966008336 | AX3: 0.1680878633 | AY3: 0 | AZ3: 0 | BA3: 0 | BB3: 0 | BC3: 0 | BD3: 1.514163205 | BE3: 1.518394834 | BF3: 0.05272881631 | BG3: 0.01192270349 | BH3: 0 | BI3: 0 | BJ3: 0 | BK3: 1.894712779 | BL3: 2.099336352 | BM3: 0.5188290633 | BN3: 12.48951775 | BO3: 3.651901777 | BP3: 0.1680878633 | BQ3: 0.6339116353 | BR3: 0.4374910289
A4: 4 | B4: 1 | C4: 8.1 | D4: 2.730707342 | E4: 17.11909394 | F4: 3.761016949 | G4: 0 | H4: 0 | I4: 7.402882684 | J4: 0 | K4: 1.598846254 | L4: 0.1726708334 | M4: 0 | N4: 0 | O4: 0 | P4: 0.1226262052 | Q4: 0.1226262052 | R4: 0.191952276 | S4: 0.19 | T4: 0.04959592098 | U4: 0 | V4: 0 | W4: 0 | X4: 0 | Y4: 0.02730707342 | Z4: 2.730707342 | AA4: 1.771517088 | AB4: 0 | AC4: 1 | AD4: 0.1748163369 | AE4: 0.6487392699 | AF4: 0 | AG4: 0 | AH4: 0 | AI4: 0.6487392699 | AJ4: 0 | AK4: 0 | AL4: 0 | AM4: 0 | AN4: 0.01254586419 | AO4: 0.0640013151 | AP4: 0 | AQ4: 0.06652847067 | AR4: 0 | AS4: 0 | AT4: 0 | AU4: 0 | AV4: 0 | AW4: 0.6487392699 | AX4: 0.1748163369 | AY4: 0 | AZ4: 0 | BA4: 0 | BB4: 0 | BC4: 0 | BD4: 0 | BE4: 0 | BF4: 0.0640013151 | BG4: 0.01254586419 | BH4: 0 | BI4: 0 | BJ4: 0 | BK4: 1.598846254 | BL4: 1.771517088 | BM4: -0.1726708334 | BN4: 10.13359003 | BO4: 0 | BP4: 0.1748163369 | BQ4: 0 | BR4: 0
A5: 4.5 | B5: 1 | C5: 7.8 | D5: 3.199088382 | E5: -0.7007504171 | F5: 4.656336854 | G5: 0 | H5: 0 | I5: 8.993055874 | J5: 4.003624807e-07 | K5: 1.097300937 | L5: 0.1185053702 | M5: 0 | N5: 0 | O5: 0 | P5: 0.08415934274 | Q5: 0.08415934274 | R5: 0.1926743798 | S5: 0.19 | T5: 0.03403807616 | U5: 4.003624807e-07 | V5: 0 | W5: 1.245634605 | X5: 0 | Y5: 0.03199088382 | Z5: 2.88149463 | AA5: 0.8982121543 | AB5: 0 | AC5: 1 | AD5: 0.09972046605 | AE5: 0.3800476917 | AF5: 5.511616083 | AG5: 0 | AH5: 0 | AI5: 0.3800476917 | AJ5: 0 | AK5: 0 | AL5: 0 | AM5: 0 | AN5: 0.007080355526 | AO5: 0.03487120896 | AP5: 5.70411021 | AQ5: 0.03645832271 | AR5: 0 | AS5: 3111267.078 | AT5: 0 | AU5: 5.511627166 | AV5: 5.511616083 | AW5: 0.3800476917 | AX5: 0.09972046605 | AY5: 0 | AZ5: 0 | BA5: 0 | BB5: 0 | BC5: 0 | BD5: 5.70157027 | BE5: 5.70411021 | BF5: 0.03487120896 | BG5: 0.007080355526 | BH5: 0 | BI5: 0 | BJ5: 0 | BK5: 1.097300937 | BL5: 1.215806307 | BM5: 0.1990887828 | BN5: 12.19214426 | BO5: 5.511616083 | BP5: 0.09972046605 | BQ5: 2.208018327 | BR5: 0.6603219268
A6: 5 | B6: 1 | C6: 7.8 | D6: 4.248867641 | E6: -0.0205113953 | F6: 4.982907171 | G6: 0 | H6: 0 | I6: 8.98475542 | J6: 0 | K6: 2.63895875 | L6: 0.2850000151 | M6: 0 | N6: 0 | O6: 0 | P6: 0.2023993842 | Q6: 0.2023993842 | R6: 0.1946928032 | S6: 0.19 | T6: 0.08186002206 | U6: 0 | V6: 0 | W6: 0 | X6: 0 | Y6: 0.04248867641 | Z6: 2.714999985 | AA6: 1.39009111 | AB6: 0 | AC6: 1 | AD6: 0.2209492255 | AE6: 0.688173653 | AF6: 2.113081214 | AG6: 0 | AH6: 0 | AI6: 0.688173653 | AJ6: 0 | AK6: 0 | AL6: 0 | AM6: 0 | AN6: 0.01563594905 | AO6: 0.05712765648 | AP6: 0.411617136 | AQ6: 0.06028897102 | AR6: 0 | AS6: 0 | AT6: 0 | AU6: 2.113081214 | AV6: 2.113081214 | AW6: 0.688173653 | AX6: 0.2209492255 | AY6: 0 | AZ6: 0 | BA6: 0 | BB6: 0 | BC6: 0 | BD6: 0.4063646214 | BE6: 0.411617136 | BF6: 0.05712765648 | BG6: 0.01563594905 | BH6: 0 | BI6: 0 | BJ6: 0 | BK6: 2.63895875 | BL6: 2.923958765 | BM6: 1.248867641 | BN6: 13.23362306 | BO6: 2.113081214 | BP6: 0.2209492255 | BQ6: 0.2162371144 | BR6: 0.2531156411
A7: 5.5 | B7: 2 | C7: 7.999986107 | D7: 3.022210205 | E7: 9.418464854 | F7: 5.385692363 | G7: 0 | H7: 0 | I7: 7.524827303 | J7: 0 | K7: 1.087841917 | L7: 0.117483823 | M7: 0 | N7: 0 | O7: 0 | P7: 0.08343386724 | Q7: 0.08343386724 | R7: 0.1927470848 | S7: 0.19 | T7: 0.03374465906 | U7: 0 | V7: 0 | W7: 0 | X7: 0 | Y7: 0.03022210205 | Z7: 2.355991371 | AA7: 0.5871468241 | AB7: 0.04803991877 | AC7: 1 | AD7: 0.1142809759 | AE7: 0.3988226026 | AF7: 1.982453997 | AG7: 0 | AH7: 0 | AI7: 0.3988226026 | AJ7: 0 | AK7: 0 | AL7: 0 | AM7: 0 | AN7: 0.008181691061 | AO7: 0.03753816275 | AP7: 0.7587942557 | AQ7: 0.03916354576 | AR7: 0 | AS7: 0 | AT7: 0 | AU7: 1.982453997 | AV7: 1.982453997 | AW7: 0.3988226026 | AX7: 0.1142809759 | AY7: 0 | AZ7: 0 | BA7: 0 | BB7: 0 | BC7: 0 | BD7: 0.7562982499 | BE7: 0.7587942557 | BF7: 0.03753816275 | BG7: 0.008181691061 | BH7: 0 | BI7: 0 | BJ7: 0 | BK7: 1.087841917 | BL7: 1.20532574 | BM7: 0.5487350113 | BN7: 10.54703751 | BO7: 1.982453997 | BP7: 0.1142809759 | BQ7: 0.3206828755 | BR7: 0.2374908637
A8: 6 | B8: 2 | C8: 10.25008336 | D8: 2.169094261 | E8: 13.47121044 | F8: 5.866671367 | G8: 0 | H8: 0 | I8: 7.092529389 | J8: 0 | K8: 0.4969981983 | L8: 0.06019336423 | M8: 0 | N8: 0 | O8: 0 | P8: 0.04084661387 | Q8: 0.04084661387 | R8: 0.1913191608 | S8: 0.19 | T8: 0.01728922759 | U8: 0 | V8: 0 | W8: 0 | X8: 0 | Y8: 0.02169094261 | Z8: 2.169094261 | AA8: 0.5571915625 | AB8: 0 | AC8: 1 | AD8: 0.06016132631 | AE8: 0.2568775238 | AF8: 0 | AG8: 0 | AH8: 0 | AI8: 0.2568775238 | AJ8: 0 | AK8: 0 | AL8: 0 | AM8: 0 | AN8: 0.004582060726 | AO8: 0.02946119486 | AP8: 0 | AQ8: 0.030520391 | AR8: 0 | AS8: 0 | AT8: 0 | AU8: 0 | AV8: 0 | AW8: 0.2568775238 | AX8: 0.06016132631 | AY8: 0 | AZ8: 0 | BA8: 0 | BB8: 0 | BC8: 0 | BD8: 0 | BE8: 0 | BF8: 0.02946119486 | BG8: 0.004582060726 | BH8: 0 | BI8: 0 | BJ8: 0 | BK8: 0.4969981983 | BL8: 0.5571915625 | BM8: -0.06019336423 | BN8: 9.261623649 | BO8: 0 | BP8: 0.06016132631 | BQ8: 0 | BR8: 0
A9: 6.5 | B9: 36 | C9: -7.041186146 | D9: 30.48433796 | E9: 5.278085006 | F9: 6.640245319 | G9: 8.043670254 | H9: 104.7534158 | I9: 14.99377017 | J9: 1.058918631 | K9: 4.294033754 | L9: 0.4362792098 | M9: 2.403560373 | N9: 5.263185215 | O9: 0.442401864 | P9: 0.3182975573 | Q9: 5.293123099 | R9: 0.3562764585 | S9: 0.19 | T9: 0.1253116626 | U9: 0.9951845105 | V9: 0.06373412046 | W9: 52.57427692 | X9: 0.4341467112 | Y9: 0.3048433796 | Z9: 2.560837962 | AA9: 73.38800632 | AB9: 0.9303664208 | AC9: 0.931304182 | AD9: 2.517257028 | AE9: 3.555305503 | AF9: 3.829801301 | AG9: 7.809318037 | AH9: 110.5761259 | AI9: 3.802110891 | AJ9: 0 | AK9: 0 | AL9: 0 | AM9: 0 | AN9: 0.1207827455 | AO9: 0.1729420081 | AP9: 0.1930442928 | AQ9: 0.172987842 | AR9: 20.75167312 | AS9: 52.82867284 | AT9: 6.811841257 | AU9: 3.967205358 | AV9: 3.829801301 | AW9: 3.555305503 | AX9: 2.517257028 | AY9: 110.5761259 | AZ9: 110.5761259 | BA9: 7.809318037 | BB9: 0 | BC9: 0 | BD9: 0.2004446958 | BE9: 0.1930442928 | BF9: 0.1729420081 | BG9: 0.1207827455 | BH9: 20.75167312 | BI9: 20.75167312 | BJ9: 0.4407651187 | BK9: 117.0911198 | BL9: 119.9309594 | BM9: 28.54613942 | BN9: 45.47810813 | BO9: 4.101819798 | BP9: 2.637114083 | BQ9: 0.1872515292 | BR9: 0.201667721
A10: 7 | B10: 271 | C10: -6.521581914 | D10: 27.57337215 | E10: 5.332347866 | F10: 7.066200309 | G10: 7.555013474 | H10: 89.50567159 | I10: 14.02168824 | J10: 1.064724546 | K10: 3.121082756 | L10: 0.3174413062 | M10: 2.606379168 | N10: 4.495964429 | O10: 0.4155257411 | P10: 0.2314698293 | Q10: 4.510836518 | R10: 0.3278612581 | S10: 0.19 | T10: 0.0911780735 | U10: 1.015548845 | V10: 0.04917570127 | W10: 60.31582591 | X10: 0.09233735893 | Y10: 0.2757337215 | Z10: 2.669850261 | AA10: 59.97888031 | AB10: 0.5579445657 | AC10: 0.9245869419 | AD10: 2.357082704 | AE10: 3.345865797 | AF10: 3.622405292 | AG10: 7.144772163 | AH10: 94.09172368 | AI10: 3.600294719 | AJ10: 0 | AK10: 0 | AL10: 0 | AM10: 0 | AN10: 0.1128964399 | AO10: 0.1625582572 | AP10: 0.183378793 | AQ10: 0.1625896082 | AR10: 17.57006946 | AS10: 59.39234355 | AT10: 1.877702942 | AU10: 3.767446952 | AV10: 3.622405292 | AW10: 3.345865797 | AX10: 2.357082704 | AY10: 94.09172368 | AZ10: 94.09172368 | BA10: 7.144772163 | BB10: 0 | BC10: 0 | BD10: 0.191262501 | BE10: 0.183378793 | BF10: 0.1625582572 | BG10: 0.1128964399 | BH10: 17.57006946 | BI10: 17.57006946 | BJ10: 0.40471299 | BK10: 100.1817678 | BL10: 103.1055883 | BM10: 25.65080513 | BN10: 41.59506039 | BO10: 3.905599349 | BP10: 2.478794052 | BQ10: 0.1779388067 | BR10: 0.2001602261
A11: 7.5 | B11: 1041 | C11: -3.627339908 | D11: 22.30365235 | E11: 6.115487426 | F11: 7.550501461 | G11: 7.026815839 | H11: 69.55518685 | I11: 12.98705908 | J11: 1.017339829 | K11: 2.103728247 | L11: 0.2139511973 | M11: 2.77802092 | N11: 3.50553025 | O11: 0.3864748712 | P11: 0.1560129076 | Q11: 3.521106379 | R11: 0.2823454922 | S11: 0.19 | T11: 0.06145280281 | U11: 0.9428462727 | V11: 0.0744935563 | W11: 46.53446567 | X11: 0.1509039958 | Y11: 0.2230365235 | Z11: 2.784320449 | AA11: 44.93187086 | AB11: 0.6224921383 | AC11: 0.9106977116 | AD11: 2.187191242 | AE11: 3.213535635 | AF11: 3.541882977 | AG11: 6.058779777 | AH11: 77.34458899 | AI11: 3.502325391 | AJ11: 0 | AK11: 0 | AL11: 0 | AM11: 0 | AN11: 0.1047392763 | AO11: 0.1565263327 | AP11: 0.1821113228 | AQ11: 0.1565486855 | AR11: 15.05835587 | AS11: 49.35530534 | AT11: 2.025732202 | AU11: 3.711862314 | AV11: 3.541882977 | AW11: 3.213535635 | AX11: 2.187191242 | AY11: 77.34458899 | AZ11: 77.34458899 | BA11: 6.058779777 | BB11: 0 | BC11: 0 | BD11: 0.1916334884 | BE11: 0.1821113228 | BF11: 0.1565263327 | BG11: 0.1047392763 | BH11: 15.05835587 | BI11: 15.05835587 | BJ11: 0.3448204491 | BK11: 78.68573094 | BL11: 81.67770306 | BM11: 20.32272053 | BN11: 35.29071144 | BO11: 3.871810903 | BP11: 2.31442495 | BQ11: 0.1754545827 | BR11: 0.215059656
A12: 8 | B12: 2951 | C12: 0.7164643063 | D12: 18.83865841 | E12: 6.789736059 | F12: 8.038963031 | G12: 8.559467645 | H12: 56.89990718 | I12: 13.32963132 | J12: 0.9842814804 | K12: 2.023420899 | L12: 0.2059326995 | M12: 2.789410297 | N12: 2.872027469 | O12: 0.4707707205 | P12: 0.1501202507 | Q12: 2.889208695 | R12: 0.2510713574 | S12: 0.19 | T12: 0.05914966467 | U12: 0.9292558671 | V12: 0.05502561335 | W12: 39.75936754 | X12: 0.1582124502 | Y12: 0.1883865841 | Z12: 2.794013022 | AA12: 34.25461462 | AB12: 0.71374836 | AC12: 0.8731607434 | AD12: 2.031614485 | AE12: 3.14338382 | AF12: 3.528734195 | AG12: 5.062615318 | AH12: 68.56046473 | AI12: 3.55538276 | AJ12: 0 | AK12: 0 | AL12: 0 | AM12: 0 | AN12: 0.09626390045 | AO12: 0.1520482162 | AP12: 0.1829696912 | AQ12: 0.1520778647 | AR12: 13.76123251 | AS12: 42.78624322 | AT12: 2.875251007 | AU12: 3.720209417 | AV12: 3.528734195 | AW12: 3.14338382 | AX12: 2.031614485 | AY12: 68.56046473 | AZ12: 68.56046473 | BA12: 5.062615318 | BB12: 0 | BC12: 0 | BD12: 0.1939914905 | BE12: 0.1829696912 | BF12: 0.1520482162 | BG12: 0.09626390045 | BH12: 13.76123251 | BI12: 13.76123251 | BJ12: 0.2876427846 | BK12: 67.48279572 | BL12: 70.47813872 | BM12: 16.82299416 | BN12: 32.16828973 | BO12: 4.011342753 | BP12: 2.19091967 | BQ12: 0.1753887881 | BR12: 0.2316952277
A13: 8.5 | B13: 7336 | C13: 2.776545608 | D13: 15.91312047 | E13: 7.445009847 | F13: 8.521286199 | G13: 8.287019444 | H13: 47.29654335 | I13: 13.27964792 | J13: 0.9920147603 | K13: 1.916473154 | L13: 0.1973948983 | M13: 2.799357362 | N13: 2.389920522 | O13: 0.4557860694 | P13: 0.1431388992 | Q13: 2.407998369 | R13: 0.2282080168 | S13: 0.19 | T13: 0.05669736798 | U13: 0.9397980587 | V13: 0.05221670163 | W13: 34.15185142 | X13: 0.1637306541 | Y13: 0.1591312047 | Z13: 2.802348191 | AA13: 27.53113802 | AB13: 0.5105331027 | AC13: 0.8558780128 | AD13: 1.913926466 | AE13: 3.114739151 | AF13: 3.575898201 | AG13: 4.329936778 | AH13: 57.96288347 | AI13: 3.578604216 | AJ13: 0 | AK13: 0 | AL13: 0 | AM13: 0 | AN13: 0.08971372083 | AO13: 0.149784835 | AP13: 0.1877717907 | AQ13: 0.1498230217 | AR13: 11.55026107 | AS13: 36.3395637 | AT13: 3.135599319 | AU13: 3.811010478 | AV13: 3.575898201 | AW13: 3.114739151 | AX13: 1.913926466 | AY13: 57.96288347 | AZ13: 57.96288347 | BA13: 4.329936778 | BB13: 0 | BC13: 0 | BD13: 0.2018454906 | BE13: 0.1877717907 | BF13: 0.149784835 | BG13: 0.08971372083 | BH13: 11.55026107 | BI13: 11.55026107 | BJ13: 0.2460725453 | BK13: 57.50003595 | BL13: 60.49678821 | BM13: 13.90539214 | BN13: 29.1927684 | BO13: 4.135089134 | BP13: 2.072321042 | BQ13: 0.178010892 | BR13: 0.2557487077
A14: 9 | B14: 7811 | C14: 4.698165891 | D14: 12.99264568 | E14: 8.077924707 | F14: 8.977878551 | G14: 8.580242496 | H14: 38.74366431 | I14: 12.9846361 | J14: 1.008127141 | K14: 1.819531784 | L14: 0.1897635579 | M14: 2.806787508 | N14: 1.960334723 | O14: 0.4719133373 | P14: 0.1368555079 | Q14: 1.982015632 | R14: 0.2034902059 | S14: 0.19 | T14: 0.05450543231 | U14: 0.9666908824 | V14: 0.04143625843 | W14: 28.78725091 | X14: 0.1660982512 | Y14: 0.1299264568 | Z14: 2.809986863 | AA14: 21.45157568 | AB14: 0.4696444899 | AC14: 0.825404108 | AD14: 1.837171964 | AE14: 3.150850617 | AF14: 3.747174857 | AG14: 3.784737454 | AH14: 48.74726272 | AI14: 3.7240794 | AJ14: 0 | AK14: 0 | AL14: 0 | AM14: 0 | AN14: 0.0850673271 | AO14: 0.1506820009 | AP14: 0.2017951927 | AQ14: 0.1507335711 | AR14: 9.570528743 | AS14: 29.77916874 | AT14: 4.008524357 | AU14: 4.059203568 | AV14: 3.747174857 | AW14: 3.150850617 | AX14: 1.837171964 | AY14: 48.74726272 | AZ14: 48.74726272 | BA14: 3.784737454 | BB14: 0 | BC14: 0 | BD14: 0.2218459297 | BE14: 0.2017951927 | BF14: 0.1506820009 | BG14: 0.0850673271 | BH14: 9.570528743 | BI14: 9.570528743 | BJ14: 0.2154016172 | BK14: 49.14343859 | BL14: 52.13998965 | BM14: 11.0010224 | BN14: 25.97728178 | BO14: 4.467170123 | BP14: 2.00713801 | BQ14: 0.187794431 | BR14: 0.2984486476
A15: 9.5 | B15: 4714 | C15: 6.655733013 | D15: 10.31724308 | E15: 8.855596268 | F15: 9.478922024 | G15: 9.146774733 | H15: 27.42802869 | I15: 12.77237258 | J15: 1.013696479 | K15: 1.820331749 | L15: 0.1952929397 | M15: 2.779084737 | N15: 1.396167471 | O15: 0.5030726103 | P15: 0.1391449908 | Q15: 1.43039992 | R15: 0.1740863021 | S15: 0.19 | T15: 0.05609362634 | U15: 0.8495599196 | V15: 0.1641365595 | W15: 20.65280459 | X15: 0.5440457432 | Y15: 0.1031724308 | Z15: 2.804067252 | AA15: 13.22066338 | AB15: 1.450657043 | AC15: 0.7617725607 | AD15: 1.607368747 | AE15: 2.905711312 | AF15: 3.615332321 | AG15: 3.006108296 | AH15: 37.87636237 | AI15: 3.651022284 | AJ15: 0 | AK15: 0 | AL15: 0 | AM15: 0 | AN15: 0.07270519861 | AO15: 0.1368155256 | AP15: 0.2050654356 | AQ15: 0.1369090001 | AR15: 7.398608678 | AS15: 24.31000347 | AT15: 3.314592098 | AU15: 3.996833629 | AV15: 3.615332321 | AW15: 2.905711312 | AX15: 1.607368747 | AY15: 37.87636237 | AZ15: 37.87636237 | BA15: 3.006108296 | BB15: 0 | BC15: 0 | BD15: 0.2329232939 | BE15: 0.2050654356 | BF15: 0.1368155256 | BG15: 0.07270519861 | BH15: 7.398608678 | BI15: 7.398608678 | BJ15: 0.1712767273 | BK15: 38.39513518 | BL15: 41.36951285 | BM15: 8.331579372 | BN15: 23.08961567 | BO15: 4.608386173 | BP15: 1.791693437 | BQ15: 0.1856838619 | BR15: 0.3534899768
A16: 10 | B16: 3638 | C16: 9.162561749 | D16: 8.076599856 | E16: 9.564831492 | F16: 9.979127717 | G16: 10.85120802 | H16: 18.48596624 | I16: 13.24533148 | J16: 1.01637262 | K16: 2.230663135 | L16: 0.2449713659 | M16: 2.568250443 | N16: 0.9601336607 | O16: 0.5968164413 | P16: 0.1728368844 | Q16: 1.026568859 | R16: 0.1392056537 | S16: 0.19 | T16: 0.0703626679 | U16: 0.6523288584 | V16: 0.3640437611 | W16: 14.15862631 | X16: 0.9730879219 | Y16: 0.08076599856 | Z16: 2.749705793 | AA16: 7.552280134 | AB16: 3.785154102 | AC16: 0.6562574785 | AD16: 1.40317995 | AE16: 2.691093581 | AF16: 3.603565882 | AG16: 2.383318035 | AH16: 31.05931505 | AI16: 3.781058317 | AJ16: 0 | AK16: 0 | AL16: 0 | AM16: 0 | AN16: 0.06231678557 | AO16: 0.1249811684 | AP16: 0.2286058059 | AQ16: 0.1252399776 | AR16: 6.052288855 | AS16: 21.70473701 | AT16: 2.672997111 | AU16: 4.076533747 | AV16: 3.603565882 | AW16: 2.691093581 | AX16: 1.40317995 | AY16: 31.05931505 | AZ16: 31.05931505 | BA16: 2.383318035 | BB16: 0 | BC16: 0 | BD16: 0.2718960426 | BE16: 0.2286058059 | BF16: 0.1249811684 | BG16: 0.06231678557 | BH16: 6.052288855 | BI16: 6.052288855 | BJ16: 0.1354674649 | BK16: 31.5678374 | BL16: 34.38105921 | BM16: 6.098295316 | BN16: 21.32193133 | BO16: 5.176501917 | BP16: 1.612473967 | BQ16: 0.2017306816 | BR16: 0.4265578815
A17: 10.5 | B17: 4188 | C17: 11.46452979 | D17: 5.80094653 | E17: 10.35616644 | F17: 10.52546362 | G17: 10.13184684 | H17: 8.880056527 | I17: 12.19112372 | J17: 1.013071194 | K17: 1.533641015 | L17: 0.1756146069 | M17: 1.926572995 | N17: 0.4855307991 | O17: 0.5572515763 | P17: 0.1218146003 | Q17: 0.5530917602 | R17: 0.09684883711 | S17: 0.19 | T17: 0.05044145554 | U17: 0.3671369636 | V17: 0.6459342306 | W17: 7.130977844 | X17: 1.628448498 | Y17: 0.0580094653 | Z17: 2.802653042 | AA17: 3.182178073 | AB17: 6.736077449 | AC17: 0.5068591684 | AD17: 1.044720367 | AE17: 1.982108164 | AF17: 3.121459171 | AG17: 1.685287169 | AH17: 20.28045462 | AI17: 3.323697252 | AJ17: 0 | AK17: 0 | AL17: 0 | AM17: 0 | AN17: 0.04693357409 | AO17: 0.09271745159 | AP17: 0.2605845191 | AQ17: 0.0930609396 | AR17: 3.963749677 | AS17: 19.42320864 | AT17: 2.521074779 | AU17: 3.689295871 | AV17: 3.121459171 | AW17: 1.982108164 | AX17: 1.044720367 | AY17: 20.28045462 | AZ17: 20.28045462 | BA17: 1.685287169 | BB17: 0 | BC17: 0 | BD17: 0.3417920214 | BE17: 0.2605845191 | BF17: 0.09271745159 | BG17: 0.04693357409 | BH17: 3.963749677 | BI17: 3.963749677 | BJ17: 0.09634030211 | BK17: 20.54554438 | BL17: 22.64773199 | BM17: 3.835750075 | BN17: 17.99207025 | BO17: 5.356330308 | BP17: 1.258761869 | BQ17: 0.2263885217 | BR17: 0.4922804481
A18: 11 | B18: 6498 | C18: 14.65049136 | D18: 3.80596597 | E18: 10.99981661 | F18: 11.00731709 | G18: 11.44857679 | H18: 2.449657206 | I18: 11.13811569 | J18: 1.011940401 | K18: 1.002358512 | L18: 0.1177657373 | M18: 0.7635273299 | N18: 0.1327698092 | O18: 0.6296717234 | P18: 0.08086203362 | Q18: 0.1947080651 | R18: 0.05158498832 | S18: 0.19 | T18: 0.03382563277 | U18: 0.1425299011 | V18: 0.8694105004 | W18: 2.418564006 | X18: 2.027019951 | Y18: 0.0380596597 | Z18: 2.778369488 | AA18: 0.733708184 | AB18: 10.6520404 | AC18: 0.2316696948 | AD18: 0.6785288106 | AE18: 1.072494494 | AF18: 3.016793037 | AG18: 1.337801915 | AH18: 14.72477281 | AI18: 3.27567295 | AJ18: 0 | AK18: 0 | AL18: 0 | AM18: 0 | AN18: 0.03097696685 | AO18: 0.05009786844 | AP18: 0.5708614361 | AQ18: 0.05079256118 | AR18: 2.880870904 | AS18: 16.96881839 | AT18: 2.331487773 | AU18: 3.794129555 | AV18: 3.016793037 | AW18: 1.072494494 | AX18: 0.6785288106 | AY18: 14.72477281 | AZ18: 14.72477281 | BA18: 1.337801915 | BB18: 0 | BC18: 0 | BD18: 0.8868434226 | BE18: 0.5708614361 | BF18: 0.05009786844 | BG18: 0.03097696685 | BH18: 2.880870904 | BI18: 2.880870904 | BJ18: 0.07703687709 | BK18: 14.90059251 | BL18: 15.78188557 | BM18: 1.921771146 | BN18: 14.94408166 | BO18: 7.753572811 | BP18: 1.056062589 | BQ18: 0.4633586613 | BR18: 0.4993234872
A19: 11.5 | B19: 4710 | C19: 16.78997383 | D19: 3.424770683 | E19: 11.5071053 | F19: 11.46476325 | G19: 18.38942718 | H19: 0.4045906793 | I19: 12.36676845 | J19: 1.010563695 | K19: 1.256648281 | L19: 0.1507516404 | M19: 0.1994911979 | N19: 0.02192241349 | O19: 1.011418495 | P19: 0.1026873606 | Q19: 0.118853955 | R19: 0.03841877189 | S19: 0.19 | T19: 0.04330011211 | U19: 0.07909080032 | V19: 0.9314728942 | W19: 0.9347646451 | X19: 2.182887168 | Y19: 0.03424770683 | Z19: 2.772389346 | AA19: 0.07472026107 | AB19: 18.31510187 | AC19: 0.0828520583 | AD19: 0.4520810732 | AE19: 0.573317077 | AF19: 2.837992916 | AG19: 1.621334322 | AH19: 19.84107112 | AI19: 4.599632686 | AJ19: 0 | AK19: 0 | AL19: 0 | AM19: 0 | AN19: 0.02699616913 | AO19: 0.03445282871 | AP19: 1.028876219 | AQ19: 0.03659658343 | AR19: 3.886734602 | AS19: 11.81887958 | AT19: 2.343479002 | AU19: 3.311683838 | AV19: 2.837992916 | AW19: 0.573317077 | AX19: 0.4520810732 | AY19: 19.84107112 | AZ19: 19.84107112 | BA19: 1.621334322 | BB19: 0 | BC19: 0 | BD19: 1.390090668 | BE19: 1.028876219 | BF19: 0.03445282871 | BG19: 0.02699616913 | BH19: 3.886734602 | BI19: 3.886734602 | BJ19: 0.09258720418 | BK19: 20.05066614 | BL19: 20.40090898 | BM19: 1.512193391 | BN19: 15.79153913 | BO19: 13.25932665 | BP19: 1.291888574 | BQ19: 0.9663295255 | BR19: 0.6890562649
A20: 12 | B20: 2039 | C20: 19.66717301 | D20: 3.549037968 | E20: 12.0233633 | F20: 11.97129282 | G20: 34.37771827 | H20: 0.007333168466 | I20: 13.90554616 | J20: 1.003327186 | K20: 1.69024845 | L20: 0.2023673219 | M20: 0.01095989311 | N20: 0.0004164785986 | O20: 1.890774505 | P20: 0.1379516392 | Q20: 0.1380887676 | R20: 0.03715296176 | S20: 0.19 | T20: 0.0581255879 | U20: 0.08148506723 | V20: 0.9218421192 | W20: 0.9414454661 | X20: 2.204900095 | Y20: 0.03549037968 | Z20: 2.74860485 | AA20: 0.0008492920148 | AB20: 34.28237892 | AC20: 0.04705661834 | AD20: 0.4546117957 | AE20: 0.5313613405 | AF20: 2.630771605 | AG20: 2.594310175 | AH20: 35.95566867 | AI20: 7.971378804 | AJ20: 0 | AK20: 0 | AL20: 0 | AM20: 0 | AN20: 0.03309662403 | AO20: 0.0387883913 | AP20: 0.8921122537 | AQ20: 0.04202114111 | AR20: 7.090287448 | AS20: 11.55359501 | AT20: 2.391841346 | AU20: 2.838452944 | AV20: 2.630771605 | AW20: 0.5313613405 | AX20: 0.4546117957 | AY20: 35.95566867 | AZ20: 35.95566867 | BA20: 2.594310175 | BB20: 0 | BC20: 0 | BD20: 1.028973827 | BE20: 0.8921122537 | BF20: 0.0387883913 | BG20: 0.03309662403 | BH20: 7.090287448 | BI20: 7.090287448 | BJ20: 0.1470242595 | BK20: 36.07529988 | BL20: 36.2886271 | BM20: 1.601392982 | BN20: 17.45458412 | BO20: 22.52744972 | BP20: 2.079031321 | BQ20: 1.640571966 | BR20: 1.197996027
A21: 12.5 | B21: 930 | C21: 21.7228645 | D21: 3.694248129 | E21: 12.49506941 | F21: 12.46241425 | G21: 53.28881056 | H21: 0 | I21: 15.07802535 | J21: 0.990809445 | K21: 2.051491632 | L21: 0.2411204466 | M21: 0 | N21: 0 | O21: 2.930884581 | P21: 0.1655405296 | Q21: 0.1655405296 | R21: 0.03787727872 | S21: 0.19 | T21: 0.06925657555 | U21: 0.0967149834 | V21: 0.8940944616 | W21: 1.127491496 | X21: 2.130600856 | Y21: 0.03694248129 | Z21: 2.72203338 | AA21: 0.001719193888 | AB21: 52.96094186 | AC21: 0.0370704812 | AD21: 0.5390325574 | AE21: 0.6144802067 | AF21: 2.67182506 | AG21: 3.670261915 | AH21: 55.85362803 | AI21: 11.86355168 | AJ21: 0 | AK21: 0 | AL21: 0 | AM21: 0 | AN21: 0.03921634159 | AO21: 0.04480560759 | AP21: 0.7833031454 | AQ21: 0.04849857568 | AR21: 11.14245851 | AS21: 11.6578782 | AT21: 2.382970645 | AU21: 2.806056109 | AV21: 2.67182506 | AW21: 0.6144802067 | AX21: 0.5390325574 | AY21: 55.85362803 | AZ21: 55.85362803 | BA21: 3.670261915 | BB21: 0 | BC21: 0 | BD21: 0.8551562287 | BE21: 0.7833031454 | BF21: 0.04480560759 | BG21: 0.03921634159 | BH21: 11.14245851 | BI21: 11.14245851 | BJ21: 0.2070947754 | BK21: 55.34030219 | BL21: 55.58142263 | BM21: 1.721903747 | BN21: 18.77227348 | BO21: 32.13902187 | BP21: 2.960825321 | BQ21: 2.294313733 | BR21: 1.723764804
A22: 13 | B22: 464 | C22: 23.74460272 | D22: 3.718512281 | E22: 13.060503 | F22: 12.95525719 | G22: 70.90376471 | H22: 0 | I22: 16.87679486 | J22: 1.008020234 | K22: 2.089879608 | L22: 0.2448983092 | M22: 0 | N22: 0 | O22: 3.899707059 | P22: 0.1683277735 | Q22: 0.1683277735 | R22: 0.03851469913 | S22: 0.19 | T22: 0.07034168395 | U22: 0.1432781406 | V22: 0.8647420938 | W22: 1.502753736 | X22: 2.194480299 | Y22: 0.03718512281 | Z22: 2.721975613 | AA22: 0 | AB22: 70.5735437 | AC22: 0.02863098051 | AD22: 0.5556730719 | AE22: 0.6230439262 | AF22: 2.677619957 | AG22: 4.325089267 | AH22: 72.41287608 | AI22: 15.49519492 | AJ22: 0 | AK22: 0 | AL22: 0 | AM22: 0 | AN22: 0.04038422052 | AO22: 0.04537301272 | AP22: 0.7745434201 | AQ22: 0.04910252738 | AR22: 14.2181777 | AS22: 10.4883671 | AT22: 2.537728086 | AU22: 2.780432351 | AV22: 2.677619957 | AW22: 0.6230439262 | AX22: 0.5556730719 | AY22: 72.41287608 | AZ22: 72.41287608 | BA22: 4.325089267 | BB22: 0 | BC22: 0 | BD22: 0.8271230735 | BE22: 0.7745434201 | BF22: 0.04537301272 | BG22: 0.04038422052 | BH22: 14.2181777 | BI22: 14.2181777 | BJ22: 0.2428122201 | BK22: 72.99364432 | BL22: 73.23854263 | BM22: 1.759658593 | BN22: 20.59530714 | BO22: 41.48170822 | BP22: 3.556079165 | BQ22: 2.948998346 | BR22: 2.242345888
A23: 13.5 | B23: 165 | C23: 25.36498725 | D23: 3.50147533 | E23: 13.49326967 | F23: 13.46988373 | G23: 84.40457164 | H23: 0 | I23: 17.61434438 | J23: 1.011380588 | K23: 1.632136157 | L23: 0.1976363732 | M23: 0 | N23: 0 | O23: 4.64225144 | P23: 0.1341467566 | Q23: 0.1341467566 | R23: 0.03527741651 | S23: 0.19 | T23: 0.05676672634 | U23: 0.1118241767 | V23: 0.8995564117 | W23: 1.069732738 | X23: 1.814663418 | Y23: 0.0350147533 | Z23: 2.782865109 | AA23: 0 | AB23: 84.30478992 | AC23: 0.01897023026 | AD23: 0.4770469602 | AE23: 0.5197240789 | AF23: 3.021579251 | AG23: 4.884468358 | AH23: 85.06857734 | AI23: 19.1085968 | AJ23: 0 | AK23: 0 | AL23: 0 | AM23: 0 | AN23: 0.0352480505 | AO23: 0.0384569484 | AP23: 1.209781033 | AQ23: 0.04170031678 | AR23: 16.65197322 | AS23: 9.566202675 | AT23: 2.017286959 | AU23: 3.132856218 | AV23: 3.021579251 | AW23: 0.5197240789 | AX23: 0.4770469602 | AY23: 85.06857734 | AZ23: 85.06857734 | BA23: 4.884468358 | BB23: 0 | BC23: 0 | BD23: 1.293690959 | BE23: 1.209781033 | BF23: 0.0384569484 | BG23: 0.0352480505 | BH23: 16.65197322 | BI23: 16.65197322 | BJ23: 0.2737635408 | BK23: 86.0367078 | BL23: 86.23434417 | BM23: 1.532354436 | BN23: 21.11581971 | BO23: 56.14674111 | BP23: 4.08387386 | BQ23: 4.23036853 | BR23: 3.063985238
A24: 14 | B24: 110 | C24: 27.71432628 | D24: 3.438997974 | E24: 14.38210884 | F24: 13.96958823 | G24: 92.5177156 | H24: 0 | I24: 16.71324472 | J24: 0.9943983389 | K24: 1.049520095 | L24: 0.1288120662 | M24: 0 | N24: 0 | O24: 5.088474358 | P24: 0.08698111881 | Q24: 0.08698111881 | R24: 0.03747101264 | S24: 0.19 | T24: 0.03699844921 | U24: 0.06391267911 | V24: 0.9304856598 | W24: 0.5879208611 | X24: 2.19687213 | Y24: 0.03438997974 | Z24: 2.862637465 | AA24: 0 | AB24: 92.91014229 | AC24: 0.0112167479 | AD24: 0.3249257231 | AE24: 0.3415305177 | AF24: 2.288019836 | AG24: 5.59838842 | AH24: 94.09432019 | AI24: 21.13414663 | AJ24: 0 | AK24: 0 | AL24: 0 | AM24: 0 | AN24: 0.02421892448 | AO24: 0.02548221819 | AP24: 1.049363438 | AQ24: 0.02764672729 | AR24: 18.70865416 | AS24: 9.198814215 | AT24: 2.36099515 | AU24: 2.345042445 | AV24: 2.288019836 | AW24: 0.3415305177 | AX24: 0.3249257231 | AY24: 94.09432019 | AZ24: 94.09432019 | BA24: 5.59838842 | BB24: 0 | BC24: 0 | BD24: 1.098191513 | BE24: 1.049363438 | BF24: 0.02548221819 | BG24: 0.02421892448 | BH24: 18.70865416 | BI24: 18.70865416 | BJ24: 0.3144199997 | BK24: 93.5672357 | BL24: 93.69604776 | BM24: 1.441946782 | BN24: 20.15224269 | BO24: 64.8895208 | BP24: 4.649410449 | BQ24: 4.998424032 | BR24: 3.568238669
A25: 14.5 | B25: 31 | C25: 27.69208621 | D25: 3.297758945 | E25: 15.07527478 | F25: 14.37490146 | G25: 99.24062881 | H25: 0 | I25: 16.4546784 | J25: 0.9757480514 | K25: 0.9590354258 | L25: 0.1180659068 | M25: 0 | N25: 0 | O25: 5.458234585 | P25: 0.07963571287 | Q25: 0.07963571287 | R25: 0.03832277914 | S25: 0.19 | T25: 0.03391184991 | U25: 0.03309574158 | V25: 0.9426523098 | W25: 0.4879569282 | X25: 2.15382562 | Y25: 0.03297758945 | Z25: 2.868390002 | AA25: 0 | AB25: 99.56864448 | AC25: 0.009571243907 | AD25: 0.3117288529 | AE25: 0.3256937988 | AF25: 2.990983557 | AG25: 6.089433156 | AH25: 102.6900992 | AI25: 23.4743339 | AJ25: 0 | AK25: 0 | AL25: 0 | AM25: 0 | AN25: 0.02330562402 | AO25: 0.02437421075 | AP25: 1.936002862 | AQ25: 0.02644337418 | AR25: 20.77840008 | AS25: 14.74379799 | AT25: 2.284856885 | AU25: 3.080713366 | AV25: 2.990983557 | AW25: 0.3256937988 | AX25: 0.3117288529 | AY25: 102.6900992 | AZ25: 102.6900992 | BA25: 6.089433156 | BB25: 0 | BC25: 0 | BD25: 2.049866891 | BE25: 1.936002862 | BF25: 0.02437421075 | BG25: 0.02330562402 | BH25: 20.77840008 | BI25: 20.77840008 | BJ25: 0.3422201927 | BK25: 100.1996642 | BL25: 100.3177301 | BM25: 1.287051088 | BN25: 19.75243735 | BO25: 77.8521266 | BP25: 5.078751973 | BQ25: 6.35945697 | BR25: 4.288648639
A26: 15 | B26: 1 | C26: 12.79988889 | D26: 2.848290963 | E26: 34.98933037 | F26: 14.88933037 | G26: 0 | H26: 0 | I26: 7.274488472 | J26: 0 | K26: 0 | L26: 0 | M26: 0 | N26: 0 | O26: 0 | P26: 0 | Q26: 0 | R26: 0.1921230755 | S26: 0.19 | T26: 0 | U26: 0 | V26: 0 | W26: 0 | X26: 0 | Y26: 0.02848290963 | Z26: 2.848290963 | AA26: 0 | AB26: 0 | AC26: 0 | AD26: 0 | AE26: 0 | AF26: 0 | AG26: 0 | AH26: 0 | AI26: 0 | AJ26: 0 | AK26: 0 | AL26: 0 | AM26: 0 | AN26: 0 | AO26: 0 | AP26: 0 | AQ26: 0 | AR26: 0 | AS26: 0 | AT26: 0 | AU26: 0 | AV26: 0 | AW26: 0 | AX26: 0 | AY26: 0 | AZ26: 0 | BA26: 0 | BB26: 0 | BC26: 0 | BD26: 0 | BE26: 0 | BF26: 0 | BG26: 0 | BH26: 0 | BI26: 0 | BJ26: 0 | BK26: 0 | BL26: 0 | BM26: 0 | BN26: 10.12277943 | BO26: 0 | BP26: 0 | BQ26: 0 | BR26: 0
A27: 15.5 | B27: 5 | C27: 12.41998891 | D27: 3.160021049 | E27: 34.40524482 | F27: 15.5341196 | G27: 0 | H27: 0 | I27: 7.276423028 | J27: 0 | K27: 0.09582688921 | L27: 0.01163888889 | M27: 0 | N27: 0 | O27: 0 | P27: 0.007889326002 | Q27: 0.007889326002 | R27: 0.1926806465 | S27: 0.19 | T27: 0.003343016318 | U27: 0 | V27: 0 | W27: 0 | X27: 0 | Y27: 0.03160021049 | Z27: 2.915198136 | AA27: 0.1034324503 | AB27: 0.2407895849 | AC27: 1 | AD27: 0.01029716418 | AE27: 0.0340079311 | AF27: 0.4109496339 | AG27: 0 | AH27: 0 | AI27: 0.0340079311 | AJ27: 0 | AK27: 0 | AL27: 0 | AM27: 0 | AN27: 0.0007794785866 | AO27: 0.003245446407 | AP27: 0.3587758106 | AQ27: 0.003413516502 | AR27: 0 | AS27: 0 | AT27: 0 | AU27: 0.4109496339 | AV27: 0.4109496339 | AW27: 0.0340079311 | AX27: 0.01029716418 | AY27: 0 | AZ27: 0 | BA27: 0 | BB27: 0 | BC27: 0 | BD27: 0.3584892611 | BE27: 0.3587758106 | BF27: 0.003245446407 | BG27: 0.0007794785866 | BH27: 0 | BI27: 0 | BJ27: 0 | BK27: 0.09582688921 | BL27: 0.1074657781 | BM27: 0.2331840238 | BN27: 10.43644408 | BO27: 0.4109496339 | BP27: 0.01029716418 | BQ27: 0.1400419701 | BR27: 0.05385910343
A28: 16 | B28: 1 | C28: 12.39994444 | D28: 2.916276185 | E28: 36.47243067 | F28: 16.17226754 | G28: 0 | H28: 0 | I28: 7.297229738 | J28: 0 | K28: 0 | L28: 0 | M28: 0 | N28: 0 | O28: 0 | P28: 0 | Q28: 0 | R28: 0.1922250418 | S28: 0.19 | T28: 0 | U28: 0 | V28: 0 | W28: 0 | X28: 0 | Y28: 0.02916276185 | Z28: 2.916276185 | AA28: 0 | AB28: 0 | AC28: 0 | AD28: 0 | AE28: 0 | AF28: 0 | AG28: 0 | AH28: 0 | AI28: 0 | AJ28: 0 | AK28: 0 | AL28: 0 | AM28: 0 | AN28: 0 | AO28: 0 | AP28: 0 | AQ28: 0 | AR28: 0 | AS28: 0 | AT28: 0 | AU28: 0 | AV28: 0 | AW28: 0 | AX28: 0 | AY28: 0 | AZ28: 0 | BA28: 0 | BB28: 0 | BC28: 0 | BD28: 0 | BE28: 0 | BF28: 0 | BG28: 0 | BH28: 0 | BI28: 0 | BJ28: 0 | BK28: 0 | BL28: 0 | BM28: 0 | BN28: 10.21350592 | BO28: 0 | BP28: 0 | BQ28: 0 | BR28: 0
A29: 16.5 | B29: 1 | C29: 12.10016667 | D29: 2.902081842 | E29: 35.92561702 | F29: 16.39268085 | G29: 0 | H29: 0 | I29: 7.383922642 | J29: 0 | K29: 0 | L29: 0 | M29: 0 | N29: 0 | O29: 0 | P29: 0 | Q29: 0 | R29: 0.1922035585 | S29: 0.19 | T29: 0 | U29: 0 | V29: 0 | W29: 0 | X29: 0 | Y29: 0.02902081842 | Z29: 2.902081842 | AA29: 0 | AB29: 0 | AC29: 0 | AD29: 0 | AE29: 0 | AF29: 0 | AG29: 0 | AH29: 0 | AI29: 0 | AJ29: 0 | AK29: 0 | AL29: 0 | AM29: 0 | AN29: 0 | AO29: 0 | AP29: 0 | AQ29: 0 | AR29: 0 | AS29: 0 | AT29: 0 | AU29: 0 | AV29: 0 | AW29: 0 | AX29: 0 | AY29: 0 | AZ29: 0 | BA29: 0 | BB29: 0 | BC29: 0 | BD29: 0 | BE29: 0 | BF29: 0 | BG29: 0 | BH29: 0 | BI29: 0 | BJ29: 0 | BK29: 0 | BL29: 0 | BM29: 0 | BN29: 10.28600448 | BO29: 0 | BP29: 0 | BQ29: 0 | BR29: 0
A30: 17 | B30: 4 | C30: 9.875097207 | D30: 3.192512188 | E30: 33.11169429 | F30: 17.00649248 | G30: 0 | H30: 0 | I30: 7.296658371 | J30: 0 | K30: 0 | L30: 0 | M30: 0 | N30: 0 | O30: 0 | P30: 0 | Q30: 0 | R30: 0.1927478684 | S30: 0.19 | T30: 0 | U30: 0 | V30: 0 | W30: 0 | X30: 0 | Y30: 0.03192512188 | Z30: 2.894111873 | AA30: 0 | AB30: 0.2984003144 | AC30: 0 | AD30: 0 | AE30: 0 | AF30: 0 | AG30: 0 | AH30: 0 | AI30: 0 | AJ30: 0 | AK30: 0 | AL30: 0 | AM30: 0 | AN30: 0 | AO30: 0 | AP30: 0 | AQ30: 0 | AR30: 0 | AS30: 0 | AT30: 0 | AU30: 0 | AV30: 0 | AW30: 0 | AX30: 0 | AY30: 0 | AZ30: 0 | BA30: 0 | BB30: 0 | BC30: 0 | BD30: 0 | BE30: 0 | BF30: 0 | BG30: 0 | BH30: 0 | BI30: 0 | BJ30: 0 | BK30: 0 | BL30: 0 | BM30: 0.2984003144 | BN30: 10.48917056 | BO30: 0 | BP30: 0 | BQ30: 0 | BR30: 0
A31: 17.5 | B31: 5 | C31: 10.26005555 | D31: 2.921430572 | E31: 35.63738163 | F31: 17.43722399 | G31: 0 | H31: 0 | I31: 7.17344132 | J31: 0 | K31: 0.007196763156 | L31: 0.0008729166667 | M31: 0 | N31: 0 | O31: 0 | P31: 0.0005919955378 | Q31: 0.0005919955378 | R31: 0.1922334357 | S31: 0.19 | T31: 0.0002507262238 | U31: 0 | V31: 0 | W31: 0 | X31: 0 | Y31: 0.02921430572 | Z31: 2.921430572 | AA31: 0.008069679822 | AB31: 0 | AC31: 1 | AD31: 0.0007993840743 | AE31: 0.002762235701 | AF31: 0 | AG31: 0 | AH31: 0 | AI31: 0.002762235701 | AJ31: 0 | AK31: 0 | AL31: 0 | AM31: 0 | AN31: 6.058668382e-05 | AO31: 0.0002722105573 | AP31: 0 | AQ31: 0.0002854193261 | AR31: 0 | AS31: 0 | AT31: 0 | AU31: 0 | AV31: 0 | AW31: 0.002762235701 | AX31: 0.0007993840743 | AY31: 0 | AZ31: 0 | BA31: 0 | BB31: 0 | BC31: 0 | BD31: 0 | BE31: 0 | BF31: 0.0002722105573 | BG31: 6.058668382e-05 | BH31: 0 | BI31: 0 | BJ31: 0 | BK31: 0.007196763156 | BL31: 0.008069679822 | BM31: -0.0008729166667 | BN31: 10.09487189 | BO31: 0 | BP31: 0.0007993840743 | BQ31: 0 | BR31: 0
A32: 18 | B32: 13 | C32: 9.654061942 | D32: 3.027226572 | E32: 34.93014833 | F32: 17.99173172 | G32: 0 | H32: 0 | I32: 6.954329787 | J32: 0 | K32: 0.07104496961 | L32: 0.008617254274 | M32: 0 | N32: 0 | O32: 0 | P32: 0.005844058514 | Q32: 0.005844058514 | R32: 0.1924301519 | S32: 0.19 | T32: 0.002475117851 | U32: 0 | V32: 0 | W32: 0 | X32: 0 | Y32: 0.03027226572 | Z32: 2.897207712 | AA32: 0 | AB32: 0.05035663699 | AC32: 1 | AD32: 0.007980942151 | AE32: 0.02631524994 | AF32: 0.5852061731 | AG32: 0 | AH32: 0 | AI32: 0.02631524994 | AJ32: 0 | AK32: 0 | AL32: 0 | AM32: 0 | AN32: 0.000605364984 | AO32: 0.002554403996 | AP32: 0.9765375375 | AQ32: 0.002682066469 | AR32: 0 | AS32: 0 | AT32: 0 | AU32: 0.5852061731 | AV32: 0.5852061731 | AW32: 0.02631524994 | AX32: 0.007980942151 | AY32: 0 | AZ32: 0 | BA32: 0 | BB32: 0 | BC32: 0 | BD32: 0.9763246886 | BE32: 0.9765375375 | BF32: 0.002554403996 | BG32: 0.000605364984 | BH32: 0 | BI32: 0 | BJ32: 0 | BK32: 0.07104496961 | BL32: 0.07966222389 | BM32: 0.1214016066 | BN32: 9.98155636 | BO32: 0.5852061731 | BP32: 0.007980942151 | BQ32: 0.3743882845 | BR32: 0.0766168044
A33: 18.5 | B33: 11 | C33: 10.15433842 | D33: 2.957044627 | E33: 34.90222349 | F33: 18.50622013 | G33: 0 | H33: 0 | I33: 7.181654011 | J33: 0 | K33: 0.3056042889 | L33: 0.03701651111 | M33: 0 | N33: 0 | O33: 0 | P33: 0.02511671477 | Q33: 0.02511671477 | R33: 0.1922982322 | S33: 0.19 | T33: 0.01063218335 | U33: 0 | V33: 0 | W33: 0 | X33: 0 | Y33: 0.02957044627 | Z33: 2.88111357 | AA33: 0.2666897433 | AB33: 0 | AC33: 1 | AD33: 0.03379337056 | AE33: 0.1158659551 | AF33: 7.853214884 | AG33: 0 | AH33: 0 | AI33: 0.1158659551 | AJ33: 0 | AK33: 0 | AL33: 0 | AM33: 0 | AN33: 0.002558884526 | AO33: 0.01135426004 | AP33: 40.8624954 | AQ33: 0.01190996037 | AR33: 0 | AS33: 0 | AT33: 0 | AU33: 7.853214884 | AV33: 7.853214884 | AW33: 0.1158659551 | AX33: 0.03379337056 | AY33: 0 | AZ33: 0 | BA33: 0 | BB33: 0 | BC33: 0 | BD33: 40.86158198 | BE33: 40.8624954 | BF33: 0.01135426004 | BG33: 0.002558884526 | BH33: 0 | BI33: 0 | BJ33: 0 | BK33: 0.3056042889 | BL33: 0.3426208 | BM33: 0.03891454563 | BN33: 10.13869864 | BO33: 7.853214884 | BP33: 0.03379337056 | BQ33: 15.57014593 | BR33: 1.027096579
A34: 19 | B34: 7 | C34: 11.25719045 | D34: 2.964406244 | E34: 37.00718415 | F34: 18.98046429 | G34: 0 | H34: 0 | I34: 6.97302039 | J34: 0 | K34: 0.137197169 | L34: 0.01661809312 | M34: 0 | N34: 0 | O34: 0 | P34: 0.0112758305 | Q34: 0.0112758305 | R34: 0.1923123987 | S34: 0.19 | T34: 0.004773183849 | U34: 0 | V34: 0 | W34: 0 | X34: 0 | Y34: 0.02964406244 | Z34: 2.887913714 | AA34: 0.1530911032 | AB34: 0.0757683704 | AC34: 1 | AD34: 0.01547837964 | AE34: 0.05188737624 | AF34: 2.291414797 | AG34: 0 | AH34: 0 | AI34: 0.05188737624 | AJ34: 0 | AK34: 0 | AL34: 0 | AM34: 0 | AN34: 0.001173555158 | AO34: 0.005079300082 | AP34: 7.742544728 | AQ34: 0.005328407021 | AR34: 0 | AS34: 0 | AT34: 0 | AU34: 2.291414797 | AV34: 2.291414797 | AW34: 0.05188737624 | AX34: 0.01547837964 | AY34: 0 | AZ34: 0 | BA34: 0 | BB34: 0 | BC34: 0 | BD34: 7.742134306 | BE34: 7.742544728 | BF34: 0.005079300082 | BG34: 0.001173555158 | BH34: 0 | BI34: 0 | BJ34: 0 | BK34: 0.137197169 | BL34: 0.1538152621 | BM34: 0.05987443616 | BN34: 9.937426633 | BO34: 2.291414797 | BP34: 0.01547837964 | BQ34: 2.952886799 | BR34: 0.2996819554
A35: 19.5 | B35: 1 | C35: 8.699972222 | D35: 3.988754463 | E35: 21.59949916 | F35: 19.28597663 | G35: 0 | H35: 0 | I35: 7.658387268 | J35: 0 | K35: 2.812137249 | L35: 0.3406218875 | M35: 0 | N35: 0 | O35: 0 | P35: 0.2311212629 | Q35: 0.2311212629 | R35: 0.1941417426 | S35: 0.19 | T35: 0.09783618859 | U35: 0 | V35: 0 | W35: 0 | X35: 0 | Y35: 0.03988754463 | Z35: 2.659378112 | AA35: 1.823382786 | AB35: 0 | AC35: 1 | AD35: 0.2706895142 | AE35: 0.7904119357 | AF35: 2.844120915 | AG35: 0 | AH35: 0 | AI35: 0.7904119357 | AJ35: 0 | AK35: 0 | AL35: 0 | AM35: 0 | AN35: 0.0203501087 | AO35: 0.06955174552 | AP35: 0.6983950378 | AQ35: 0.07375003948 | AR35: 0 | AS35: 0 | AT35: 0 | AU35: 2.844120915 | AV35: 2.844120915 | AW35: 0.7904119357 | AX35: 0.2706895142 | AY35: 0 | AZ35: 0 | BA35: 0 | BB35: 0 | BC35: 0 | BD35: 0.6913499401 | BE35: 0.6983950378 | BF35: 0.06955174552 | BG35: 0.0203501087 | BH35: 0 | BI35: 0 | BJ35: 0 | BK35: 2.812137249 | BL35: 3.152759137 | BM35: 0.9887544634 | BN35: 11.64714173 | BO35: 2.844120915 | BP35: 0.2706895142 | BQ35: 0.3429935471 | BR35: 0.3719329508
AI44: Figure 9 for B&W

Sheet Plot
A2: HP EFT / BH ExFT (°C) | B2: Count | C2: ODA Temperature (°C) | D2: EL 007 (kW) | E2: GHE EFT (°C) | F2: GHE ExFT (°C) | G2: Clg Provided (kW) | H2: Bldg Htg Provided (kW) | I2: EL 003 (kW) | J2: CP Energy (kW) | K2: DHW Provided by HP (kW) | L2: DHW by LPS (kW) | M2: Useful Bldg Htg by LPS (kW) | N2: Bldg Htg Uncertainty (kW) | O2: Bldg Clg Uncertainty (kW) | P2: DHW Htg by HP Uncertainty (kW) | Q2: Bldg + DHW Htg by HP Uncertainty (kW) | R2: EL007+EL011 Uncertainty (kW) | S2: EL011 Uncertainty (kW) | T2: LPS DHW Uncertainty (kW) | U2: CP Power for Heat Extraction from GHE (kW) | V2: CP Power for Heat Rejection to GHE (kW) | W2: Heat Extraction by GHE (kW) | X2: Heat Rejection to GHE (kW) | Y2: EL007 Uncertainty (kW) | Z2: LPS Electricity going to bldg heat (kW) | AA2: Alt Calc GHE Heat Extraction (kW) | AB2: Alt Calc GHE Heat Extraction (kW) | AC2: HtgFrac | AD2: COP H4 | AE2: COP H3 | AF2: COP H2 | AG2: COP C3 | AH2: COP C2 | AI2: Overall (H+C) COP | AJ2: Not used | AK2: Not used | AL2: Not used | AM2: Not used | AN2: Error COP H4 | AO2: Error COP H3 | AP2: Error COP H2 | AQ2: Error COP H3b | AR2: Error COP C2 | AS2: BPF0, heating | AT2: BPF0, cooling | AU2: BPF1*, heating | AV2: BPF2, heating | AW2: BPF3+, heating | AX2: BPF4+, heating | AY2: BPF2, cooling | AZ2: BPF3, cooling | BA2: BPF4, cooling | BB2: Error BPF0, heating | BC2: Error BPF0, cooling | BD2: Error BPF1*, heating | BE2: Error BPF2, heating | BF2: Error BPF3+, heating | BG2: Error BPF4+, heating | BH2: Error BPF2, cooling | BI2: Error BPF3, cooling | BJ2: Error BPF4, cooling | BK2: Htg & Clg Provided Boundary 2 | BL2: Htg & Clg Provided Boundary 4+ | BM2: Electricity Used Boundary 2 | BN2: Electricity Used Boundary 4+ | BO2: BPFHC2 | BP2: BPFHC4+ | BQ2: Error BPFHC2 | BR2: Error BPFHC4+
A3: 3 | B3: 2 | C3: 7.949944452 | D3: 3.518829063 | E3: 11.41754017 | F3: 3.133985025 | G3: 0 | H3: 0 | I3: 8.970688685 | J3: 0 | K3: 1.894712779 | L3: 0.2046235738 | M3: 0 | N3: 0 | O3: 0 | P3: 0.1453181864 | Q3: 0.1453181864 | R3: 0.1933705183 | S3: 0.19 | T3: 0.05877364693 | U3: 0 | V3: 0 | W3: 0 | X3: 0 | Y3: 0.03518829063 | Z3: 2.795376426 | AA3: 1.375883715 | AB3: 0 | AC3: 1 | AD3: 0.1680878633 | AE3: 0.5966008336 | AF3: 3.651901777 | AG3: 0 | AH3: 0 | AI3: 0.5966008336 | AJ3: 0 | AK3: 0 | AL3: 0 | AM3: 0 | AN3: 0.01192270349 | AO3: 0.05272881631 | AP3: 1.518394834 | AQ3: 0.0553109882 | AR3: 0 | AS3: 0 | AT3: 0 | AU3: 3.651901777 | AV3: 3.651901777 | AW3: 0.5966008336 | AX3: 0.1680878633 | AY3: 0 | AZ3: 0 | BA3: 0 | BB3: 0 | BC3: 0 | BD3: 1.514163205 | BE3: 1.518394834 | BF3: 0.05272881631 | BG3: 0.01192270349 | BH3: 0 | BI3: 0 | BJ3: 0 | BK3: 1.894712779 | BL3: 2.099336352 | BM3: 0.5188290633 | BN3: 12.48951775 | BO3: 3.651901777 | BP3: 0.1680878633 | BQ3: 0.6339116353 | BR3: 0.4374910289
A4: 4 | B4: 1 | C4: 8.1 | D4: 2.730707342 | E4: 17.11909394 | F4: 3.761016949 | G4: 0 | H4: 0 | I4: 7.402882684 | J4: 0 | K4: 1.598846254 | L4: 0.1726708334 | M4: 0 | N4: 0 | O4: 0 | P4: 0.1226262052 | Q4: 0.1226262052 | R4: 0.191952276 | S4: 0.19 | T4: 0.04959592098 | U4: 0 | V4: 0 | W4: 0 | X4: 0 | Y4: 0.02730707342 | Z4: 2.730707342 | AA4: 1.771517088 | AB4: 0 | AC4: 1 | AD4: 0.1748163369 | AE4: 0.6487392699 | AF4: 0 | AG4: 0 | AH4: 0 | AI4: 0.6487392699 | AJ4: 0 | AK4: 0 | AL4: 0 | AM4: 0 | AN4: 0.01254586419 | AO4: 0.0640013151 | AP4: 0 | AQ4: 0.06652847067 | AR4: 0 | AS4: 0 | AT4: 0 | AU4: 0 | AV4: 0 | AW4: 0.6487392699 | AX4: 0.1748163369 | AY4: 0 | AZ4: 0 | BA4: 0 | BB4: 0 | BC4: 0 | BD4: 0 | BE4: 0 | BF4: 0.0640013151 | BG4: 0.01254586419 | BH4: 0 | BI4: 0 | BJ4: 0 | BK4: 1.598846254 | BL4: 1.771517088 | BM4: -0.1726708334 | BN4: 10.13359003 | BO4: 0 | BP4: 0.1748163369 | BQ4: 0 | BR4: 0
A5: 4.5 | B5: 1 | C5: 7.8 | D5: 3.199088382 | E5: -0.7007504171 | F5: 4.656336854 | G5: 0 | H5: 0 | I5: 8.993055874 | J5: 4.003624807e-07 | K5: 1.097300937 | L5: 0.1185053702 | M5: 0 | N5: 0 | O5: 0 | P5: 0.08415934274 | Q5: 0.08415934274 | R5: 0.1926743798 | S5: 0.19 | T5: 0.03403807616 | U5: 4.003624807e-07 | V5: 0 | W5: 1.245634605 | X5: 0 | Y5: 0.03199088382 | Z5: 2.88149463 | AA5: 0.8982121543 | AB5: 0 | AC5: 1 | AD5: 0.09972046605 | AE5: 0.3800476917 | AF5: 5.511616083 | AG5: 0 | AH5: 0 | AI5: 0.3800476917 | AJ5: 0 | AK5: 0 | AL5: 0 | AM5: 0 | AN5: 0.007080355526 | AO5: 0.03487120896 | AP5: 5.70411021 | AQ5: 0.03645832271 | AR5: 0 | AS5: 3111267.078 | AT5: 0 | AU5: 5.511627166 | AV5: 5.511616083 | AW5: 0.3800476917 | AX5: 0.09972046605 | AY5: 0 | AZ5: 0 | BA5: 0 | BB5: 0 | BC5: 0 | BD5: 5.70157027 | BE5: 5.70411021 | BF5: 0.03487120896 | BG5: 0.007080355526 | BH5: 0 | BI5: 0 | BJ5: 0 | BK5: 1.097300937 | BL5: 1.215806307 | BM5: 0.1990887828 | BN5: 12.19214426 | BO5: 5.511616083 | BP5: 0.09972046605 | BQ5: 2.208018327 | BR5: 0.6603219268
A6: 5 | B6: 1 | C6: 7.8 | D6: 4.248867641 | E6: -0.0205113953 | F6: 4.982907171 | G6: 0 | H6: 0 | I6: 8.98475542 | J6: 0 | K6: 2.63895875 | L6: 0.2850000151 | M6: 0 | N6: 0 | O6: 0 | P6: 0.2023993842 | Q6: 0.2023993842 | R6: 0.1946928032 | S6: 0.19 | T6: 0.08186002206 | U6: 0 | V6: 0 | W6: 0 | X6: 0 | Y6: 0.04248867641 | Z6: 2.714999985 | AA6: 1.39009111 | AB6: 0 | AC6: 1 | AD6: 0.2209492255 | AE6: 0.688173653 | AF6: 2.113081214 | AG6: 0 | AH6: 0 | AI6: 0.688173653 | AJ6: 0 | AK6: 0 | AL6: 0 | AM6: 0 | AN6: 0.01563594905 | AO6: 0.05712765648 | AP6: 0.411617136 | AQ6: 0.06028897102 | AR6: 0 | AS6: 0 | AT6: 0 | AU6: 2.113081214 | AV6: 2.113081214 | AW6: 0.688173653 | AX6: 0.2209492255 | AY6: 0 | AZ6: 0 | BA6: 0 | BB6: 0 | BC6: 0 | BD6: 0.4063646214 | BE6: 0.411617136 | BF6: 0.05712765648 | BG6: 0.01563594905 | BH6: 0 | BI6: 0 | BJ6: 0 | BK6: 2.63895875 | BL6: 2.923958765 | BM6: 1.248867641 | BN6: 13.23362306 | BO6: 2.113081214 | BP6: 0.2209492255 | BQ6: 0.2162371144 | BR6: 0.2531156411
A7: 5.5 | B7: 2 | C7: 7.999986107 | D7: 3.022210205 | E7: 9.418464854 | F7: 5.385692363 | G7: 0 | H7: 0 | I7: 7.524827303 | J7: 0 | K7: 1.087841917 | L7: 0.117483823 | M7: 0 | N7: 0 | O7: 0 | P7: 0.08343386724 | Q7: 0.08343386724 | R7: 0.1927470848 | S7: 0.19 | T7: 0.03374465906 | U7: 0 | V7: 0 | W7: 0 | X7: 0 | Y7: 0.03022210205 | Z7: 2.355991371 | AA7: 0.5871468241 | AB7: 0.04803991877 | AC7: 1 | AD7: 0.1142809759 | AE7: 0.3988226026 | AF7: 1.982453997 | AG7: 0 | AH7: 0 | AI7: 0.3988226026 | AJ7: 0 | AK7: 0 | AL7: 0 | AM7: 0 | AN7: 0.008181691061 | AO7: 0.03753816275 | AP7: 0.7587942557 | AQ7: 0.03916354576 | AR7: 0 | AS7: 0 | AT7: 0 | AU7: 1.982453997 | AV7: 1.982453997 | AW7: 0.3988226026 | AX7: 0.1142809759 | AY7: 0 | AZ7: 0 | BA7: 0 | BB7: 0 | BC7: 0 | BD7: 0.7562982499 | BE7: 0.7587942557 | BF7: 0.03753816275 | BG7: 0.008181691061 | BH7: 0 | BI7: 0 | BJ7: 0 | BK7: 1.087841917 | BL7: 1.20532574 | BM7: 0.5487350113 | BN7: 10.54703751 | BO7: 1.982453997 | BP7: 0.1142809759 | BQ7: 0.3206828755 | BR7: 0.2374908637
A8: 6 | B8: 2 | C8: 10.25008336 | D8: 2.169094261 | E8: 13.47121044 | F8: 5.866671367 | G8: 0 | H8: 0 | I8: 7.092529389 | J8: 0 | K8: 0.4969981983 | L8: 0.06019336423 | M8: 0 | N8: 0 | O8: 0 | P8: 0.04084661387 | Q8: 0.04084661387 | R8: 0.1913191608 | S8: 0.19 | T8: 0.01728922759 | U8: 0 | V8: 0 | W8: 0 | X8: 0 | Y8: 0.02169094261 | Z8: 2.169094261 | AA8: 0.5571915625 | AB8: 0 | AC8: 1 | AD8: 0.06016132631 | AE8: 0.2568775238 | AF8: 0 | AG8: 0 | AH8: 0 | AI8: 0.2568775238 | AJ8: 0 | AK8: 0 | AL8: 0 | AM8: 0 | AN8: 0.004582060726 | AO8: 0.02946119486 | AP8: 0 | AQ8: 0.030520391 | AR8: 0 | AS8: 0 | AT8: 0 | AU8: 0 | AV8: 0 | AW8: 0.2568775238 | AX8: 0.06016132631 | AY8: 0 | AZ8: 0 | BA8: 0 | BB8: 0 | BC8: 0 | BD8: 0 | BE8: 0 | BF8: 0.02946119486 | BG8: 0.004582060726 | BH8: 0 | BI8: 0 | BJ8: 0 | BK8: 0.4969981983 | BL8: 0.5571915625 | BM8: -0.06019336423 | BN8: 9.261623649 | BO8: 0 | BP8: 0.06016132631 | BQ8: 0 | BR8: 0
A9: 6.5 | B9: 36 | C9: -7.041186146 | D9: 30.48433796 | E9: 5.278085006 | F9: 6.640245319 | G9: 8.043670254 | H9: 104.7534158 | I9: 14.99377017 | J9: 1.058918631 | K9: 4.294033754 | L9: 0.4362792098 | M9: 2.403560373 | N9: 5.263185215 | O9: 0.442401864 | P9: 0.3182975573 | Q9: 5.293123099 | R9: 0.3562764585 | S9: 0.19 | T9: 0.1253116626 | U9: 0.9951845105 | V9: 0.06373412046 | W9: 52.57427692 | X9: 0.4341467112 | Y9: 0.3048433796 | Z9: 2.560837962 | AA9: 73.38800632 | AB9: 0.9303664208 | AC9: 0.931304182 | AD9: 2.517257028 | AE9: 3.555305503 | AF9: 3.829801301 | AG9: 7.809318037 | AH9: 110.5761259 | AI9: 3.802110891 | AJ9: 0 | AK9: 0 | AL9: 0 | AM9: 0 | AN9: 0.1207827455 | AO9: 0.1729420081 | AP9: 0.1930442928 | AQ9: 0.172987842 | AR9: 20.75167312 | AS9: 52.82867284 | AT9: 6.811841257 | AU9: 3.967205358 | AV9: 3.829801301 | AW9: 3.555305503 | AX9: 2.517257028 | AY9: 110.5761259 | AZ9: 110.5761259 | BA9: 7.809318037 | BB9: 0 | BC9: 0 | BD9: 0.2004446958 | BE9: 0.1930442928 | BF9: 0.1729420081 | BG9: 0.1207827455 | BH9: 20.75167312 | BI9: 20.75167312 | BJ9: 0.4407651187 | BK9: 117.0911198 | BL9: 119.9309594 | BM9: 28.54613942 | BN9: 45.47810813 | BO9: 4.101819798 | BP9: 2.637114083 | BQ9: 0.1872515292 | BR9: 0.201667721
A10: 7 | B10: 271 | C10: -6.521581914 | D10: 27.57337215 | E10: 5.332347866 | F10: 7.066200309 | G10: 7.555013474 | H10: 89.50567159 | I10: 14.02168824 | J10: 1.064724546 | K10: 3.121082756 | L10: 0.3174413062 | M10: 2.606379168 | N10: 4.495964429 | O10: 0.4155257411 | P10: 0.2314698293 | Q10: 4.510836518 | R10: 0.3278612581 | S10: 0.19 | T10: 0.0911780735 | U10: 1.015548845 | V10: 0.04917570127 | W10: 60.31582591 | X10: 0.09233735893 | Y10: 0.2757337215 | Z10: 2.669850261 | AA10: 59.97888031 | AB10: 0.5579445657 | AC10: 0.9245869419 | AD10: 2.357082704 | AE10: 3.345865797 | AF10: 3.622405292 | AG10: 7.144772163 | AH10: 94.09172368 | AI10: 3.600294719 | AJ10: 0 | AK10: 0 | AL10: 0 | AM10: 0 | AN10: 0.1128964399 | AO10: 0.1625582572 | AP10: 0.183378793 | AQ10: 0.1625896082 | AR10: 17.57006946 | AS10: 59.39234355 | AT10: 1.877702942 | AU10: 3.767446952 | AV10: 3.622405292 | AW10: 3.345865797 | AX10: 2.357082704 | AY10: 94.09172368 | AZ10: 94.09172368 | BA10: 7.144772163 | BB10: 0 | BC10: 0 | BD10: 0.191262501 | BE10: 0.183378793 | BF10: 0.1625582572 | BG10: 0.1128964399 | BH10: 17.57006946 | BI10: 17.57006946 | BJ10: 0.40471299 | BK10: 100.1817678 | BL10: 103.1055883 | BM10: 25.65080513 | BN10: 41.59506039 | BO10: 3.905599349 | BP10: 2.478794052 | BQ10: 0.1779388067 | BR10: 0.2001602261
A11: 7.5 | B11: 1041 | C11: -3.627339908 | D11: 22.30365235 | E11: 6.115487426 | F11: 7.550501461 | G11: 7.026815839 | H11: 69.55518685 | I11: 12.98705908 | J11: 1.017339829 | K11: 2.103728247 | L11: 0.2139511973 | M11: 2.77802092 | N11: 3.50553025 | O11: 0.3864748712 | P11: 0.1560129076 | Q11: 3.521106379 | R11: 0.2823454922 | S11: 0.19 | T11: 0.06145280281 | U11: 0.9428462727 | V11: 0.0744935563 | W11: 46.53446567 | X11: 0.1509039958 | Y11: 0.2230365235 | Z11: 2.784320449 | AA11: 44.93187086 | AB11: 0.6224921383 | AC11: 0.9106977116 | AD11: 2.187191242 | AE11: 3.213535635 | AF11: 3.541882977 | AG11: 6.058779777 | AH11: 77.34458899 | AI11: 3.502325391 | AJ11: 0 | AK11: 0 | AL11: 0 | AM11: 0 | AN11: 0.1047392763 | AO11: 0.1565263327 | AP11: 0.1821113228 | AQ11: 0.1565486855 | AR11: 15.05835587 | AS11: 49.35530534 | AT11: 2.025732202 | AU11: 3.711862314 | AV11: 3.541882977 | AW11: 3.213535635 | AX11: 2.187191242 | AY11: 77.34458899 | AZ11: 77.34458899 | BA11: 6.058779777 | BB11: 0 | BC11: 0 | BD11: 0.1916334884 | BE11: 0.1821113228 | BF11: 0.1565263327 | BG11: 0.1047392763 | BH11: 15.05835587 | BI11: 15.05835587 | BJ11: 0.3448204491 | BK11: 78.68573094 | BL11: 81.67770306 | BM11: 20.32272053 | BN11: 35.29071144 | BO11: 3.871810903 | BP11: 2.31442495 | BQ11: 0.1754545827 | BR11: 0.215059656
A12: 8 | B12: 2951 | C12: 0.7164643063 | D12: 18.83865841 | E12: 6.789736059 | F12: 8.038963031 | G12: 8.559467645 | H12: 56.89990718 | I12: 13.32963132 | J12: 0.9842814804 | K12: 2.023420899 | L12: 0.2059326995 | M12: 2.789410297 | N12: 2.872027469 | O12: 0.4707707205 | P12: 0.1501202507 | Q12: 2.889208695 | R12: 0.2510713574 | S12: 0.19 | T12: 0.05914966467 | U12: 0.9292558671 | V12: 0.05502561335 | W12: 39.75936754 | X12: 0.1582124502 | Y12: 0.1883865841 | Z12: 2.794013022 | AA12: 34.25461462 | AB12: 0.71374836 | AC12: 0.8731607434 | AD12: 2.031614485 | AE12: 3.14338382 | AF12: 3.528734195 | AG12: 5.062615318 | AH12: 68.56046473 | AI12: 3.55538276 | AJ12: 0 | AK12: 0 | AL12: 0 | AM12: 0 | AN12: 0.09626390045 | AO12: 0.1520482162 | AP12: 0.1829696912 | AQ12: 0.1520778647 | AR12: 13.76123251 | AS12: 42.78624322 | AT12: 2.875251007 | AU12: 3.720209417 | AV12: 3.528734195 | AW12: 3.14338382 | AX12: 2.031614485 | AY12: 68.56046473 | AZ12: 68.56046473 | BA12: 5.062615318 | BB12: 0 | BC12: 0 | BD12: 0.1939914905 | BE12: 0.1829696912 | BF12: 0.1520482162 | BG12: 0.09626390045 | BH12: 13.76123251 | BI12: 13.76123251 | BJ12: 0.2876427846 | BK12: 67.48279572 | BL12: 70.47813872 | BM12: 16.82299416 | BN12: 32.16828973 | BO12: 4.011342753 | BP12: 2.19091967 | BQ12: 0.1753887881 | BR12: 0.2316952277
A13: 8.5 | B13: 7336 | C13: 2.776545608 | D13: 15.91312047 | E13: 7.445009847 | F13: 8.521286199 | G13: 8.287019444 | H13: 47.29654335 | I13: 13.27964792 | J13: 0.9920147603 | K13: 1.916473154 | L13: 0.1973948983 | M13: 2.799357362 | N13: 2.389920522 | O13: 0.4557860694 | P13: 0.1431388992 | Q13: 2.407998369 | R13: 0.2282080168 | S13: 0.19 | T13: 0.05669736798 | U13: 0.9397980587 | V13: 0.05221670163 | W13: 34.15185142 | X13: 0.1637306541 | Y13: 0.1591312047 | Z13: 2.802348191 | AA13: 27.53113802 | AB13: 0.5105331027 | AC13: 0.8558780128 | AD13: 1.913926466 | AE13: 3.114739151 | AF13: 3.575898201 | AG13: 4.329936778 | AH13: 57.96288347 | AI13: 3.578604216 | AJ13: 0 | AK13: 0 | AL13: 0 | AM13: 0 | AN13: 0.08971372083 | AO13: 0.149784835 | AP13: 0.1877717907 | AQ13: 0.1498230217 | AR13: 11.55026107 | AS13: 36.3395637 | AT13: 3.135599319 | AU13: 3.811010478 | AV13: 3.575898201 | AW13: 3.114739151 | AX13: 1.913926466 | AY13: 57.96288347 | AZ13: 57.96288347 | BA13: 4.329936778 | BB13: 0 | BC13: 0 | BD13: 0.2018454906 | BE13: 0.1877717907 | BF13: 0.149784835 | BG13: 0.08971372083 | BH13: 11.55026107 | BI13: 11.55026107 | BJ13: 0.2460725453 | BK13: 57.50003595 | BL13: 60.49678821 | BM13: 13.90539214 | BN13: 29.1927684 | BO13: 4.135089134 | BP13: 2.072321042 | BQ13: 0.178010892 | BR13: 0.2557487077
A14: 9 | B14: 7811 | C14: 4.698165891 | D14: 12.99264568 | E14: 8.077924707 | F14: 8.977878551 | G14: 8.580242496 | H14: 38.74366431 | I14: 12.9846361 | J14: 1.008127141 | K14: 1.819531784 | L14: 0.1897635579 | M14: 2.806787508 | N14: 1.960334723 | O14: 0.4719133373 | P14: 0.1368555079 | Q14: 1.982015632 | R14: 0.2034902059 | S14: 0.19 | T14: 0.05450543231 | U14: 0.9666908824 | V14: 0.04143625843 | W14: 28.78725091 | X14: 0.1660982512 | Y14: 0.1299264568 | Z14: 2.809986863 | AA14: 21.45157568 | AB14: 0.4696444899 | AC14: 0.825404108 | AD14: 1.837171964 | AE14: 3.150850617 | AF14: 3.747174857 | AG14: 3.784737454 | AH14: 48.74726272 | AI14: 3.7240794 | AJ14: 0 | AK14: 0 | AL14: 0 | AM14: 0 | AN14: 0.0850673271 | AO14: 0.1506820009 | AP14: 0.2017951927 | AQ14: 0.1507335711 | AR14: 9.570528743 | AS14: 29.77916874 | AT14: 4.008524357 | AU14: 4.059203568 | AV14: 3.747174857 | AW14: 3.150850617 | AX14: 1.837171964 | AY14: 48.74726272 | AZ14: 48.74726272 | BA14: 3.784737454 | BB14: 0 | BC14: 0 | BD14: 0.2218459297 | BE14: 0.2017951927 | BF14: 0.1506820009 | BG14: 0.0850673271 | BH14: 9.570528743 | BI14: 9.570528743 | BJ14: 0.2154016172 | BK14: 49.14343859 | BL14: 52.13998965 | BM14: 11.0010224 | BN14: 25.97728178 | BO14: 4.467170123 | BP14: 2.00713801 | BQ14: 0.187794431 | BR14: 0.2984486476
A15: 9.5 | B15: 4714 | C15: 6.655733013 | D15: 10.31724308 | E15: 8.855596268 | F15: 9.478922024 | G15: 9.146774733 | H15: 27.42802869 | I15: 12.77237258 | J15: 1.013696479 | K15: 1.820331749 | L15: 0.1952929397 | M15: 2.779084737 | N15: 1.396167471 | O15: 0.5030726103 | P15: 0.1391449908 | Q15: 1.43039992 | R15: 0.1740863021 | S15: 0.19 | T15: 0.05609362634 | U15: 0.8495599196 | V15: 0.1641365595 | W15: 20.65280459 | X15: 0.5440457432 | Y15: 0.1031724308 | Z15: 2.804067252 | AA15: 13.22066338 | AB15: 1.450657043 | AC15: 0.7617725607 | AD15: 1.607368747 | AE15: 2.905711312 | AF15: 3.615332321 | AG15: 3.006108296 | AH15: 37.87636237 | AI15: 3.651022284 | AJ15: 0 | AK15: 0 | AL15: 0 | AM15: 0 | AN15: 0.07270519861 | AO15: 0.1368155256 | AP15: 0.2050654356 | AQ15: 0.1369090001 | AR15: 7.398608678 | AS15: 24.31000347 | AT15: 3.314592098 | AU15: 3.996833629 | AV15: 3.615332321 | AW15: 2.905711312 | AX15: 1.607368747 | AY15: 37.87636237 | AZ15: 37.87636237 | BA15: 3.006108296 | BB15: 0 | BC15: 0 | BD15: 0.2329232939 | BE15: 0.2050654356 | BF15: 0.1368155256 | BG15: 0.07270519861 | BH15: 7.398608678 | BI15: 7.398608678 | BJ15: 0.1712767273 | BK15: 38.39513518 | BL15: 41.36951285 | BM15: 8.331579372 | BN15: 23.08961567 | BO15: 4.608386173 | BP15: 1.791693437 | BQ15: 0.1856838619 | BR15: 0.3534899768
A16: 10 | B16: 3638 | C16: 9.162561749 | D16: 8.076599856 | E16: 9.564831492 | F16: 9.979127717 | G16: 10.85120802 | H16: 18.48596624 | I16: 13.24533148 | J16: 1.01637262 | K16: 2.230663135 | L16: 0.2449713659 | M16: 2.568250443 | N16: 0.9601336607 | O16: 0.5968164413 | P16: 0.1728368844 | Q16: 1.026568859 | R16: 0.1392056537 | S16: 0.19 | T16: 0.0703626679 | U16: 0.6523288584 | V16: 0.3640437611 | W16: 14.15862631 | X16: 0.9730879219 | Y16: 0.08076599856 | Z16: 2.749705793 | AA16: 7.552280134 | AB16: 3.785154102 | AC16: 0.6562574785 | AD16: 1.40317995 | AE16: 2.691093581 | AF16: 3.603565882 | AG16: 2.383318035 | AH16: 31.05931505 | AI16: 3.781058317 | AJ16: 0 | AK16: 0 | AL16: 0 | AM16: 0 | AN16: 0.06231678557 | AO16: 0.1249811684 | AP16: 0.2286058059 | AQ16: 0.1252399776 | AR16: 6.052288855 | AS16: 21.70473701 | AT16: 2.672997111 | AU16: 4.076533747 | AV16: 3.603565882 | AW16: 2.691093581 | AX16: 1.40317995 | AY16: 31.05931505 | AZ16: 31.05931505 | BA16: 2.383318035 | BB16: 0 | BC16: 0 | BD16: 0.2718960426 | BE16: 0.2286058059 | BF16: 0.1249811684 | BG16: 0.06231678557 | BH16: 6.052288855 | BI16: 6.052288855 | BJ16: 0.1354674649 | BK16: 31.5678374 | BL16: 34.38105921 | BM16: 6.098295316 | BN16: 21.32193133 | BO16: 5.176501917 | BP16: 1.612473967 | BQ16: 0.2017306816 | BR16: 0.4265578815
A17: 10.5 | B17: 4188 | C17: 11.46452979 | D17: 5.80094653 | E17: 10.35616644 | F17: 10.52546362 | G17: 10.13184684 | H17: 8.880056527 | I17: 12.19112372 | J17: 1.013071194 | K17: 1.533641015 | L17: 0.1756146069 | M17: 1.926572995 | N17: 0.4855307991 | O17: 0.5572515763 | P17: 0.1218146003 | Q17: 0.5530917602 | R17: 0.09684883711 | S17: 0.19 | T17: 0.05044145554 | U17: 0.3671369636 | V17: 0.6459342306 | W17: 7.130977844 | X17: 1.628448498 | Y17: 0.0580094653 | Z17: 2.802653042 | AA17: 3.182178073 | AB17: 6.736077449 | AC17: 0.5068591684 | AD17: 1.044720367 | AE17: 1.982108164 | AF17: 3.121459171 | AG17: 1.685287169 | AH17: 20.28045462 | AI17: 3.323697252 | AJ17: 0 | AK17: 0 | AL17: 0 | AM17: 0 | AN17: 0.04693357409 | AO17: 0.09271745159 | AP17: 0.2605845191 | AQ17: 0.0930609396 | AR17: 3.963749677 | AS17: 19.42320864 | AT17: 2.521074779 | AU17: 3.689295871 | AV17: 3.121459171 | AW17: 1.982108164 | AX17: 1.044720367 | AY17: 20.28045462 | AZ17: 20.28045462 | BA17: 1.685287169 | BB17: 0 | BC17: 0 | BD17: 0.3417920214 | BE17: 0.2605845191 | BF17: 0.09271745159 | BG17: 0.04693357409 | BH17: 3.963749677 | BI17: 3.963749677 | BJ17: 0.09634030211 | BK17: 20.54554438 | BL17: 22.64773199 | BM17: 3.835750075 | BN17: 17.99207025 | BO17: 5.356330308 | BP17: 1.258761869 | BQ17: 0.2263885217 | BR17: 0.4922804481
A18: 11 | B18: 6498 | C18: 14.65049136 | D18: 3.80596597 | E18: 10.99981661 | F18: 11.00731709 | G18: 11.44857679 | H18: 2.449657206 | I18: 11.13811569 | J18: 1.011940401 | K18: 1.002358512 | L18: 0.1177657373 | M18: 0.7635273299 | N18: 0.1327698092 | O18: 0.6296717234 | P18: 0.08086203362 | Q18: 0.1947080651 | R18: 0.05158498832 | S18: 0.19 | T18: 0.03382563277 | U18: 0.1425299011 | V18: 0.8694105004 | W18: 2.418564006 | X18: 2.027019951 | Y18: 0.0380596597 | Z18: 2.778369488 | AA18: 0.733708184 | AB18: 10.6520404 | AC18: 0.2316696948 | AD18: 0.6785288106 | AE18: 1.072494494 | AF18: 3.016793037 | AG18: 1.337801915 | AH18: 14.72477281 | AI18: 3.27567295 | AJ18: 0 | AK18: 0 | AL18: 0 | AM18: 0 | AN18: 0.03097696685 | AO18: 0.05009786844 | AP18: 0.5708614361 | AQ18: 0.05079256118 | AR18: 2.880870904 | AS18: 16.96881839 | AT18: 2.331487773 | AU18: 3.794129555 | AV18: 3.016793037 | AW18: 1.072494494 | AX18: 0.6785288106 | AY18: 14.72477281 | AZ18: 14.72477281 | BA18: 1.337801915 | BB18: 0 | BC18: 0 | BD18: 0.8868434226 | BE18: 0.5708614361 | BF18: 0.05009786844 | BG18: 0.03097696685 | BH18: 2.880870904 | BI18: 2.880870904 | BJ18: 0.07703687709 | BK18: 14.90059251 | BL18: 15.78188557 | BM18: 1.921771146 | BN18: 14.94408166 | BO18: 7.753572811 | BP18: 1.056062589 | BQ18: 0.4633586613 | BR18: 0.4993234872
A19: 11.5 | B19: 4710 | C19: 16.78997383 | D19: 3.424770683 | E19: 11.5071053 | F19: 11.46476325 | G19: 18.38942718 | H19: 0.4045906793 | I19: 12.36676845 | J19: 1.010563695 | K19: 1.256648281 | L19: 0.1507516404 | M19: 0.1994911979 | N19: 0.02192241349 | O19: 1.011418495 | P19: 0.1026873606 | Q19: 0.118853955 | R19: 0.03841877189 | S19: 0.19 | T19: 0.04330011211 | U19: 0.07909080032 | V19: 0.9314728942 | W19: 0.9347646451 | X19: 2.182887168 | Y19: 0.03424770683 | Z19: 2.772389346 | AA19: 0.07472026107 | AB19: 18.31510187 | AC19: 0.0828520583 | AD19: 0.4520810732 | AE19: 0.573317077 | AF19: 2.837992916 | AG19: 1.621334322 | AH19: 19.84107112 | AI19: 4.599632686 | AJ19: 0 | AK19: 0 | AL19: 0 | AM19: 0 | AN19: 0.02699616913 | AO19: 0.03445282871 | AP19: 1.028876219 | AQ19: 0.03659658343 | AR19: 3.886734602 | AS19: 11.81887958 | AT19: 2.343479002 | AU19: 3.311683838 | AV19: 2.837992916 | AW19: 0.573317077 | AX19: 0.4520810732 | AY19: 19.84107112 | AZ19: 19.84107112 | BA19: 1.621334322 | BB19: 0 | BC19: 0 | BD19: 1.390090668 | BE19: 1.028876219 | BF19: 0.03445282871 | BG19: 0.02699616913 | BH19: 3.886734602 | BI19: 3.886734602 | BJ19: 0.09258720418 | BK19: 20.05066614 | BL19: 20.40090898 | BM19: 1.512193391 | BN19: 15.79153913 | BO19: 13.25932665 | BP19: 1.291888574 | BQ19: 0.9663295255 | BR19: 0.6890562649
A20: 12 | B20: 2039 | C20: 19.66717301 | D20: 3.549037968 | E20: 12.0233633 | F20: 11.97129282 | G20: 34.37771827 | H20: 0.007333168466 | I20: 13.90554616 | J20: 1.003327186 | K20: 1.69024845 | L20: 0.2023673219 | M20: 0.01095989311 | N20: 0.0004164785986 | O20: 1.890774505 | P20: 0.1379516392 | Q20: 0.1380887676 | R20: 0.03715296176 | S20: 0.19 | T20: 0.0581255879 | U20: 0.08148506723 | V20: 0.9218421192 | W20: 0.9414454661 | X20: 2.204900095 | Y20: 0.03549037968 | Z20: 2.74860485 | AA20: 0.0008492920148 | AB20: 34.28237892 | AC20: 0.04705661834 | AD20: 0.4546117957 | AE20: 0.5313613405 | AF20: 2.630771605 | AG20: 2.594310175 | AH20: 35.95566867 | AI20: 7.971378804 | AJ20: 0 | AK20: 0 | AL20: 0 | AM20: 0 | AN20: 0.03309662403 | AO20: 0.0387883913 | AP20: 0.8921122537 | AQ20: 0.04202114111 | AR20: 7.090287448 | AS20: 11.55359501 | AT20: 2.391841346 | AU20: 2.838452944 | AV20: 2.630771605 | AW20: 0.5313613405 | AX20: 0.4546117957 | AY20: 35.95566867 | AZ20: 35.95566867 | BA20: 2.594310175 | BB20: 0 | BC20: 0 | BD20: 1.028973827 | BE20: 0.8921122537 | BF20: 0.0387883913 | BG20: 0.03309662403 | BH20: 7.090287448 | BI20: 7.090287448 | BJ20: 0.1470242595 | BK20: 36.07529988 | BL20: 36.2886271 | BM20: 1.601392982 | BN20: 17.45458412 | BO20: 22.52744972 | BP20: 2.079031321 | BQ20: 1.640571966 | BR20: 1.197996027
A21: 12.5 | B21: 930 | C21: 21.7228645 | D21: 3.694248129 | E21: 12.49506941 | F21: 12.46241425 | G21: 53.28881056 | H21: 0 | I21: 15.07802535 | J21: 0.990809445 | K21: 2.051491632 | L21: 0.2411204466 | M21: 0 | N21: 0 | O21: 2.930884581 | P21: 0.1655405296 | Q21: 0.1655405296 | R21: 0.03787727872 | S21: 0.19 | T21: 0.06925657555 | U21: 0.0967149834 | V21: 0.8940944616 | W21: 1.127491496 | X21: 2.130600856 | Y21: 0.03694248129 | Z21: 2.72203338 | AA21: 0.001719193888 | AB21: 52.96094186 | AC21: 0.0370704812 | AD21: 0.5390325574 | AE21: 0.6144802067 | AF21: 2.67182506 | AG21: 3.670261915 | AH21: 55.85362803 | AI21: 11.86355168 | AJ21: 0 | AK21: 0 | AL21: 0 | AM21: 0 | AN21: 0.03921634159 | AO21: 0.04480560759 | AP21: 0.7833031454 | AQ21: 0.04849857568 | AR21: 11.14245851 | AS21: 11.6578782 | AT21: 2.382970645 | AU21: 2.806056109 | AV21: 2.67182506 | AW21: 0.6144802067 | AX21: 0.5390325574 | AY21: 55.85362803 | AZ21: 55.85362803 | BA21: 3.670261915 | BB21: 0 | BC21: 0 | BD21: 0.8551562287 | BE21: 0.7833031454 | BF21: 0.04480560759 | BG21: 0.03921634159 | BH21: 11.14245851 | BI21: 11.14245851 | BJ21: 0.2070947754 | BK21: 55.34030219 | BL21: 55.58142263 | BM21: 1.721903747 | BN21: 18.77227348 | BO21: 32.13902187 | BP21: 2.960825321 | BQ21: 2.294313733 | BR21: 1.723764804
A22: 13 | B22: 464 | C22: 23.74460272 | D22: 3.718512281 | E22: 13.060503 | F22: 12.95525719 | G22: 70.90376471 | H22: 0 | I22: 16.87679486 | J22: 1.008020234 | K22: 2.089879608 | L22: 0.2448983092 | M22: 0 | N22: 0 | O22: 3.899707059 | P22: 0.1683277735 | Q22: 0.1683277735 | R22: 0.03851469913 | S22: 0.19 | T22: 0.07034168395 | U22: 0.1432781406 | V22: 0.8647420938 | W22: 1.502753736 | X22: 2.194480299 | Y22: 0.03718512281 | Z22: 2.721975613 | AA22: 0 | AB22: 70.5735437 | AC22: 0.02863098051 | AD22: 0.5556730719 | AE22: 0.6230439262 | AF22: 2.677619957 | AG22: 4.325089267 | AH22: 72.41287608 | AI22: 15.49519492 | AJ22: 0 | AK22: 0 | AL22: 0 | AM22: 0 | AN22: 0.04038422052 | AO22: 0.04537301272 | AP22: 0.7745434201 | AQ22: 0.04910252738 | AR22: 14.2181777 | AS22: 10.4883671 | AT22: 2.537728086 | AU22: 2.780432351 | AV22: 2.677619957 | AW22: 0.6230439262 | AX22: 0.5556730719 | AY22: 72.41287608 | AZ22: 72.41287608 | BA22: 4.325089267 | BB22: 0 | BC22: 0 | BD22: 0.8271230735 | BE22: 0.7745434201 | BF22: 0.04537301272 | BG22: 0.04038422052 | BH22: 14.2181777 | BI22: 14.2181777 | BJ22: 0.2428122201 | BK22: 72.99364432 | BL22: 73.23854263 | BM22: 1.759658593 | BN22: 20.59530714 | BO22: 41.48170822 | BP22: 3.556079165 | BQ22: 2.948998346 | BR22: 2.242345888
A23: 13.5 | B23: 165 | C23: 25.36498725 | D23: 3.50147533 | E23: 13.49326967 | F23: 13.46988373 | G23: 84.40457164 | H23: 0 | I23: 17.61434438 | J23: 1.011380588 | K23: 1.632136157 | L23: 0.1976363732 | M23: 0 | N23: 0 | O23: 4.64225144 | P23: 0.1341467566 | Q23: 0.1341467566 | R23: 0.03527741651 | S23: 0.19 | T23: 0.05676672634 | U23: 0.1118241767 | V23: 0.8995564117 | W23: 1.069732738 | X23: 1.814663418 | Y23: 0.0350147533 | Z23: 2.782865109 | AA23: 0 | AB23: 84.30478992 | AC23: 0.01897023026 | AD23: 0.4770469602 | AE23: 0.5197240789 | AF23: 3.021579251 | AG23: 4.884468358 | AH23: 85.06857734 | AI23: 19.1085968 | AJ23: 0 | AK23: 0 | AL23: 0 | AM23: 0 | AN23: 0.0352480505 | AO23: 0.0384569484 | AP23: 1.209781033 | AQ23: 0.04170031678 | AR23: 16.65197322 | AS23: 9.566202675 | AT23: 2.017286959 | AU23: 3.132856218 | AV23: 3.021579251 | AW23: 0.5197240789 | AX23: 0.4770469602 | AY23: 85.06857734 | AZ23: 85.06857734 | BA23: 4.884468358 | BB23: 0 | BC23: 0 | BD23: 1.293690959 | BE23: 1.209781033 | BF23: 0.0384569484 | BG23: 0.0352480505 | BH23: 16.65197322 | BI23: 16.65197322 | BJ23: 0.2737635408 | BK23: 86.0367078 | BL23: 86.23434417 | BM23: 1.532354436 | BN23: 21.11581971 | BO23: 56.14674111 | BP23: 4.08387386 | BQ23: 4.23036853 | BR23: 3.063985238
A24: 14 | B24: 110 | C24: 27.71432628 | D24: 3.438997974 | E24: 14.38210884 | F24: 13.96958823 | G24: 92.5177156 | H24: 0 | I24: 16.71324472 | J24: 0.9943983389 | K24: 1.049520095 | L24: 0.1288120662 | M24: 0 | N24: 0 | O24: 5.088474358 | P24: 0.08698111881 | Q24: 0.08698111881 | R24: 0.03747101264 | S24: 0.19 | T24: 0.03699844921 | U24: 0.06391267911 | V24: 0.9304856598 | W24: 0.5879208611 | X24: 2.19687213 | Y24: 0.03438997974 | Z24: 2.862637465 | AA24: 0 | AB24: 92.91014229 | AC24: 0.0112167479 | AD24: 0.3249257231 | AE24: 0.3415305177 | AF24: 2.288019836 | AG24: 5.59838842 | AH24: 94.09432019 | AI24: 21.13414663 | AJ24: 0 | AK24: 0 | AL24: 0 | AM24: 0 | AN24: 0.02421892448 | AO24: 0.02548221819 | AP24: 1.049363438 | AQ24: 0.02764672729 | AR24: 18.70865416 | AS24: 9.198814215 | AT24: 2.36099515 | AU24: 2.345042445 | AV24: 2.288019836 | AW24: 0.3415305177 | AX24: 0.3249257231 | AY24: 94.09432019 | AZ24: 94.09432019 | BA24: 5.59838842 | BB24: 0 | BC24: 0 | BD24: 1.098191513 | BE24: 1.049363438 | BF24: 0.02548221819 | BG24: 0.02421892448 | BH24: 18.70865416 | BI24: 18.70865416 | BJ24: 0.3144199997 | BK24: 93.5672357 | BL24: 93.69604776 | BM24: 1.441946782 | BN24: 20.15224269 | BO24: 64.8895208 | BP24: 4.649410449 | BQ24: 4.998424032 | BR24: 3.568238669
A25: 14.5 | B25: 31 | C25: 27.69208621 | D25: 3.297758945 | E25: 15.07527478 | F25: 14.37490146 | G25: 99.24062881 | H25: 0 | I25: 16.4546784 | J25: 0.9757480514 | K25: 0.9590354258 | L25: 0.1180659068 | M25: 0 | N25: 0 | O25: 5.458234585 | P25: 0.07963571287 | Q25: 0.07963571287 | R25: 0.03832277914 | S25: 0.19 | T25: 0.03391184991 | U25: 0.03309574158 | V25: 0.9426523098 | W25: 0.4879569282 | X25: 2.15382562 | Y25: 0.03297758945 | Z25: 2.868390002 | AA25: 0 | AB25: 99.56864448 | AC25: 0.009571243907 | AD25: 0.3117288529 | AE25: 0.3256937988 | AF25: 2.990983557 | AG25: 6.089433156 | AH25: 102.6900992 | AI25: 23.4743339 | AJ25: 0 | AK25: 0 | AL25: 0 | AM25: 0 | AN25: 0.02330562402 | AO25: 0.02437421075 | AP25: 1.936002862 | AQ25: 0.02644337418 | AR25: 20.77840008 | AS25: 14.74379799 | AT25: 2.284856885 | AU25: 3.080713366 | AV25: 2.990983557 | AW25: 0.3256937988 | AX25: 0.3117288529 | AY25: 102.6900992 | AZ25: 102.6900992 | BA25: 6.089433156 | BB25: 0 | BC25: 0 | BD25: 2.049866891 | BE25: 1.936002862 | BF25: 0.02437421075 | BG25: 0.02330562402 | BH25: 20.77840008 | BI25: 20.77840008 | BJ25: 0.3422201927 | BK25: 100.1996642 | BL25: 100.3177301 | BM25: 1.287051088 | BN25: 19.75243735 | BO25: 77.8521266 | BP25: 5.078751973 | BQ25: 6.35945697 | BR25: 4.288648639
A26: 15 | B26: 1 | C26: 12.79988889 | D26: 2.848290963 | E26: 34.98933037 | F26: 14.88933037 | G26: 0 | H26: 0 | I26: 7.274488472 | J26: 0 | K26: 0 | L26: 0 | M26: 0 | N26: 0 | O26: 0 | P26: 0 | Q26: 0 | R26: 0.1921230755 | S26: 0.19 | T26: 0 | U26: 0 | V26: 0 | W26: 0 | X26: 0 | Y26: 0.02848290963 | Z26: 2.848290963 | AA26: 0 | AB26: 0 | AC26: 0 | AD26: 0 | AE26: 0 | AF26: 0 | AG26: 0 | AH26: 0 | AI26: 0 | AJ26: 0 | AK26: 0 | AL26: 0 | AM26: 0 | AN26: 0 | AO26: 0 | AP26: 0 | AQ26: 0 | AR26: 0 | AS26: 0 | AT26: 0 | AU26: 0 | AV26: 0 | AW26: 0 | AX26: 0 | AY26: 0 | AZ26: 0 | BA26: 0 | BB26: 0 | BC26: 0 | BD26: 0 | BE26: 0 | BF26: 0 | BG26: 0 | BH26: 0 | BI26: 0 | BJ26: 0 | BK26: 0 | BL26: 0 | BM26: 0 | BN26: 10.12277943 | BO26: 0 | BP26: 0 | BQ26: 0 | BR26: 0
A27: 15.5 | B27: 5 | C27: 12.41998891 | D27: 3.160021049 | E27: 34.40524482 | F27: 15.5341196 | G27: 0 | H27: 0 | I27: 7.276423028 | J27: 0 | K27: 0.09582688921 | L27: 0.01163888889 | M27: 0 | N27: 0 | O27: 0 | P27: 0.007889326002 | Q27: 0.007889326002 | R27: 0.1926806465 | S27: 0.19 | T27: 0.003343016318 | U27: 0 | V27: 0 | W27: 0 | X27: 0 | Y27: 0.03160021049 | Z27: 2.915198136 | AA27: 0.1034324503 | AB27: 0.2407895849 | AC27: 1 | AD27: 0.01029716418 | AE27: 0.0340079311 | AF27: 0.4109496339 | AG27: 0 | AH27: 0 | AI27: 0.0340079311 | AJ27: 0 | AK27: 0 | AL27: 0 | AM27: 0 | AN27: 0.0007794785866 | AO27: 0.003245446407 | AP27: 0.3587758106 | AQ27: 0.003413516502 | AR27: 0 | AS27: 0 | AT27: 0 | AU27: 0.4109496339 | AV27: 0.4109496339 | AW27: 0.0340079311 | AX27: 0.01029716418 | AY27: 0 | AZ27: 0 | BA27: 0 | BB27: 0 | BC27: 0 | BD27: 0.3584892611 | BE27: 0.3587758106 | BF27: 0.003245446407 | BG27: 0.0007794785866 | BH27: 0 | BI27: 0 | BJ27: 0 | BK27: 0.09582688921 | BL27: 0.1074657781 | BM27: 0.2331840238 | BN27: 10.43644408 | BO27: 0.4109496339 | BP27: 0.01029716418 | BQ27: 0.1400419701 | BR27: 0.05385910343
A28: 16 | B28: 1 | C28: 12.39994444 | D28: 2.916276185 | E28: 36.47243067 | F28: 16.17226754 | G28: 0 | H28: 0 | I28: 7.297229738 | J28: 0 | K28: 0 | L28: 0 | M28: 0 | N28: 0 | O28: 0 | P28: 0 | Q28: 0 | R28: 0.1922250418 | S28: 0.19 | T28: 0 | U28: 0 | V28: 0 | W28: 0 | X28: 0 | Y28: 0.02916276185 | Z28: 2.916276185 | AA28: 0 | AB28: 0 | AC28: 0 | AD28: 0 | AE28: 0 | AF28: 0 | AG28: 0 | AH28: 0 | AI28: 0 | AJ28: 0 | AK28: 0 | AL28: 0 | AM28: 0 | AN28: 0 | AO28: 0 | AP28: 0 | AQ28: 0 | AR28: 0 | AS28: 0 | AT28: 0 | AU28: 0 | AV28: 0 | AW28: 0 | AX28: 0 | AY28: 0 | AZ28: 0 | BA28: 0 | BB28: 0 | BC28: 0 | BD28: 0 | BE28: 0 | BF28: 0 | BG28: 0 | BH28: 0 | BI28: 0 | BJ28: 0 | BK28: 0 | BL28: 0 | BM28: 0 | BN28: 10.21350592 | BO28: 0 | BP28: 0 | BQ28: 0 | BR28: 0
A29: 16.5 | B29: 1 | C29: 12.10016667 | D29: 2.902081842 | E29: 35.92561702 | F29: 16.39268085 | G29: 0 | H29: 0 | I29: 7.383922642 | J29: 0 | K29: 0 | L29: 0 | M29: 0 | N29: 0 | O29: 0 | P29: 0 | Q29: 0 | R29: 0.1922035585 | S29: 0.19 | T29: 0 | U29: 0 | V29: 0 | W29: 0 | X29: 0 | Y29: 0.02902081842 | Z29: 2.902081842 | AA29: 0 | AB29: 0 | AC29: 0 | AD29: 0 | AE29: 0 | AF29: 0 | AG29: 0 | AH29: 0 | AI29: 0 | AJ29: 0 | AK29: 0 | AL29: 0 | AM29: 0 | AN29: 0 | AO29: 0 | AP29: 0 | AQ29: 0 | AR29: 0 | AS29: 0 | AT29: 0 | AU29: 0 | AV29: 0 | AW29: 0 | AX29: 0 | AY29: 0 | AZ29: 0 | BA29: 0 | BB29: 0 | BC29: 0 | BD29: 0 | BE29: 0 | BF29: 0 | BG29: 0 | BH29: 0 | BI29: 0 | BJ29: 0 | BK29: 0 | BL29: 0 | BM29: 0 | BN29: 10.28600448 | BO29: 0 | BP29: 0 | BQ29: 0 | BR29: 0
A30: 17 | B30: 4 | C30: 9.875097207 | D30: 3.192512188 | E30: 33.11169429 | F30: 17.00649248 | G30: 0 | H30: 0 | I30: 7.296658371 | J30: 0 | K30: 0 | L30: 0 | M30: 0 | N30: 0 | O30: 0 | P30: 0 | Q30: 0 | R30: 0.1927478684 | S30: 0.19 | T30: 0 | U30: 0 | V30: 0 | W30: 0 | X30: 0 | Y30: 0.03192512188 | Z30: 2.894111873 | AA30: 0 | AB30: 0.2984003144 | AC30: 0 | AD30: 0 | AE30: 0 | AF30: 0 | AG30: 0 | AH30: 0 | AI30: 0 | AJ30: 0 | AK30: 0 | AL30: 0 | AM30: 0 | AN30: 0 | AO30: 0 | AP30: 0 | AQ30: 0 | AR30: 0 | AS30: 0 | AT30: 0 | AU30: 0 | AV30: 0 | AW30: 0 | AX30: 0 | AY30: 0 | AZ30: 0 | BA30: 0 | BB30: 0 | BC30: 0 | BD30: 0 | BE30: 0 | BF30: 0 | BG30: 0 | BH30: 0 | BI30: 0 | BJ30: 0 | BK30: 0 | BL30: 0 | BM30: 0.2984003144 | BN30: 10.48917056 | BO30: 0 | BP30: 0 | BQ30: 0 | BR30: 0
A31: 17.5 | B31: 5 | C31: 10.26005555 | D31: 2.921430572 | E31: 35.63738163 | F31: 17.43722399 | G31: 0 | H31: 0 | I31: 7.17344132 | J31: 0 | K31: 0.007196763156 | L31: 0.0008729166667 | M31: 0 | N31: 0 | O31: 0 | P31: 0.0005919955378 | Q31: 0.0005919955378 | R31: 0.1922334357 | S31: 0.19 | T31: 0.0002507262238 | U31: 0 | V31: 0 | W31: 0 | X31: 0 | Y31: 0.02921430572 | Z31: 2.921430572 | AA31: 0.008069679822 | AB31: 0 | AC31: 1 | AD31: 0.0007993840743 | AE31: 0.002762235701 | AF31: 0 | AG31: 0 | AH31: 0 | AI31: 0.002762235701 | AJ31: 0 | AK31: 0 | AL31: 0 | AM31: 0 | AN31: 6.058668382e-05 | AO31: 0.0002722105573 | AP31: 0 | AQ31: 0.0002854193261 | AR31: 0 | AS31: 0 | AT31: 0 | AU31: 0 | AV31: 0 | AW31: 0.002762235701 | AX31: 0.0007993840743 | AY31: 0 | AZ31: 0 | BA31: 0 | BB31: 0 | BC31: 0 | BD31: 0 | BE31: 0 | BF31: 0.0002722105573 | BG31: 6.058668382e-05 | BH31: 0 | BI31: 0 | BJ31: 0 | BK31: 0.007196763156 | BL31: 0.008069679822 | BM31: -0.0008729166667 | BN31: 10.09487189 | BO31: 0 | BP31: 0.0007993840743 | BQ31: 0 | BR31: 0
A32: 18 | B32: 13 | C32: 9.654061942 | D32: 3.027226572 | E32: 34.93014833 | F32: 17.99173172 | G32: 0 | H32: 0 | I32: 6.954329787 | J32: 0 | K32: 0.07104496961 | L32: 0.008617254274 | M32: 0 | N32: 0 | O32: 0 | P32: 0.005844058514 | Q32: 0.005844058514 | R32: 0.1924301519 | S32: 0.19 | T32: 0.002475117851 | U32: 0 | V32: 0 | W32: 0 | X32: 0 | Y32: 0.03027226572 | Z32: 2.897207712 | AA32: 0 | AB32: 0.05035663699 | AC32: 1 | AD32: 0.007980942151 | AE32: 0.02631524994 | AF32: 0.5852061731 | AG32: 0 | AH32: 0 | AI32: 0.02631524994 | AJ32: 0 | AK32: 0 | AL32: 0 | AM32: 0 | AN32: 0.000605364984 | AO32: 0.002554403996 | AP32: 0.9765375375 | AQ32: 0.002682066469 | AR32: 0 | AS32: 0 | AT32: 0 | AU32: 0.5852061731 | AV32: 0.5852061731 | AW32: 0.02631524994 | AX32: 0.007980942151 | AY32: 0 | AZ32: 0 | BA32: 0 | BB32: 0 | BC32: 0 | BD32: 0.9763246886 | BE32: 0.9765375375 | BF32: 0.002554403996 | BG32: 0.000605364984 | BH32: 0 | BI32: 0 | BJ32: 0 | BK32: 0.07104496961 | BL32: 0.07966222389 | BM32: 0.1214016066 | BN32: 9.98155636 | BO32: 0.5852061731 | BP32: 0.007980942151 | BQ32: 0.3743882845 | BR32: 0.0766168044
A33: 18.5 | B33: 11 | C33: 10.15433842 | D33: 2.957044627 | E33: 34.90222349 | F33: 18.50622013 | G33: 0 | H33: 0 | I33: 7.181654011 | J33: 0 | K33: 0.3056042889 | L33: 0.03701651111 | M33: 0 | N33: 0 | O33: 0 | P33: 0.02511671477 | Q33: 0.02511671477 | R33: 0.1922982322 | S33: 0.19 | T33: 0.01063218335 | U33: 0 | V33: 0 | W33: 0 | X33: 0 | Y33: 0.02957044627 | Z33: 2.88111357 | AA33: 0.2666897433 | AB33: 0 | AC33: 1 | AD33: 0.03379337056 | AE33: 0.1158659551 | AF33: 7.853214884 | AG33: 0 | AH33: 0 | AI33: 0.1158659551 | AJ33: 0 | AK33: 0 | AL33: 0 | AM33: 0 | AN33: 0.002558884526 | AO33: 0.01135426004 | AP33: 40.8624954 | AQ33: 0.01190996037 | AR33: 0 | AS33: 0 | AT33: 0 | AU33: 7.853214884 | AV33: 7.853214884 | AW33: 0.1158659551 | AX33: 0.03379337056 | AY33: 0 | AZ33: 0 | BA33: 0 | BB33: 0 | BC33: 0 | BD33: 40.86158198 | BE33: 40.8624954 | BF33: 0.01135426004 | BG33: 0.002558884526 | BH33: 0 | BI33: 0 | BJ33: 0 | BK33: 0.3056042889 | BL33: 0.3426208 | BM33: 0.03891454563 | BN33: 10.13869864 | BO33: 7.853214884 | BP33: 0.03379337056 | BQ33: 15.57014593 | BR33: 1.027096579
A34: 19 | B34: 7 | C34: 11.25719045 | D34: 2.964406244 | E34: 37.00718415 | F34: 18.98046429 | G34: 0 | H34: 0 | I34: 6.97302039 | J34: 0 | K34: 0.137197169 | L34: 0.01661809312 | M34: 0 | N34: 0 | O34: 0 | P34: 0.0112758305 | Q34: 0.0112758305 | R34: 0.1923123987 | S34: 0.19 | T34: 0.004773183849 | U34: 0 | V34: 0 | W34: 0 | X34: 0 | Y34: 0.02964406244 | Z34: 2.887913714 | AA34: 0.1530911032 | AB34: 0.0757683704 | AC34: 1 | AD34: 0.01547837964 | AE34: 0.05188737624 | AF34: 2.291414797 | AG34: 0 | AH34: 0 | AI34: 0.05188737624 | AJ34: 0 | AK34: 0 | AL34: 0 | AM34: 0 | AN34: 0.001173555158 | AO34: 0.005079300082 | AP34: 7.742544728 | AQ34: 0.005328407021 | AR34: 0 | AS34: 0 | AT34: 0 | AU34: 2.291414797 | AV34: 2.291414797 | AW34: 0.05188737624 | AX34: 0.01547837964 | AY34: 0 | AZ34: 0 | BA34: 0 | BB34: 0 | BC34: 0 | BD34: 7.742134306 | BE34: 7.742544728 | BF34: 0.005079300082 | BG34: 0.001173555158 | BH34: 0 | BI34: 0 | BJ34: 0 | BK34: 0.137197169 | BL34: 0.1538152621 | BM34: 0.05987443616 | BN34: 9.937426633 | BO34: 2.291414797 | BP34: 0.01547837964 | BQ34: 2.952886799 | BR34: 0.2996819554
A35: 19.5 | B35: 1 | C35: 8.699972222 | D35: 3.988754463 | E35: 21.59949916 | F35: 19.28597663 | G35: 0 | H35: 0 | I35: 7.658387268 | J35: 0 | K35: 2.812137249 | L35: 0.3406218875 | M35: 0 | N35: 0 | O35: 0 | P35: 0.2311212629 | Q35: 0.2311212629 | R35: 0.1941417426 | S35: 0.19 | T35: 0.09783618859 | U35: 0 | V35: 0 | W35: 0 | X35: 0 | Y35: 0.03988754463 | Z35: 2.659378112 | AA35: 1.823382786 | AB35: 0 | AC35: 1 | AD35: 0.2706895142 | AE35: 0.7904119357 | AF35: 2.844120915 | AG35: 0 | AH35: 0 | AI35: 0.7904119357 | AJ35: 0 | AK35: 0 | AL35: 0 | AM35: 0 | AN35: 0.0203501087 | AO35: 0.06955174552 | AP35: 0.6983950378 | AQ35: 0.07375003948 | AR35: 0 | AS35: 0 | AT35: 0 | AU35: 2.844120915 | AV35: 2.844120915 | AW35: 0.7904119357 | AX35: 0.2706895142 | AY35: 0 | AZ35: 0 | BA35: 0 | BB35: 0 | BC35: 0 | BD35: 0.6913499401 | BE35: 0.6983950378 | BF35: 0.06955174552 | BG35: 0.0203501087 | BH35: 0 | BI35: 0 | BJ35: 0 | BK35: 2.812137249 | BL35: 3.152759137 | BM35: 0.9887544634 | BN35: 11.64714173 | BO35: 2.844120915 | BP35: 0.2706895142 | BQ35: 0.3429935471 | BR35: 0.3719329508
K38: =CELL("filename") -> /Users/signhildgehlin/Dropbox/Gehlin-Spitler_collaboration/Studenthuset/studenthuset data detailed excel files/2021_update/20211208_Results/[BinResultsHPEFT_V2.xlsm]Plot (2)
AI44: Figure 9 for B&W

Sheet Plot (2)
A2: HP EFT / BH ExFT (°C) | B2: Count | C2: ODA Temperature (°C) | D2: EL 007 (kW) | E2: GHE EFT (°C) | F2: GHE ExFT (°C) | G2: Clg Provided (kW) | H2: Bldg Htg Provided (kW) | I2: EL 003 (kW) | J2: CP Energy (kW) | K2: DHW Provided by HP (kW) | L2: DHW by LPS (kW) | M2: Useful Bldg Htg by LPS (kW) | N2: Bldg Htg Uncertainty (kW) | O2: Bldg Clg Uncertainty (kW) | P2: DHW Htg by HP Uncertainty (kW) | Q2: Bldg + DHW Htg by HP Uncertainty (kW) | R2: EL007+EL011 Uncertainty (kW) | S2: EL011 Uncertainty (kW) | T2: LPS DHW Uncertainty (kW) | U2: CP Power for Heat Extraction from GHE (kW) | V2: CP Power for Heat Rejection to GHE (kW) | W2: Heat Extraction by GHE (kW) | X2: Heat Rejection to GHE (kW) | Y2: EL007 Uncertainty (kW) | Z2: LPS Electricity going to bldg heat (kW) | AA2: Alt Calc GHE Heat Extraction (kW) | AB2: Alt Calc GHE Heat Extraction (kW) | AC2: HtgFrac | AD2: COP H4 | AE2: COP H3 | AF2: COP H2 | AG2: COP C3 | AH2: COP C2 | AI2: Overall (H+C) COP | AJ2: Not used | AK2: Not used | AL2: Not used | AM2: Not used | AN2: Error COP H4 | AO2: Error COP H3 | AP2: Error COP H2 | AQ2: Error COP H3b | AR2: Error COP C2 | AS2: BPF0, heating | AT2: BPF0, cooling | AU2: BPF1*, heating | AV2: BPF2, heating | AW2: BPF3+, heating | AX2: BPF4+, heating | AY2: BPF2, cooling | AZ2: BPF3, cooling | BA2: BPF4, cooling | BB2: Error BPF0, heating | BC2: Error BPF0, cooling | BD2: Error BPF1*, heating | BE2: Error BPF2, heating | BF2: Error BPF3+, heating | BG2: Error BPF4+, heating | BH2: Error BPF2, cooling | BI2: Error BPF3, cooling | BJ2: Error BPF4, cooling | BK2: Htg & Clg Provided Boundary 2 | BL2: Htg & Clg Provided Boundary 4+ | BM2: Electricity Used Boundary 2 | BN2: Electricity Used Boundary 4+ | BO2: BPFHC2 | BP2: BPFHC4+ | BQ2: Error BPFHC2 | BR2: Error BPFHC4+ | BU2: BPF2* w/all CP power allocated to cooling | BV2: BPF4* w/all pumping power allocated to cooling | BW2: Difference BPF2* | BX2: Difference BPF2*
A3: 6.5 | B3: 36 | C3: -7.041186146 | D3: 30.48433796 | E3: 5.278085006 | F3: 6.640245319 | G3: 8.043670254 | H3: 104.7534158 | I3: 14.99377017 | J3: 1.058918631 | K3: 4.294033754 | L3: 0.4362792098 | M3: 2.403560373 | N3: 5.263185215 | O3: 0.442401864 | P3: 0.3182975573 | Q3: 5.293123099 | R3: 0.3562764585 | S3: 0.19 | T3: 0.1253116626 | U3: 0.9951845105 | V3: 0.06373412046 | W3: 52.57427692 | X3: 0.4341467112 | Y3: 0.3048433796 | Z3: 2.560837962 | AA3: 73.38800632 | AB3: 0.9303664208 | AC3: 0.931304182 | AD3: 2.517257028 | AE3: 3.555305503 | AF3: 3.829801301 | AG3: 7.809318037 | AH3: 110.5761259 | AI3: 3.802110891 | AJ3: 0 | AK3: 0 | AL3: 0 | AM3: 0 | AN3: 0.1207827455 | AO3: 0.1729420081 | AP3: 0.1930442928 | AQ3: 0.172987842 | AR3: 20.75167312 | AS3: 52.82867284 | AT3: 6.811841257 | AU3: 3.967205358 | AV3: 3.829801301 | AW3: 3.555305503 | AX3: 2.517257028 | AY3: 110.5761259 | AZ3: 110.5761259 | BA3: 7.809318037 | BB3: 0 | BC3: 0 | BD3: 0.2004446958 | BE3: 0.1930442928 | BF3: 0.1729420081 | BG3: 0.1207827455 | BH3: 20.75167312 | BI3: 20.75167312 | BJ3: 0.4407651187 | BK3: 117.0911198 | BL3: 119.9309594 | BM3: 28.54613942 | BN3: 45.47810813 | BO3: 4.101819798 | BP3: 2.637114083 | BQ3: 0.1872515292 | BR3: 0.201667721 | BU3: =G3/J3 -> 7.596117415 | BV3: =G3/(I3) -> 0.5364674903 | BW3: =(BU3-AY3)/AY3 -> -0.931304182 | BX3: =(BV3-BA3)/BA3 -> -0.931304182
A4: 7 | B4: 271 | C4: -6.521581914 | D4: 27.57337215 | E4: 5.332347866 | F4: 7.066200309 | G4: 7.555013474 | H4: 89.50567159 | I4: 14.02168824 | J4: 1.064724546 | K4: 3.121082756 | L4: 0.3174413062 | M4: 2.606379168 | N4: 4.495964429 | O4: 0.4155257411 | P4: 0.2314698293 | Q4: 4.510836518 | R4: 0.3278612581 | S4: 0.19 | T4: 0.0911780735 | U4: 1.015548845 | V4: 0.04917570127 | W4: 60.31582591 | X4: 0.09233735893 | Y4: 0.2757337215 | Z4: 2.669850261 | AA4: 59.97888031 | AB4: 0.5579445657 | AC4: 0.9245869419 | AD4: 2.357082704 | AE4: 3.345865797 | AF4: 3.622405292 | AG4: 7.144772163 | AH4: 94.09172368 | AI4: 3.600294719 | AJ4: 0 | AK4: 0 | AL4: 0 | AM4: 0 | AN4: 0.1128964399 | AO4: 0.1625582572 | AP4: 0.183378793 | AQ4: 0.1625896082 | AR4: 17.57006946 | AS4: 59.39234355 | AT4: 1.877702942 | AU4: 3.767446952 | AV4: 3.622405292 | AW4: 3.345865797 | AX4: 2.357082704 | AY4: 94.09172368 | AZ4: 94.09172368 | BA4: 7.144772163 | BB4: 0 | BC4: 0 | BD4: 0.191262501 | BE4: 0.183378793 | BF4: 0.1625582572 | BG4: 0.1128964399 | BH4: 17.57006946 | BI4: 17.57006946 | BJ4: 0.40471299 | BK4: 100.1817678 | BL4: 103.1055883 | BM4: 25.65080513 | BN4: 41.59506039 | BO4: 3.905599349 | BP4: 2.478794052 | BQ4: 0.1779388067 | BR4: 0.2001602261 | BU4: =G4/J4 -> 7.095744622 | BV4: =G4/(I4) -> 0.538809118 | BW4: =(BU4-AY4)/AY4 -> -0.9245869419 | BX4: =(BV4-BA4)/BA4 -> -0.9245869419
A5: 7.5 | B5: 1041 | C5: -3.627339908 | D5: 22.30365235 | E5: 6.115487426 | F5: 7.550501461 | G5: 7.026815839 | H5: 69.55518685 | I5: 12.98705908 | J5: 1.017339829 | K5: 2.103728247 | L5: 0.2139511973 | M5: 2.77802092 | N5: 3.50553025 | O5: 0.3864748712 | P5: 0.1560129076 | Q5: 3.521106379 | R5: 0.2823454922 | S5: 0.19 | T5: 0.06145280281 | U5: 0.9428462727 | V5: 0.0744935563 | W5: 46.53446567 | X5: 0.1509039958 | Y5: 0.2230365235 | Z5: 2.784320449 | AA5: 44.93187086 | AB5: 0.6224921383 | AC5: 0.9106977116 | AD5: 2.187191242 | AE5: 3.213535635 | AF5: 3.541882977 | AG5: 6.058779777 | AH5: 77.34458899 | AI5: 3.502325391 | AJ5: 0 | AK5: 0 | AL5: 0 | AM5: 0 | AN5: 0.1047392763 | AO5: 0.1565263327 | AP5: 0.1821113228 | AQ5: 0.1565486855 | AR5: 15.05835587 | AS5: 49.35530534 | AT5: 2.025732202 | AU5: 3.711862314 | AV5: 3.541882977 | AW5: 3.213535635 | AX5: 2.187191242 | AY5: 77.34458899 | AZ5: 77.34458899 | BA5: 6.058779777 | BB5: 0 | BC5: 0 | BD5: 0.1916334884 | BE5: 0.1821113228 | BF5: 0.1565263327 | BG5: 0.1047392763 | BH5: 15.05835587 | BI5: 15.05835587 | BJ5: 0.3448204491 | BK5: 78.68573094 | BL5: 81.67770306 | BM5: 20.32272053 | BN5: 35.29071144 | BO5: 3.871810903 | BP5: 2.31442495 | BQ5: 0.1754545827 | BR5: 0.215059656 | BU5: 6.907048794 | BV5: 0.5410628992 | BW5: -0.9106977116 | BX5: -0.9106977116
A6: 8 | B6: 2951 | C6: 0.7164643063 | D6: 18.83865841 | E6: 6.789736059 | F6: 8.038963031 | G6: 8.559467645 | H6: 56.89990718 | I6: 13.32963132 | J6: 0.9842814804 | K6: 2.023420899 | L6: 0.2059326995 | M6: 2.789410297 | N6: 2.872027469 | O6: 0.4707707205 | P6: 0.1501202507 | Q6: 2.889208695 | R6: 0.2510713574 | S6: 0.19 | T6: 0.05914966467 | U6: 0.9292558671 | V6: 0.05502561335 | W6: 39.75936754 | X6: 0.1582124502 | Y6: 0.1883865841 | Z6: 2.794013022 | AA6: 34.25461462 | AB6: 0.71374836 | AC6: 0.8731607434 | AD6: 2.031614485 | AE6: 3.14338382 | AF6: 3.528734195 | AG6: 5.062615318 | AH6: 68.56046473 | AI6: 3.55538276 | AJ6: 0 | AK6: 0 | AL6: 0 | AM6: 0 | AN6: 0.09626390045 | AO6: 0.1520482162 | AP6: 0.1829696912 | AQ6: 0.1520778647 | AR6: 13.76123251 | AS6: 42.78624322 | AT6: 2.875251007 | AU6: 3.720209417 | AV6: 3.528734195 | AW6: 3.14338382 | AX6: 2.031614485 | AY6: 68.56046473 | AZ6: 68.56046473 | BA6: 5.062615318 | BB6: 0 | BC6: 0 | BD6: 0.1939914905 | BE6: 0.1829696912 | BF6: 0.1520482162 | BG6: 0.09626390045 | BH6: 13.76123251 | BI6: 13.76123251 | BJ6: 0.2876427846 | BK6: 67.48279572 | BL6: 70.47813872 | BM6: 16.82299416 | BN6: 32.16828973 | BO6: 4.011342753 | BP6: 2.19091967 | BQ6: 0.1753887881 | BR6: 0.2316952277 | BU6: 8.696158381 | BV6: 0.6421383635 | BW6: -0.8731607434 | BX6: -0.8731607434
A7: 8.5 | B7: 7336 | C7: 2.776545608 | D7: 15.91312047 | E7: 7.445009847 | F7: 8.521286199 | G7: 8.287019444 | H7: 47.29654335 | I7: 13.27964792 | J7: 0.9920147603 | K7: 1.916473154 | L7: 0.1973948983 | M7: 2.799357362 | N7: 2.389920522 | O7: 0.4557860694 | P7: 0.1431388992 | Q7: 2.407998369 | R7: 0.2282080168 | S7: 0.19 | T7: 0.05669736798 | U7: 0.9397980587 | V7: 0.05221670163 | W7: 34.15185142 | X7: 0.1637306541 | Y7: 0.1591312047 | Z7: 2.802348191 | AA7: 27.53113802 | AB7: 0.5105331027 | AC7: 0.8558780128 | AD7: 1.913926466 | AE7: 3.114739151 | AF7: 3.575898201 | AG7: 4.329936778 | AH7: 57.96288347 | AI7: 3.578604216 | AJ7: 0 | AK7: 0 | AL7: 0 | AM7: 0 | AN7: 0.08971372083 | AO7: 0.149784835 | AP7: 0.1877717907 | AQ7: 0.1498230217 | AR7: 11.55026107 | AS7: 36.3395637 | AT7: 3.135599319 | AU7: 3.811010478 | AV7: 3.575898201 | AW7: 3.114739151 | AX7: 1.913926466 | AY7: 57.96288347 | AZ7: 57.96288347 | BA7: 4.329936778 | BB7: 0 | BC7: 0 | BD7: 0.2018454906 | BE7: 0.1877717907 | BF7: 0.149784835 | BG7: 0.08971372083 | BH7: 11.55026107 | BI7: 11.55026107 | BJ7: 0.2460725453 | BK7: 57.50003595 | BL7: 60.49678821 | BM7: 13.90539214 | BN7: 29.1927684 | BO7: 4.135089134 | BP7: 2.072321042 | BQ7: 0.178010892 | BR7: 0.2557487077 | BU7: 8.353725948 | BV7: 0.6240390928 | BW7: -0.8558780128 | BX7: -0.8558780128
A8: 9 | B8: 7811 | C8: 4.698165891 | D8: 12.99264568 | E8: 8.077924707 | F8: 8.977878551 | G8: 8.580242496 | H8: 38.74366431 | I8: 12.9846361 | J8: 1.008127141 | K8: 1.819531784 | L8: 0.1897635579 | M8: 2.806787508 | N8: 1.960334723 | O8: 0.4719133373 | P8: 0.1368555079 | Q8: 1.982015632 | R8: 0.2034902059 | S8: 0.19 | T8: 0.05450543231 | U8: 0.9666908824 | V8: 0.04143625843 | W8: 28.78725091 | X8: 0.1660982512 | Y8: 0.1299264568 | Z8: 2.809986863 | AA8: 21.45157568 | AB8: 0.4696444899 | AC8: 0.825404108 | AD8: 1.837171964 | AE8: 3.150850617 | AF8: 3.747174857 | AG8: 3.784737454 | AH8: 48.74726272 | AI8: 3.7240794 | AJ8: 0 | AK8: 0 | AL8: 0 | AM8: 0 | AN8: 0.0850673271 | AO8: 0.1506820009 | AP8: 0.2017951927 | AQ8: 0.1507335711 | AR8: 9.570528743 | AS8: 29.77916874 | AT8: 4.008524357 | AU8: 4.059203568 | AV8: 3.747174857 | AW8: 3.150850617 | AX8: 1.837171964 | AY8: 48.74726272 | AZ8: 48.74726272 | BA8: 3.784737454 | BB8: 0 | BC8: 0 | BD8: 0.2218459297 | BE8: 0.2017951927 | BF8: 0.1506820009 | BG8: 0.0850673271 | BH8: 9.570528743 | BI8: 9.570528743 | BJ8: 0.2154016172 | BK8: 49.14343859 | BL8: 52.13998965 | BM8: 11.0010224 | BN8: 25.97728178 | BO8: 4.467170123 | BP8: 2.00713801 | BQ8: 0.187794431 | BR8: 0.2984486476 | BU8: 8.511071817 | BV8: 0.6607996119 | BW8: -0.825404108 | BX8: -0.825404108
A9: 9.5 | B9: 4714 | C9: 6.655733013 | D9: 10.31724308 | E9: 8.855596268 | F9: 9.478922024 | G9: 9.146774733 | H9: 27.42802869 | I9: 12.77237258 | J9: 1.013696479 | K9: 1.820331749 | L9: 0.1952929397 | M9: 2.779084737 | N9: 1.396167471 | O9: 0.5030726103 | P9: 0.1391449908 | Q9: 1.43039992 | R9: 0.1740863021 | S9: 0.19 | T9: 0.05609362634 | U9: 0.8495599196 | V9: 0.1641365595 | W9: 20.65280459 | X9: 0.5440457432 | Y9: 0.1031724308 | Z9: 2.804067252 | AA9: 13.22066338 | AB9: 1.450657043 | AC9: 0.7617725607 | AD9: 1.607368747 | AE9: 2.905711312 | AF9: 3.615332321 | AG9: 3.006108296 | AH9: 37.87636237 | AI9: 3.651022284 | AJ9: 0 | AK9: 0 | AL9: 0 | AM9: 0 | AN9: 0.07270519861 | AO9: 0.1368155256 | AP9: 0.2050654356 | AQ9: 0.1369090001 | AR9: 7.398608678 | AS9: 24.31000347 | AT9: 3.314592098 | AU9: 3.996833629 | AV9: 3.615332321 | AW9: 2.905711312 | AX9: 1.607368747 | AY9: 37.87636237 | AZ9: 37.87636237 | BA9: 3.006108296 | BB9: 0 | BC9: 0 | BD9: 0.2329232939 | BE9: 0.2050654356 | BF9: 0.1368155256 | BG9: 0.07270519861 | BH9: 7.398608678 | BI9: 7.398608678 | BJ9: 0.1712767273 | BK9: 38.39513518 | BL9: 41.36951285 | BM9: 8.331579372 | BN9: 23.08961567 | BO9: 4.608386173 | BP9: 1.791693437 | BQ9: 0.1856838619 | BR9: 0.3534899768 | BU9: 9.023188816 | BV9: 0.7161374815 | BW9: -0.7617725607 | BX9: -0.7617725607
A10: 10 | B10: 3638 | C10: 9.162561749 | D10: 8.076599856 | E10: 9.564831492 | F10: 9.979127717 | G10: 10.85120802 | H10: 18.48596624 | I10: 13.24533148 | J10: 1.01637262 | K10: 2.230663135 | L10: 0.2449713659 | M10: 2.568250443 | N10: 0.9601336607 | O10: 0.5968164413 | P10: 0.1728368844 | Q10: 1.026568859 | R10: 0.1392056537 | S10: 0.19 | T10: 0.0703626679 | U10: 0.6523288584 | V10: 0.3640437611 | W10: 14.15862631 | X10: 0.9730879219 | Y10: 0.08076599856 | Z10: 2.749705793 | AA10: 7.552280134 | AB10: 3.785154102 | AC10: 0.6562574785 | AD10: 1.40317995 | AE10: 2.691093581 | AF10: 3.603565882 | AG10: 2.383318035 | AH10: 31.05931505 | AI10: 3.781058317 | AJ10: 0 | AK10: 0 | AL10: 0 | AM10: 0 | AN10: 0.06231678557 | AO10: 0.1249811684 | AP10: 0.2286058059 | AQ10: 0.1252399776 | AR10: 6.052288855 | AS10: 21.70473701 | AT10: 2.672997111 | AU10: 4.076533747 | AV10: 3.603565882 | AW10: 2.691093581 | AX10: 1.40317995 | AY10: 31.05931505 | AZ10: 31.05931505 | BA10: 2.383318035 | BB10: 0 | BC10: 0 | BD10: 0.2718960426 | BE10: 0.2286058059 | BF10: 0.1249811684 | BG10: 0.06231678557 | BH10: 6.052288855 | BI10: 6.052288855 | BJ10: 0.1354674649 | BK10: 31.5678374 | BL10: 34.38105921 | BM10: 6.098295316 | BN10: 21.32193133 | BO10: 5.176501917 | BP10: 1.612473967 | BQ10: 0.2017306816 | BR10: 0.4265578815 | BU10: 10.67640727 | BV10: 0.8192477509 | BW10: -0.6562574785 | BX10: -0.6562574785
A11: 10.5 | B11: 4188 | C11: 11.46452979 | D11: 5.80094653 | E11: 10.35616644 | F11: 10.52546362 | G11: 10.13184684 | H11: 8.880056527 | I11: 12.19112372 | J11: 1.013071194 | K11: 1.533641015 | L11: 0.1756146069 | M11: 1.926572995 | N11: 0.4855307991 | O11: 0.5572515763 | P11: 0.1218146003 | Q11: 0.5530917602 | R11: 0.09684883711 | S11: 0.19 | T11: 0.05044145554 | U11: 0.3671369636 | V11: 0.6459342306 | W11: 7.130977844 | X11: 1.628448498 | Y11: 0.0580094653 | Z11: 2.802653042 | AA11: 3.182178073 | AB11: 6.736077449 | AC11: 0.5068591684 | AD11: 1.044720367 | AE11: 1.982108164 | AF11: 3.121459171 | AG11: 1.685287169 | AH11: 20.28045462 | AI11: 3.323697252 | AJ11: 0 | AK11: 0 | AL11: 0 | AM11: 0 | AN11: 0.04693357409 | AO11: 0.09271745159 | AP11: 0.2605845191 | AQ11: 0.0930609396 | AR11: 3.963749677 | AS11: 19.42320864 | AT11: 2.521074779 | AU11: 3.689295871 | AV11: 3.121459171 | AW11: 1.982108164 | AX11: 1.044720367 | AY11: 20.28045462 | AZ11: 20.28045462 | BA11: 1.685287169 | BB11: 0 | BC11: 0 | BD11: 0.3417920214 | BE11: 0.2605845191 | BF11: 0.09271745159 | BG11: 0.04693357409 | BH11: 3.963749677 | BI11: 3.963749677 | BJ11: 0.09634030211 | BK11: 20.54554438 | BL11: 22.64773199 | BM11: 3.835750075 | BN11: 17.99207025 | BO11: 5.356330308 | BP11: 1.258761869 | BQ11: 0.2263885217 | BR11: 0.4922804481 | BU11: 10.00112026 | BV11: 0.8310839158 | BW11: -0.5068591684 | BX11: -0.5068591684
A12: 11 | B12: 6498 | C12: 14.65049136 | D12: 3.80596597 | E12: 10.99981661 | F12: 11.00731709 | G12: 11.44857679 | H12: 2.449657206 | I12: 11.13811569 | J12: 1.011940401 | K12: 1.002358512 | L12: 0.1177657373 | M12: 0.7635273299 | N12: 0.1327698092 | O12: 0.6296717234 | P12: 0.08086203362 | Q12: 0.1947080651 | R12: 0.05158498832 | S12: 0.19 | T12: 0.03382563277 | U12: 0.1425299011 | V12: 0.8694105004 | W12: 2.418564006 | X12: 2.027019951 | Y12: 0.0380596597 | Z12: 2.778369488 | AA12: 0.733708184 | AB12: 10.6520404 | AC12: 0.2316696948 | AD12: 0.6785288106 | AE12: 1.072494494 | AF12: 3.016793037 | AG12: 1.337801915 | AH12: 14.72477281 | AI12: 3.27567295 | AJ12: 0 | AK12: 0 | AL12: 0 | AM12: 0 | AN12: 0.03097696685 | AO12: 0.05009786844 | AP12: 0.5708614361 | AQ12: 0.05079256118 | AR12: 2.880870904 | AS12: 16.96881839 | AT12: 2.331487773 | AU12: 3.794129555 | AV12: 3.016793037 | AW12: 1.072494494 | AX12: 0.6785288106 | AY12: 14.72477281 | AZ12: 14.72477281 | BA12: 1.337801915 | BB12: 0 | BC12: 0 | BD12: 0.8868434226 | BE12: 0.5708614361 | BF12: 0.05009786844 | BG12: 0.03097696685 | BH12: 2.880870904 | BI12: 2.880870904 | BJ12: 0.07703687709 | BK12: 14.90059251 | BL12: 15.78188557 | BM12: 1.921771146 | BN12: 14.94408166 | BO12: 7.753572811 | BP12: 1.056062589 | BQ12: 0.4633586613 | BR12: 0.4993234872 | BU12: 11.31348919 | BV12: 1.027873754 | BW12: -0.2316696948 | BX12: -0.2316696948
A13: 11.5 | B13: 4710 | C13: 16.78997383 | D13: 3.424770683 | E13: 11.5071053 | F13: 11.46476325 | G13: 18.38942718 | H13: 0.4045906793 | I13: 12.36676845 | J13: 1.010563695 | K13: 1.256648281 | L13: 0.1507516404 | M13: 0.1994911979 | N13: 0.02192241349 | O13: 1.011418495 | P13: 0.1026873606 | Q13: 0.118853955 | R13: 0.03841877189 | S13: 0.19 | T13: 0.04330011211 | U13: 0.07909080032 | V13: 0.9314728942 | W13: 0.9347646451 | X13: 2.182887168 | Y13: 0.03424770683 | Z13: 2.772389346 | AA13: 0.07472026107 | AB13: 18.31510187 | AC13: 0.0828520583 | AD13: 0.4520810732 | AE13: 0.573317077 | AF13: 2.837992916 | AG13: 1.621334322 | AH13: 19.84107112 | AI13: 4.599632686 | AJ13: 0 | AK13: 0 | AL13: 0 | AM13: 0 | AN13: 0.02699616913 | AO13: 0.03445282871 | AP13: 1.028876219 | AQ13: 0.03659658343 | AR13: 3.886734602 | AS13: 11.81887958 | AT13: 2.343479002 | AU13: 3.311683838 | AV13: 2.837992916 | AW13: 0.573317077 | AX13: 0.4520810732 | AY13: 19.84107112 | AZ13: 19.84107112 | BA13: 1.621334322 | BB13: 0 | BC13: 0 | BD13: 1.390090668 | BE13: 1.028876219 | BF13: 0.03445282871 | BG13: 0.02699616913 | BH13: 3.886734602 | BI13: 3.886734602 | BJ13: 0.09258720418 | BK13: 20.05066614 | BL13: 20.40090898 | BM13: 1.512193391 | BN13: 15.79153913 | BO13: 13.25932665 | BP13: 1.291888574 | BQ13: 0.9663295255 | BR13: 0.6890562649 | BU13: 18.19719754 | BV13: 1.487003436 | BW13: -0.0828520583 | BX13: -0.0828520583
A14: 12 | B14: 2039 | C14: 19.66717301 | D14: 3.549037968 | E14: 12.0233633 | F14: 11.97129282 | G14: 34.37771827 | H14: 0.007333168466 | I14: 13.90554616 | J14: 1.003327186 | K14: 1.69024845 | L14: 0.2023673219 | M14: 0.01095989311 | N14: 0.0004164785986 | O14: 1.890774505 | P14: 0.1379516392 | Q14: 0.1380887676 | R14: 0.03715296176 | S14: 0.19 | T14: 0.0581255879 | U14: 0.08148506723 | V14: 0.9218421192 | W14: 0.9414454661 | X14: 2.204900095 | Y14: 0.03549037968 | Z14: 2.74860485 | AA14: 0.0008492920148 | AB14: 34.28237892 | AC14: 0.04705661834 | AD14: 0.4546117957 | AE14: 0.5313613405 | AF14: 2.630771605 | AG14: 2.594310175 | AH14: 35.95566867 | AI14: 7.971378804 | AJ14: 0 | AK14: 0 | AL14: 0 | AM14: 0 | AN14: 0.03309662403 | AO14: 0.0387883913 | AP14: 0.8921122537 | AQ14: 0.04202114111 | AR14: 7.090287448 | AS14: 11.55359501 | AT14: 2.391841346 | AU14: 2.838452944 | AV14: 2.630771605 | AW14: 0.5313613405 | AX14: 0.4546117957 | AY14: 35.95566867 | AZ14: 35.95566867 | BA14: 2.594310175 | BB14: 0 | BC14: 0 | BD14: 1.028973827 | BE14: 0.8921122537 | BF14: 0.0387883913 | BG14: 0.03309662403 | BH14: 7.090287448 | BI14: 7.090287448 | BJ14: 0.1470242595 | BK14: 36.07529988 | BL14: 36.2886271 | BM14: 1.601392982 | BN14: 17.45458412 | BO14: 22.52744972 | BP14: 2.079031321 | BQ14: 1.640571966 | BR14: 1.197996027 | BU14: 34.26371649 | BV14: 2.472230711 | BW14: -0.04705661834 | BX14: -0.04705661834
A15: 12.5 | B15: 930 | C15: 21.7228645 | D15: 3.694248129 | E15: 12.49506941 | F15: 12.46241425 | G15: 53.28881056 | H15: 0 | I15: 15.07802535 | J15: 0.990809445 | K15: 2.051491632 | L15: 0.2411204466 | M15: 0 | N15: 0 | O15: 2.930884581 | P15: 0.1655405296 | Q15: 0.1655405296 | R15: 0.03787727872 | S15: 0.19 | T15: 0.06925657555 | U15: 0.0967149834 | V15: 0.8940944616 | W15: 1.127491496 | X15: 2.130600856 | Y15: 0.03694248129 | Z15: 2.72203338 | AA15: 0.001719193888 | AB15: 52.96094186 | AC15: 0.0370704812 | AD15: 0.5390325574 | AE15: 0.6144802067 | AF15: 2.67182506 | AG15: 3.670261915 | AH15: 55.85362803 | AI15: 11.86355168 | AJ15: 0 | AK15: 0 | AL15: 0 | AM15: 0 | AN15: 0.03921634159 | AO15: 0.04480560759 | AP15: 0.7833031454 | AQ15: 0.04849857568 | AR15: 11.14245851 | AS15: 11.6578782 | AT15: 2.382970645 | AU15: 2.806056109 | AV15: 2.67182506 | AW15: 0.6144802067 | AX15: 0.5390325574 | AY15: 55.85362803 | AZ15: 55.85362803 | BA15: 3.670261915 | BB15: 0 | BC15: 0 | BD15: 0.8551562287 | BE15: 0.7833031454 | BF15: 0.04480560759 | BG15: 0.03921634159 | BH15: 11.14245851 | BI15: 11.14245851 | BJ15: 0.2070947754 | BK15: 55.34030219 | BL15: 55.58142263 | BM15: 1.721903747 | BN15: 18.77227348 | BO15: 32.13902187 | BP15: 2.960825321 | BQ15: 2.294313733 | BR15: 1.723764804 | BU15: 53.78310716 | BV15: 3.53420354 | BW15: -0.0370704812 | BX15: -0.0370704812
A16: 13 | B16: 464 | C16: 23.74460272 | D16: 3.718512281 | E16: 13.060503 | F16: 12.95525719 | G16: 70.90376471 | H16: 0 | I16: 16.87679486 | J16: 1.008020234 | K16: 2.089879608 | L16: 0.2448983092 | M16: 0 | N16: 0 | O16: 3.899707059 | P16: 0.1683277735 | Q16: 0.1683277735 | R16: 0.03851469913 | S16: 0.19 | T16: 0.07034168395 | U16: 0.1432781406 | V16: 0.8647420938 | W16: 1.502753736 | X16: 2.194480299 | Y16: 0.03718512281 | Z16: 2.721975613 | AA16: 0 | AB16: 70.5735437 | AC16: 0.02863098051 | AD16: 0.5556730719 | AE16: 0.6230439262 | AF16: 2.677619957 | AG16: 4.325089267 | AH16: 72.41287608 | AI16: 15.49519492 | AJ16: 0 | AK16: 0 | AL16: 0 | AM16: 0 | AN16: 0.04038422052 | AO16: 0.04537301272 | AP16: 0.7745434201 | AQ16: 0.04910252738 | AR16: 14.2181777 | AS16: 10.4883671 | AT16: 2.537728086 | AU16: 2.780432351 | AV16: 2.677619957 | AW16: 0.6230439262 | AX16: 0.5556730719 | AY16: 72.41287608 | AZ16: 72.41287608 | BA16: 4.325089267 | BB16: 0 | BC16: 0 | BD16: 0.8271230735 | BE16: 0.7745434201 | BF16: 0.04537301272 | BG16: 0.04038422052 | BH16: 14.2181777 | BI16: 14.2181777 | BJ16: 0.2428122201 | BK16: 72.99364432 | BL16: 73.23854263 | BM16: 1.759658593 | BN16: 20.59530714 | BO16: 41.48170822 | BP16: 3.556079165 | BQ16: 2.948998346 | BR16: 2.242345888 | BU16: 70.33962443 | BV16: 4.20125772 | BW16: -0.02863098051 | BX16: -0.02863098051
A17: 13.5 | B17: 165 | C17: 25.36498725 | D17: 3.50147533 | E17: 13.49326967 | F17: 13.46988373 | G17: 84.40457164 | H17: 0 | I17: 17.61434438 | J17: 1.011380588 | K17: 1.632136157 | L17: 0.1976363732 | M17: 0 | N17: 0 | O17: 4.64225144 | P17: 0.1341467566 | Q17: 0.1341467566 | R17: 0.03527741651 | S17: 0.19 | T17: 0.05676672634 | U17: 0.1118241767 | V17: 0.8995564117 | W17: 1.069732738 | X17: 1.814663418 | Y17: 0.0350147533 | Z17: 2.782865109 | AA17: 0 | AB17: 84.30478992 | AC17: 0.01897023026 | AD17: 0.4770469602 | AE17: 0.5197240789 | AF17: 3.021579251 | AG17: 4.884468358 | AH17: 85.06857734 | AI17: 19.1085968 | AJ17: 0 | AK17: 0 | AL17: 0 | AM17: 0 | AN17: 0.0352480505 | AO17: 0.0384569484 | AP17: 1.209781033 | AQ17: 0.04170031678 | AR17: 16.65197322 | AS17: 9.566202675 | AT17: 2.017286959 | AU17: 3.132856218 | AV17: 3.021579251 | AW17: 0.5197240789 | AX17: 0.4770469602 | AY17: 85.06857734 | AZ17: 85.06857734 | BA17: 4.884468358 | BB17: 0 | BC17: 0 | BD17: 1.293690959 | BE17: 1.209781033 | BF17: 0.0384569484 | BG17: 0.0352480505 | BH17: 16.65197322 | BI17: 16.65197322 | BJ17: 0.2737635408 | BK17: 86.0367078 | BL17: 86.23434417 | BM17: 1.532354436 | BN17: 21.11581971 | BO17: 56.14674111 | BP17: 4.08387386 | BQ17: 4.23036853 | BR17: 3.063985238 | BU17: 83.45480684 | BV17: 4.791808869 | BW17: -0.01897023026 | BX17: -0.01897023026
A18: 14 | B18: 110 | C18: 27.71432628 | D18: 3.438997974 | E18: 14.38210884 | F18: 13.96958823 | G18: 92.5177156 | H18: 0 | I18: 16.71324472 | J18: 0.9943983389 | K18: 1.049520095 | L18: 0.1288120662 | M18: 0 | N18: 0 | O18: 5.088474358 | P18: 0.08698111881 | Q18: 0.08698111881 | R18: 0.03747101264 | S18: 0.19 | T18: 0.03699844921 | U18: 0.06391267911 | V18: 0.9304856598 | W18: 0.5879208611 | X18: 2.19687213 | Y18: 0.03438997974 | Z18: 2.862637465 | AA18: 0 | AB18: 92.91014229 | AC18: 0.0112167479 | AD18: 0.3249257231 | AE18: 0.3415305177 | AF18: 2.288019836 | AG18: 5.59838842 | AH18: 94.09432019 | AI18: 21.13414663 | AJ18: 0 | AK18: 0 | AL18: 0 | AM18: 0 | AN18: 0.02421892448 | AO18: 0.02548221819 | AP18: 1.049363438 | AQ18: 0.02764672729 | AR18: 18.70865416 | AS18: 9.198814215 | AT18: 2.36099515 | AU18: 2.345042445 | AV18: 2.288019836 | AW18: 0.3415305177 | AX18: 0.3249257231 | AY18: 94.09432019 | AZ18: 94.09432019 | BA18: 5.59838842 | BB18: 0 | BC18: 0 | BD18: 1.098191513 | BE18: 1.049363438 | BF18: 0.02548221819 | BG18: 0.02421892448 | BH18: 18.70865416 | BI18: 18.70865416 | BJ18: 0.3144199997 | BK18: 93.5672357 | BL18: 93.69604776 | BM18: 1.441946782 | BN18: 20.15224269 | BO18: 64.8895208 | BP18: 4.649410449 | BQ18: 4.998424032 | BR18: 3.568238669 | BU18: 93.03888792 | BV18: 5.535592708 | BW18: -0.0112167479 | BX18: -0.0112167479
A19: 14.5 | B19: 31 | C19: 27.69208621 | D19: 3.297758945 | E19: 15.07527478 | F19: 14.37490146 | G19: 99.24062881 | H19: 0 | I19: 16.4546784 | J19: 0.9757480514 | K19: 0.9590354258 | L19: 0.1180659068 | M19: 0 | N19: 0 | O19: 5.458234585 | P19: 0.07963571287 | Q19: 0.07963571287 | R19: 0.03832277914 | S19: 0.19 | T19: 0.03391184991 | U19: 0.03309574158 | V19: 0.9426523098 | W19: 0.4879569282 | X19: 2.15382562 | Y19: 0.03297758945 | Z19: 2.868390002 | AA19: 0 | AB19: 99.56864448 | AC19: 0.009571243907 | AD19: 0.3117288529 | AE19: 0.3256937988 | AF19: 2.990983557 | AG19: 6.089433156 | AH19: 102.6900992 | AI19: 23.4743339 | AJ19: 0 | AK19: 0 | AL19: 0 | AM19: 0 | AN19: 0.02330562402 | AO19: 0.02437421075 | AP19: 1.936002862 | AQ19: 0.02644337418 | AR19: 20.77840008 | AS19: 14.74379799 | AT19: 2.284856885 | AU19: 3.080713366 | AV19: 2.990983557 | AW19: 0.3256937988 | AX19: 0.3117288529 | AY19: 102.6900992 | AZ19: 102.6900992 | BA19: 6.089433156 | BB19: 0 | BC19: 0 | BD19: 2.049866891 | BE19: 1.936002862 | BF19: 0.02437421075 | BG19: 0.02330562402 | BH19: 20.77840008 | BI19: 20.77840008 | BJ19: 0.3422201927 | BK19: 100.1996642 | BL19: 100.3177301 | BM19: 1.287051088 | BN19: 19.75243735 | BO19: 77.8521266 | BP19: 5.078751973 | BQ19: 6.35945697 | BR19: 4.288648639 | BU19: 101.7072273 | BV19: 6.031149706 | BW19: -0.009571243907 | BX19: -0.009571243907
W39: =CELL("filename") -> /Users/signhildgehlin/Dropbox/Gehlin-Spitler_collaboration/Studenthuset/studenthuset data detailed excel files/2021_update/20211208_Results/[BinResultsHPEFT_V2.xlsm]Plot (2)

Sheet Plot3
A2: HP EFT / BH ExFT (°C) | B2: Count | C2: ODA Temperature (°C) | D2: EL 007 (kW) | E2: GHE EFT (°C) | F2: GHE ExFT (°C) | G2: Clg Provided (kW) | H2: Bldg Htg Provided (kW) | I2: EL 003 (kW) | J2: CP Energy (kW) | K2: DHW Provided by HP (kW) | L2: DHW by LPS (kW) | M2: Useful Bldg Htg by LPS (kW) | N2: Bldg Htg Uncertainty (kW) | O2: Bldg Clg Uncertainty (kW) | P2: DHW Htg by HP Uncertainty (kW) | Q2: Bldg + DHW Htg by HP Uncertainty (kW) | R2: EL007+EL011 Uncertainty (kW) | S2: EL011 Uncertainty (kW) | T2: LPS DHW Uncertainty (kW) | U2: CP Power for Heat Extraction from GHE (kW) | V2: CP Power for Heat Rejection to GHE (kW) | W2: Heat Extraction by GHE (kW) | X2: Heat Rejection to GHE (kW) | Y2: EL007 Uncertainty (kW) | Z2: LPS Electricity going to bldg heat (kW) | AA2: Alt Calc GHE Heat Extraction (kW) | AB2: Alt Calc GHE Heat Extraction (kW) | AC2: HtgFrac | AD2: COP H4 | AE2: COP H3 | AF2: COP H2 | AG2: COP C3 | AH2: COP C2 | AI2: Overall (H+C) COP | AJ2: Not used | AK2: Not used | AL2: Not used | AM2: Not used | AN2: Error COP H4 | AO2: Error COP H3 | AP2: Error COP H2 | AQ2: Error COP H3b | AR2: Error COP C2 | AS2: BPF0, heating | AT2: BPF0, cooling | AU2: BPF1*, heating | AV2: BPF2, heating | AW2: BPF3+, heating | AX2: BPF4+, heating | AY2: BPFC2 | AZ2: BPFC2 | BA2: BPFC5* | BB2: Error BPF0, heating | BC2: Error BPF0, cooling | BD2: Error BPF1*, heating | BE2: Error BPF2, heating | BF2: Error BPF3+, heating | BG2: Error BPF4+, heating | BH2: Error BPF2, cooling | BI2: Error BPF3, cooling | BJ2: Error BPF4, cooling | BK2: Htg & Clg Provided Boundary 2 | BL2: Htg & Clg Provided Boundary 4+ | BM2: Electricity Used Boundary 2 | BN2: Electricity Used Boundary 4+ | BO2: BPFHC2 | BP2: BPFHC4+ | BQ2: Error BPFHC2 | BR2: Error BPFHC4+ | BU2: BPFC2* w/all SSCP power allocated to cooling | BV2: BPFC5* w/all LSCPF & SSCP power allocated to cooling | BW2: Difference BPF2* | BX2: Difference BPF2*
A3: 6.5 | B3: 36 | C3: -7.041186146 | D3: 30.48433796 | E3: 5.278085006 | F3: 6.640245319 | G3: 8.043670254 | H3: 104.7534158 | I3: 14.99377017 | J3: 1.058918631 | K3: 4.294033754 | L3: 0.4362792098 | M3: 2.403560373 | N3: 5.263185215 | O3: 0.442401864 | P3: 0.3182975573 | Q3: 5.293123099 | R3: 0.3562764585 | S3: 0.19 | T3: 0.1253116626 | U3: 0.9951845105 | V3: 0.06373412046 | W3: 52.57427692 | X3: 0.4341467112 | Y3: 0.3048433796 | Z3: 2.560837962 | AA3: 73.38800632 | AB3: 0.9303664208 | AC3: 0.931304182 | AD3: 2.517257028 | AE3: 3.555305503 | AF3: 3.829801301 | AG3: 7.809318037 | AH3: 110.5761259 | AI3: 3.802110891 | AJ3: 0 | AK3: 0 | AL3: 0 | AM3: 0 | AN3: 0.1207827455 | AO3: 0.1729420081 | AP3: 0.1930442928 | AQ3: 0.172987842 | AR3: 20.75167312 | AS3: 52.82867284 | AT3: 6.811841257 | AU3: 3.967205358 | AV3: 3.829801301 | AW3: 3.555305503 | AX3: 2.517257028 | AY3: 110.5761259 | AZ3: 110.5761259 | BA3: 7.809318037 | BB3: 0 | BC3: 0 | BD3: 0.2004446958 | BE3: 0.1930442928 | BF3: 0.1729420081 | BG3: 0.1207827455 | BH3: 20.75167312 | BI3: 20.75167312 | BJ3: 0.4407651187 | BK3: 117.0911198 | BL3: 119.9309594 | BM3: 28.54613942 | BN3: 45.47810813 | BO3: 4.101819798 | BP3: 2.637114083 | BQ3: 0.1872515292 | BR3: 0.201667721 | BU3: =G3/J3 -> 7.596117415 | BV3: =G3/(I3) -> 0.5364674903 | BW3: =(BU3-AY3)/AY3 -> -0.931304182 | BX3: =(BV3-BA3)/BA3 -> -0.931304182
A4: 7 | B4: 271 | C4: -6.521581914 | D4: 27.57337215 | E4: 5.332347866 | F4: 7.066200309 | G4: 7.555013474 | H4: 89.50567159 | I4: 14.02168824 | J4: 1.064724546 | K4: 3.121082756 | L4: 0.3174413062 | M4: 2.606379168 | N4: 4.495964429 | O4: 0.4155257411 | P4: 0.2314698293 | Q4: 4.510836518 | R4: 0.3278612581 | S4: 0.19 | T4: 0.0911780735 | U4: 1.015548845 | V4: 0.04917570127 | W4: 60.31582591 | X4: 0.09233735893 | Y4: 0.2757337215 | Z4: 2.669850261 | AA4: 59.97888031 | AB4: 0.5579445657 | AC4: 0.9245869419 | AD4: 2.357082704 | AE4: 3.345865797 | AF4: 3.622405292 | AG4: 7.144772163 | AH4: 94.09172368 | AI4: 3.600294719 | AJ4: 0 | AK4: 0 | AL4: 0 | AM4: 0 | AN4: 0.1128964399 | AO4: 0.1625582572 | AP4: 0.183378793 | AQ4: 0.1625896082 | AR4: 17.57006946 | AS4: 59.39234355 | AT4: 1.877702942 | AU4: 3.767446952 | AV4: 3.622405292 | AW4: 3.345865797 | AX4: 2.357082704 | AY4: 94.09172368 | AZ4: 94.09172368 | BA4: 7.144772163 | BB4: 0 | BC4: 0 | BD4: 0.191262501 | BE4: 0.183378793 | BF4: 0.1625582572 | BG4: 0.1128964399 | BH4: 17.57006946 | BI4: 17.57006946 | BJ4: 0.40471299 | BK4: 100.1817678 | BL4: 103.1055883 | BM4: 25.65080513 | BN4: 41.59506039 | BO4: 3.905599349 | BP4: 2.478794052 | BQ4: 0.1779388067 | BR4: 0.2001602261 | BU4: =G4/J4 -> 7.095744622 | BV4: =G4/(I4) -> 0.538809118 | BW4: =(BU4-AY4)/AY4 -> -0.9245869419 | BX4: =(BV4-BA4)/BA4 -> -0.9245869419
A5: 7.5 | B5: 1041 | C5: -3.627339908 | D5: 22.30365235 | E5: 6.115487426 | F5: 7.550501461 | G5: 7.026815839 | H5: 69.55518685 | I5: 12.98705908 | J5: 1.017339829 | K5: 2.103728247 | L5: 0.2139511973 | M5: 2.77802092 | N5: 3.50553025 | O5: 0.3864748712 | P5: 0.1560129076 | Q5: 3.521106379 | R5: 0.2823454922 | S5: 0.19 | T5: 0.06145280281 | U5: 0.9428462727 | V5: 0.0744935563 | W5: 46.53446567 | X5: 0.1509039958 | Y5: 0.2230365235 | Z5: 2.784320449 | AA5: 44.93187086 | AB5: 0.6224921383 | AC5: 0.9106977116 | AD5: 2.187191242 | AE5: 3.213535635 | AF5: 3.541882977 | AG5: 6.058779777 | AH5: 77.34458899 | AI5: 3.502325391 | AJ5: 0 | AK5: 0 | AL5: 0 | AM5: 0 | AN5: 0.1047392763 | AO5: 0.1565263327 | AP5: 0.1821113228 | AQ5: 0.1565486855 | AR5: 15.05835587 | AS5: 49.35530534 | AT5: 2.025732202 | AU5: 3.711862314 | AV5: 3.541882977 | AW5: 3.213535635 | AX5: 2.187191242 | AY5: 77.34458899 | AZ5: 77.34458899 | BA5: 6.058779777 | BB5: 0 | BC5: 0 | BD5: 0.1916334884 | BE5: 0.1821113228 | BF5: 0.1565263327 | BG5: 0.1047392763 | BH5: 15.05835587 | BI5: 15.05835587 | BJ5: 0.3448204491 | BK5: 78.68573094 | BL5: 81.67770306 | BM5: 20.32272053 | BN5: 35.29071144 | BO5: 3.871810903 | BP5: 2.31442495 | BQ5: 0.1754545827 | BR5: 0.215059656 | BU5: 6.907048794 | BV5: 0.5410628992 | BW5: -0.9106977116 | BX5: -0.9106977116
A6: 8 | B6: 2951 | C6: 0.7164643063 | D6: 18.83865841 | E6: 6.789736059 | F6: 8.038963031 | G6: 8.559467645 | H6: 56.89990718 | I6: 13.32963132 | J6: 0.9842814804 | K6: 2.023420899 | L6: 0.2059326995 | M6: 2.789410297 | N6: 2.872027469 | O6: 0.4707707205 | P6: 0.1501202507 | Q6: 2.889208695 | R6: 0.2510713574 | S6: 0.19 | T6: 0.05914966467 | U6: 0.9292558671 | V6: 0.05502561335 | W6: 39.75936754 | X6: 0.1582124502 | Y6: 0.1883865841 | Z6: 2.794013022 | AA6: 34.25461462 | AB6: 0.71374836 | AC6: 0.8731607434 | AD6: 2.031614485 | AE6: 3.14338382 | AF6: 3.528734195 | AG6: 5.062615318 | AH6: 68.56046473 | AI6: 3.55538276 | AJ6: 0 | AK6: 0 | AL6: 0 | AM6: 0 | AN6: 0.09626390045 | AO6: 0.1520482162 | AP6: 0.1829696912 | AQ6: 0.1520778647 | AR6: 13.76123251 | AS6: 42.78624322 | AT6: 2.875251007 | AU6: 3.720209417 | AV6: 3.528734195 | AW6: 3.14338382 | AX6: 2.031614485 | AY6: 68.56046473 | AZ6: 68.56046473 | BA6: 5.062615318 | BB6: 0 | BC6: 0 | BD6: 0.1939914905 | BE6: 0.1829696912 | BF6: 0.1520482162 | BG6: 0.09626390045 | BH6: 13.76123251 | BI6: 13.76123251 | BJ6: 0.2876427846 | BK6: 67.48279572 | BL6: 70.47813872 | BM6: 16.82299416 | BN6: 32.16828973 | BO6: 4.011342753 | BP6: 2.19091967 | BQ6: 0.1753887881 | BR6: 0.2316952277 | BU6: 8.696158381 | BV6: 0.6421383635 | BW6: -0.8731607434 | BX6: -0.8731607434
A7: 8.5 | B7: 7336 | C7: 2.776545608 | D7: 15.91312047 | E7: 7.445009847 | F7: 8.521286199 | G7: 8.287019444 | H7: 47.29654335 | I7: 13.27964792 | J7: 0.9920147603 | K7: 1.916473154 | L7: 0.1973948983 | M7: 2.799357362 | N7: 2.389920522 | O7: 0.4557860694 | P7: 0.1431388992 | Q7: 2.407998369 | R7: 0.2282080168 | S7: 0.19 | T7: 0.05669736798 | U7: 0.9397980587 | V7: 0.05221670163 | W7: 34.15185142 | X7: 0.1637306541 | Y7: 0.1591312047 | Z7: 2.802348191 | AA7: 27.53113802 | AB7: 0.5105331027 | AC7: 0.8558780128 | AD7: 1.913926466 | AE7: 3.114739151 | AF7: 3.575898201 | AG7: 4.329936778 | AH7: 57.96288347 | AI7: 3.578604216 | AJ7: 0 | AK7: 0 | AL7: 0 | AM7: 0 | AN7: 0.08971372083 | AO7: 0.149784835 | AP7: 0.1877717907 | AQ7: 0.1498230217 | AR7: 11.55026107 | AS7: 36.3395637 | AT7: 3.135599319 | AU7: 3.811010478 | AV7: 3.575898201 | AW7: 3.114739151 | AX7: 1.913926466 | AY7: 57.96288347 | AZ7: 57.96288347 | BA7: 4.329936778 | BB7: 0 | BC7: 0 | BD7: 0.2018454906 | BE7: 0.1877717907 | BF7: 0.149784835 | BG7: 0.08971372083 | BH7: 11.55026107 | BI7: 11.55026107 | BJ7: 0.2460725453 | BK7: 57.50003595 | BL7: 60.49678821 | BM7: 13.90539214 | BN7: 29.1927684 | BO7: 4.135089134 | BP7: 2.072321042 | BQ7: 0.178010892 | BR7: 0.2557487077 | BU7: 8.353725948 | BV7: 0.6240390928 | BW7: -0.8558780128 | BX7: -0.8558780128
A8: 9 | B8: 7811 | C8: 4.698165891 | D8: 12.99264568 | E8: 8.077924707 | F8: 8.977878551 | G8: 8.580242496 | H8: 38.74366431 | I8: 12.9846361 | J8: 1.008127141 | K8: 1.819531784 | L8: 0.1897635579 | M8: 2.806787508 | N8: 1.960334723 | O8: 0.4719133373 | P8: 0.1368555079 | Q8: 1.982015632 | R8: 0.2034902059 | S8: 0.19 | T8: 0.05450543231 | U8: 0.9666908824 | V8: 0.04143625843 | W8: 28.78725091 | X8: 0.1660982512 | Y8: 0.1299264568 | Z8: 2.809986863 | AA8: 21.45157568 | AB8: 0.4696444899 | AC8: 0.825404108 | AD8: 1.837171964 | AE8: 3.150850617 | AF8: 3.747174857 | AG8: 3.784737454 | AH8: 48.74726272 | AI8: 3.7240794 | AJ8: 0 | AK8: 0 | AL8: 0 | AM8: 0 | AN8: 0.0850673271 | AO8: 0.1506820009 | AP8: 0.2017951927 | AQ8: 0.1507335711 | AR8: 9.570528743 | AS8: 29.77916874 | AT8: 4.008524357 | AU8: 4.059203568 | AV8: 3.747174857 | AW8: 3.150850617 | AX8: 1.837171964 | AY8: 48.74726272 | AZ8: 48.74726272 | BA8: 3.784737454 | BB8: 0 | BC8: 0 | BD8: 0.2218459297 | BE8: 0.2017951927 | BF8: 0.1506820009 | BG8: 0.0850673271 | BH8: 9.570528743 | BI8: 9.570528743 | BJ8: 0.2154016172 | BK8: 49.14343859 | BL8: 52.13998965 | BM8: 11.0010224 | BN8: 25.97728178 | BO8: 4.467170123 | BP8: 2.00713801 | BQ8: 0.187794431 | BR8: 0.2984486476 | BU8: 8.511071817 | BV8: 0.6607996119 | BW8: -0.825404108 | BX8: -0.825404108
A9: 9.5 | B9: 4714 | C9: 6.655733013 | D9: 10.31724308 | E9: 8.855596268 | F9: 9.478922024 | G9: 9.146774733 | H9: 27.42802869 | I9: 12.77237258 | J9: 1.013696479 | K9: 1.820331749 | L9: 0.1952929397 | M9: 2.779084737 | N9: 1.396167471 | O9: 0.5030726103 | P9: 0.1391449908 | Q9: 1.43039992 | R9: 0.1740863021 | S9: 0.19 | T9: 0.05609362634 | U9: 0.8495599196 | V9: 0.1641365595 | W9: 20.65280459 | X9: 0.5440457432 | Y9: 0.1031724308 | Z9: 2.804067252 | AA9: 13.22066338 | AB9: 1.450657043 | AC9: 0.7617725607 | AD9: 1.607368747 | AE9: 2.905711312 | AF9: 3.615332321 | AG9: 3.006108296 | AH9: 37.87636237 | AI9: 3.651022284 | AJ9: 0 | AK9: 0 | AL9: 0 | AM9: 0 | AN9: 0.07270519861 | AO9: 0.1368155256 | AP9: 0.2050654356 | AQ9: 0.1369090001 | AR9: 7.398608678 | AS9: 24.31000347 | AT9: 3.314592098 | AU9: 3.996833629 | AV9: 3.615332321 | AW9: 2.905711312 | AX9: 1.607368747 | AY9: 37.87636237 | AZ9: 37.87636237 | BA9: 3.006108296 | BB9: 0 | BC9: 0 | BD9: 0.2329232939 | BE9: 0.2050654356 | BF9: 0.1368155256 | BG9: 0.07270519861 | BH9: 7.398608678 | BI9: 7.398608678 | BJ9: 0.1712767273 | BK9: 38.39513518 | BL9: 41.36951285 | BM9: 8.331579372 | BN9: 23.08961567 | BO9: 4.608386173 | BP9: 1.791693437 | BQ9: 0.1856838619 | BR9: 0.3534899768 | BU9: 9.023188816 | BV9: 0.7161374815 | BW9: -0.7617725607 | BX9: -0.7617725607
A10: 10 | B10: 3638 | C10: 9.162561749 | D10: 8.076599856 | E10: 9.564831492 | F10: 9.979127717 | G10: 10.85120802 | H10: 18.48596624 | I10: 13.24533148 | J10: 1.01637262 | K10: 2.230663135 | L10: 0.2449713659 | M10: 2.568250443 | N10: 0.9601336607 | O10: 0.5968164413 | P10: 0.1728368844 | Q10: 1.026568859 | R10: 0.1392056537 | S10: 0.19 | T10: 0.0703626679 | U10: 0.6523288584 | V10: 0.3640437611 | W10: 14.15862631 | X10: 0.9730879219 | Y10: 0.08076599856 | Z10: 2.749705793 | AA10: 7.552280134 | AB10: 3.785154102 | AC10: 0.6562574785 | AD10: 1.40317995 | AE10: 2.691093581 | AF10: 3.603565882 | AG10: 2.383318035 | AH10: 31.05931505 | AI10: 3.781058317 | AJ10: 0 | AK10: 0 | AL10: 0 | AM10: 0 | AN10: 0.06231678557 | AO10: 0.1249811684 | AP10: 0.2286058059 | AQ10: 0.1252399776 | AR10: 6.052288855 | AS10: 21.70473701 | AT10: 2.672997111 | AU10: 4.076533747 | AV10: 3.603565882 | AW10: 2.691093581 | AX10: 1.40317995 | AY10: 31.05931505 | AZ10: 31.05931505 | BA10: 2.383318035 | BB10: 0 | BC10: 0 | BD10: 0.2718960426 | BE10: 0.2286058059 | BF10: 0.1249811684 | BG10: 0.06231678557 | BH10: 6.052288855 | BI10: 6.052288855 | BJ10: 0.1354674649 | BK10: 31.5678374 | BL10: 34.38105921 | BM10: 6.098295316 | BN10: 21.32193133 | BO10: 5.176501917 | BP10: 1.612473967 | BQ10: 0.2017306816 | BR10: 0.4265578815 | BU10: 10.67640727 | BV10: 0.8192477509 | BW10: -0.6562574785 | BX10: -0.6562574785
A11: 10.5 | B11: 4188 | C11: 11.46452979 | D11: 5.80094653 | E11: 10.35616644 | F11: 10.52546362 | G11: 10.13184684 | H11: 8.880056527 | I11: 12.19112372 | J11: 1.013071194 | K11: 1.533641015 | L11: 0.1756146069 | M11: 1.926572995 | N11: 0.4855307991 | O11: 0.5572515763 | P11: 0.1218146003 | Q11: 0.5530917602 | R11: 0.09684883711 | S11: 0.19 | T11: 0.05044145554 | U11: 0.3671369636 | V11: 0.6459342306 | W11: 7.130977844 | X11: 1.628448498 | Y11: 0.0580094653 | Z11: 2.802653042 | AA11: 3.182178073 | AB11: 6.736077449 | AC11: 0.5068591684 | AD11: 1.044720367 | AE11: 1.982108164 | AF11: 3.121459171 | AG11: 1.685287169 | AH11: 20.28045462 | AI11: 3.323697252 | AJ11: 0 | AK11: 0 | AL11: 0 | AM11: 0 | AN11: 0.04693357409 | AO11: 0.09271745159 | AP11: 0.2605845191 | AQ11: 0.0930609396 | AR11: 3.963749677 | AS11: 19.42320864 | AT11: 2.521074779 | AU11: 3.689295871 | AV11: 3.121459171 | AW11: 1.982108164 | AX11: 1.044720367 | AY11: 20.28045462 | AZ11: 20.28045462 | BA11: 1.685287169 | BB11: 0 | BC11: 0 | BD11: 0.3417920214 | BE11: 0.2605845191 | BF11: 0.09271745159 | BG11: 0.04693357409 | BH11: 3.963749677 | BI11: 3.963749677 | BJ11: 0.09634030211 | BK11: 20.54554438 | BL11: 22.64773199 | BM11: 3.835750075 | BN11: 17.99207025 | BO11: 5.356330308 | BP11: 1.258761869 | BQ11: 0.2263885217 | BR11: 0.4922804481 | BU11: 10.00112026 | BV11: 0.8310839158 | BW11: -0.5068591684 | BX11: -0.5068591684
A12: 11 | B12: 6498 | C12: 14.65049136 | D12: 3.80596597 | E12: 10.99981661 | F12: 11.00731709 | G12: 11.44857679 | H12: 2.449657206 | I12: 11.13811569 | J12: 1.011940401 | K12: 1.002358512 | L12: 0.1177657373 | M12: 0.7635273299 | N12: 0.1327698092 | O12: 0.6296717234 | P12: 0.08086203362 | Q12: 0.1947080651 | R12: 0.05158498832 | S12: 0.19 | T12: 0.03382563277 | U12: 0.1425299011 | V12: 0.8694105004 | W12: 2.418564006 | X12: 2.027019951 | Y12: 0.0380596597 | Z12: 2.778369488 | AA12: 0.733708184 | AB12: 10.6520404 | AC12: 0.2316696948 | AD12: 0.6785288106 | AE12: 1.072494494 | AF12: 3.016793037 | AG12: 1.337801915 | AH12: 14.72477281 | AI12: 3.27567295 | AJ12: 0 | AK12: 0 | AL12: 0 | AM12: 0 | AN12: 0.03097696685 | AO12: 0.05009786844 | AP12: 0.5708614361 | AQ12: 0.05079256118 | AR12: 2.880870904 | AS12: 16.96881839 | AT12: 2.331487773 | AU12: 3.794129555 | AV12: 3.016793037 | AW12: 1.072494494 | AX12: 0.6785288106 | AY12: 14.72477281 | AZ12: 14.72477281 | BA12: 1.337801915 | BB12: 0 | BC12: 0 | BD12: 0.8868434226 | BE12: 0.5708614361 | BF12: 0.05009786844 | BG12: 0.03097696685 | BH12: 2.880870904 | BI12: 2.880870904 | BJ12: 0.07703687709 | BK12: 14.90059251 | BL12: 15.78188557 | BM12: 1.921771146 | BN12: 14.94408166 | BO12: 7.753572811 | BP12: 1.056062589 | BQ12: 0.4633586613 | BR12: 0.4993234872 | BU12: 11.31348919 | BV12: 1.027873754 | BW12: -0.2316696948 | BX12: -0.2316696948
A13: 11.5 | B13: 4710 | C13: 16.78997383 | D13: 3.424770683 | E13: 11.5071053 | F13: 11.46476325 | G13: 18.38942718 | H13: 0.4045906793 | I13: 12.36676845 | J13: 1.010563695 | K13: 1.256648281 | L13: 0.1507516404 | M13: 0.1994911979 | N13: 0.02192241349 | O13: 1.011418495 | P13: 0.1026873606 | Q13: 0.118853955 | R13: 0.03841877189 | S13: 0.19 | T13: 0.04330011211 | U13: 0.07909080032 | V13: 0.9314728942 | W13: 0.9347646451 | X13: 2.182887168 | Y13: 0.03424770683 | Z13: 2.772389346 | AA13: 0.07472026107 | AB13: 18.31510187 | AC13: 0.0828520583 | AD13: 0.4520810732 | AE13: 0.573317077 | AF13: 2.837992916 | AG13: 1.621334322 | AH13: 19.84107112 | AI13: 4.599632686 | AJ13: 0 | AK13: 0 | AL13: 0 | AM13: 0 | AN13: 0.02699616913 | AO13: 0.03445282871 | AP13: 1.028876219 | AQ13: 0.03659658343 | AR13: 3.886734602 | AS13: 11.81887958 | AT13: 2.343479002 | AU13: 3.311683838 | AV13: 2.837992916 | AW13: 0.573317077 | AX13: 0.4520810732 | AY13: 19.84107112 | AZ13: 19.84107112 | BA13: 1.621334322 | BB13: 0 | BC13: 0 | BD13: 1.390090668 | BE13: 1.028876219 | BF13: 0.03445282871 | BG13: 0.02699616913 | BH13: 3.886734602 | BI13: 3.886734602 | BJ13: 0.09258720418 | BK13: 20.05066614 | BL13: 20.40090898 | BM13: 1.512193391 | BN13: 15.79153913 | BO13: 13.25932665 | BP13: 1.291888574 | BQ13: 0.9663295255 | BR13: 0.6890562649 | BU13: 18.19719754 | BV13: 1.487003436 | BW13: -0.0828520583 | BX13: -0.0828520583
A14: 12 | B14: 2039 | C14: 19.66717301 | D14: 3.549037968 | E14: 12.0233633 | F14: 11.97129282 | G14: 34.37771827 | H14: 0.007333168466 | I14: 13.90554616 | J14: 1.003327186 | K14: 1.69024845 | L14: 0.2023673219 | M14: 0.01095989311 | N14: 0.0004164785986 | O14: 1.890774505 | P14: 0.1379516392 | Q14: 0.1380887676 | R14: 0.03715296176 | S14: 0.19 | T14: 0.0581255879 | U14: 0.08148506723 | V14: 0.9218421192 | W14: 0.9414454661 | X14: 2.204900095 | Y14: 0.03549037968 | Z14: 2.74860485 | AA14: 0.0008492920148 | AB14: 34.28237892 | AC14: 0.04705661834 | AD14: 0.4546117957 | AE14: 0.5313613405 | AF14: 2.630771605 | AG14: 2.594310175 | AH14: 35.95566867 | AI14: 7.971378804 | AJ14: 0 | AK14: 0 | AL14: 0 | AM14: 0 | AN14: 0.03309662403 | AO14: 0.0387883913 | AP14: 0.8921122537 | AQ14: 0.04202114111 | AR14: 7.090287448 | AS14: 11.55359501 | AT14: 2.391841346 | AU14: 2.838452944 | AV14: 2.630771605 | AW14: 0.5313613405 | AX14: 0.4546117957 | AY14: 35.95566867 | AZ14: 35.95566867 | BA14: 2.594310175 | BB14: 0 | BC14: 0 | BD14: 1.028973827 | BE14: 0.8921122537 | BF14: 0.0387883913 | BG14: 0.03309662403 | BH14: 7.090287448 | BI14: 7.090287448 | BJ14: 0.1470242595 | BK14: 36.07529988 | BL14: 36.2886271 | BM14: 1.601392982 | BN14: 17.45458412 | BO14: 22.52744972 | BP14: 2.079031321 | BQ14: 1.640571966 | BR14: 1.197996027 | BU14: 34.26371649 | BV14: 2.472230711 | BW14: -0.04705661834 | BX14: -0.04705661834
A15: 12.5 | B15: 930 | C15: 21.7228645 | D15: 3.694248129 | E15: 12.49506941 | F15: 12.46241425 | G15: 53.28881056 | H15: 0 | I15: 15.07802535 | J15: 0.990809445 | K15: 2.051491632 | L15: 0.2411204466 | M15: 0 | N15: 0 | O15: 2.930884581 | P15: 0.1655405296 | Q15: 0.1655405296 | R15: 0.03787727872 | S15: 0.19 | T15: 0.06925657555 | U15: 0.0967149834 | V15: 0.8940944616 | W15: 1.127491496 | X15: 2.130600856 | Y15: 0.03694248129 | Z15: 2.72203338 | AA15: 0.001719193888 | AB15: 52.96094186 | AC15: 0.0370704812 | AD15: 0.5390325574 | AE15: 0.6144802067 | AF15: 2.67182506 | AG15: 3.670261915 | AH15: 55.85362803 | AI15: 11.86355168 | AJ15: 0 | AK15: 0 | AL15: 0 | AM15: 0 | AN15: 0.03921634159 | AO15: 0.04480560759 | AP15: 0.7833031454 | AQ15: 0.04849857568 | AR15: 11.14245851 | AS15: 11.6578782 | AT15: 2.382970645 | AU15: 2.806056109 | AV15: 2.67182506 | AW15: 0.6144802067 | AX15: 0.5390325574 | AY15: 55.85362803 | AZ15: 55.85362803 | BA15: 3.670261915 | BB15: 0 | BC15: 0 | BD15: 0.8551562287 | BE15: 0.7833031454 | BF15: 0.04480560759 | BG15: 0.03921634159 | BH15: 11.14245851 | BI15: 11.14245851 | BJ15: 0.2070947754 | BK15: 55.34030219 | BL15: 55.58142263 | BM15: 1.721903747 | BN15: 18.77227348 | BO15: 32.13902187 | BP15: 2.960825321 | BQ15: 2.294313733 | BR15: 1.723764804 | BU15: 53.78310716 | BV15: 3.53420354 | BW15: -0.0370704812 | BX15: -0.0370704812
A16: 13 | B16: 464 | C16: 23.74460272 | D16: 3.718512281 | E16: 13.060503 | F16: 12.95525719 | G16: 70.90376471 | H16: 0 | I16: 16.87679486 | J16: 1.008020234 | K16: 2.089879608 | L16: 0.2448983092 | M16: 0 | N16: 0 | O16: 3.899707059 | P16: 0.1683277735 | Q16: 0.1683277735 | R16: 0.03851469913 | S16: 0.19 | T16: 0.07034168395 | U16: 0.1432781406 | V16: 0.8647420938 | W16: 1.502753736 | X16: 2.194480299 | Y16: 0.03718512281 | Z16: 2.721975613 | AA16: 0 | AB16: 70.5735437 | AC16: 0.02863098051 | AD16: 0.5556730719 | AE16: 0.6230439262 | AF16: 2.677619957 | AG16: 4.325089267 | AH16: 72.41287608 | AI16: 15.49519492 | AJ16: 0 | AK16: 0 | AL16: 0 | AM16: 0 | AN16: 0.04038422052 | AO16: 0.04537301272 | AP16: 0.7745434201 | AQ16: 0.04910252738 | AR16: 14.2181777 | AS16: 10.4883671 | AT16: 2.537728086 | AU16: 2.780432351 | AV16: 2.677619957 | AW16: 0.6230439262 | AX16: 0.5556730719 | AY16: 72.41287608 | AZ16: 72.41287608 | BA16: 4.325089267 | BB16: 0 | BC16: 0 | BD16: 0.8271230735 | BE16: 0.7745434201 | BF16: 0.04537301272 | BG16: 0.04038422052 | BH16: 14.2181777 | BI16: 14.2181777 | BJ16: 0.2428122201 | BK16: 72.99364432 | BL16: 73.23854263 | BM16: 1.759658593 | BN16: 20.59530714 | BO16: 41.48170822 | BP16: 3.556079165 | BQ16: 2.948998346 | BR16: 2.242345888 | BU16: 70.33962443 | BV16: 4.20125772 | BW16: -0.02863098051 | BX16: -0.02863098051
A17: 13.5 | B17: 165 | C17: 25.36498725 | D17: 3.50147533 | E17: 13.49326967 | F17: 13.46988373 | G17: 84.40457164 | H17: 0 | I17: 17.61434438 | J17: 1.011380588 | K17: 1.632136157 | L17: 0.1976363732 | M17: 0 | N17: 0 | O17: 4.64225144 | P17: 0.1341467566 | Q17: 0.1341467566 | R17: 0.03527741651 | S17: 0.19 | T17: 0.05676672634 | U17: 0.1118241767 | V17: 0.8995564117 | W17: 1.069732738 | X17: 1.814663418 | Y17: 0.0350147533 | Z17: 2.782865109 | AA17: 0 | AB17: 84.30478992 | AC17: 0.01897023026 | AD17: 0.4770469602 | AE17: 0.5197240789 | AF17: 3.021579251 | AG17: 4.884468358 | AH17: 85.06857734 | AI17: 19.1085968 | AJ17: 0 | AK17: 0 | AL17: 0 | AM17: 0 | AN17: 0.0352480505 | AO17: 0.0384569484 | AP17: 1.209781033 | AQ17: 0.04170031678 | AR17: 16.65197322 | AS17: 9.566202675 | AT17: 2.017286959 | AU17: 3.132856218 | AV17: 3.021579251 | AW17: 0.5197240789 | AX17: 0.4770469602 | AY17: 85.06857734 | AZ17: 85.06857734 | BA17: 4.884468358 | BB17: 0 | BC17: 0 | BD17: 1.293690959 | BE17: 1.209781033 | BF17: 0.0384569484 | BG17: 0.0352480505 | BH17: 16.65197322 | BI17: 16.65197322 | BJ17: 0.2737635408 | BK17: 86.0367078 | BL17: 86.23434417 | BM17: 1.532354436 | BN17: 21.11581971 | BO17: 56.14674111 | BP17: 4.08387386 | BQ17: 4.23036853 | BR17: 3.063985238 | BU17: 83.45480684 | BV17: 4.791808869 | BW17: -0.01897023026 | BX17: -0.01897023026
A18: 14 | B18: 110 | C18: 27.71432628 | D18: 3.438997974 | E18: 14.38210884 | F18: 13.96958823 | G18: 92.5177156 | H18: 0 | I18: 16.71324472 | J18: 0.9943983389 | K18: 1.049520095 | L18: 0.1288120662 | M18: 0 | N18: 0 | O18: 5.088474358 | P18: 0.08698111881 | Q18: 0.08698111881 | R18: 0.03747101264 | S18: 0.19 | T18: 0.03699844921 | U18: 0.06391267911 | V18: 0.9304856598 | W18: 0.5879208611 | X18: 2.19687213 | Y18: 0.03438997974 | Z18: 2.862637465 | AA18: 0 | AB18: 92.91014229 | AC18: 0.0112167479 | AD18: 0.3249257231 | AE18: 0.3415305177 | AF18: 2.288019836 | AG18: 5.59838842 | AH18: 94.09432019 | AI18: 21.13414663 | AJ18: 0 | AK18: 0 | AL18: 0 | AM18: 0 | AN18: 0.02421892448 | AO18: 0.02548221819 | AP18: 1.049363438 | AQ18: 0.02764672729 | AR18: 18.70865416 | AS18: 9.198814215 | AT18: 2.36099515 | AU18: 2.345042445 | AV18: 2.288019836 | AW18: 0.3415305177 | AX18: 0.3249257231 | AY18: 94.09432019 | AZ18: 94.09432019 | BA18: 5.59838842 | BB18: 0 | BC18: 0 | BD18: 1.098191513 | BE18: 1.049363438 | BF18: 0.02548221819 | BG18: 0.02421892448 | BH18: 18.70865416 | BI18: 18.70865416 | BJ18: 0.3144199997 | BK18: 93.5672357 | BL18: 93.69604776 | BM18: 1.441946782 | BN18: 20.15224269 | BO18: 64.8895208 | BP18: 4.649410449 | BQ18: 4.998424032 | BR18: 3.568238669 | BU18: 93.03888792 | BV18: 5.535592708 | BW18: -0.0112167479 | BX18: -0.0112167479
A19: 14.5 | B19: 31 | C19: 27.69208621 | D19: 3.297758945 | E19: 15.07527478 | F19: 14.37490146 | G19: 99.24062881 | H19: 0 | I19: 16.4546784 | J19: 0.9757480514 | K19: 0.9590354258 | L19: 0.1180659068 | M19: 0 | N19: 0 | O19: 5.458234585 | P19: 0.07963571287 | Q19: 0.07963571287 | R19: 0.03832277914 | S19: 0.19 | T19: 0.03391184991 | U19: 0.03309574158 | V19: 0.9426523098 | W19: 0.4879569282 | X19: 2.15382562 | Y19: 0.03297758945 | Z19: 2.868390002 | AA19: 0 | AB19: 99.56864448 | AC19: 0.009571243907 | AD19: 0.3117288529 | AE19: 0.3256937988 | AF19: 2.990983557 | AG19: 6.089433156 | AH19: 102.6900992 | AI19: 23.4743339 | AJ19: 0 | AK19: 0 | AL19: 0 | AM19: 0 | AN19: 0.02330562402 | AO19: 0.02437421075 | AP19: 1.936002862 | AQ19: 0.02644337418 | AR19: 20.77840008 | AS19: 14.74379799 | AT19: 2.284856885 | AU19: 3.080713366 | AV19: 2.990983557 | AW19: 0.3256937988 | AX19: 0.3117288529 | AY19: 102.6900992 | AZ19: 102.6900992 | BA19: 6.089433156 | BB19: 0 | BC19: 0 | BD19: 2.049866891 | BE19: 1.936002862 | BF19: 0.02437421075 | BG19: 0.02330562402 | BH19: 20.77840008 | BI19: 20.77840008 | BJ19: 0.3422201927 | BK19: 100.1996642 | BL19: 100.3177301 | BM19: 1.287051088 | BN19: 19.75243735 | BO19: 77.8521266 | BP19: 5.078751973 | BQ19: 6.35945697 | BR19: 4.288648639 | BU19: 101.7072273 | BV19: 6.031149706 | BW19: -0.009571243907 | BX19: -0.009571243907
W39: =CELL("filename") -> /Users/signhildgehlin/Dropbox/Gehlin-Spitler_collaboration/Studenthuset/studenthuset data detailed excel files/2021_update/20211208_Results/[BinResultsHPEFT_V2.xlsm]Plot (2)
A99: HP EFT / BH ExFT (°C) | B99: Number of hours
A100: 6.5 | B100: 36 | D100: 6.45 | E100: 0
A101: 7 | B101: 271 | D101: 6.45 | E101: 36
A102: 7.5 | B102: 1041 | D102: 6.55 | E102: 36
A103: 8 | B103: 2951 | D103: 6.55 | E103: 0
A104: 8.5 | B104: 7336
A105: 9 | B105: 7811 | D105: 6.95 | E105: 0
A106: 9.5 | B106: 4714 | D106: 6.95 | E106: 271
A107: 10 | B107: 3638 | D107: 7.05 | E107: 271
A108: 10.5 | B108: 4188 | D108: 7.05 | E108: 0
A109: 11 | B109: 6498
A110: 11.5 | B110: 4710 | D110: 7.45 | E110: 0
A111: 12 | B111: 2039 | D111: 7.45 | E111: 1041
A112: 12.5 | B112: 930 | D112: 7.55 | E112: 1041
A113: 13 | B113: 464 | D113: 7.55 | E113: 0
A114: 13.5 | B114: 165 | M114: =CELL("filename") -> /Users/signhildgehlin/Dropbox/Gehlin-Spitler_collaboration/Studenthuset/studenthuset data detailed excel files/2021_update/20211208_Results/[BinResultsHPEFT_V2.xlsm]Plot (2)
A115: 14 | B115: 110 | D115: 7.95 | E115: 0
A116: 14.5 | B116: 31 | D116: 7.95 | E116: 2951
D117: 8.05 | E117: 2951
D118: 8.05 | E118: 0
D120: 8.45 | E120: 0
D121: 8.45 | E121: 7336
D122: 8.55 | E122: 7336
D123: 8.55 | E123: 0
D125: 8.95 | E125: 0
D126: 8.95 | E126: 7811
D127: 9.05 | E127: 7811
D128: 9.05 | E128: 0
D130: 9.45 | E130: 0
D131: 9.45 | E131: 4714
D132: 9.55 | E132: 4714
D133: 9.55 | E133: 0
D135: 9.95 | E135: 0
D136: 9.95 | E136: 3638
D137: 10.05 | E137: 3638
D138: 10.05 | E138: 0
D140: 10.45 | E140: 0
D141: 10.45 | E141: 4188
D142: 10.55 | E142: 4188
D143: 10.55 | E143: 0
D145: 10.95 | E145: 0
D146: 10.95 | E146: 6498
D147: 11.05 | E147: 6498
D148: 11.05 | E148: 0
D150: 11.45 | E150: 0
D151: 11.45 | E151: 4710
D152: 11.55 | E152: 4710
D153: 11.55 | E153: 0
D155: 11.95 | E155: 0
D156: 11.95 | E156: 2039
D157: 12.05 | E157: 2039
D158: 12.05 | E158: 0
D160: 12.45 | E160: 0
D161: 12.45 | E161: 930
D162: 12.55 | E162: 930
D163: 12.55 | E163: 0
D165: 12.95 | E165: 0
D166: 12.95 | E166: 464
D167: 13.05 | E167: 464
D168: 13.05 | E168: 0
D170: 13.45 | E170: 0
D171: 13.45 | E171: 165
D172: 13.55 | E172: 165
D173: 13.55 | E173: 0
D175: 13.95 | E175: 0
D176: 13.95 | E176: 110
D177: 14.05 | E177: 110
D178: 14.05 | E178: 0
D180: 14.45 | E180: 0
D181: 14.45 | E181: 31
D182: 14.55 | E182: 31
D183: 14.55 | E183: 0

Sheet Plot4
A2: HP EFT / BH ExFT (°C) | B2: Count | C2: ODA Temperature (°C) | D2: EL 007 (kW) | E2: GHE EFT (°C) | F2: GHE ExFT (°C) | G2: Clg Provided (kW) | H2: Bldg Htg Provided (kW) | I2: EL 003 (kW) | J2: CP Energy (kW) | K2: DHW Provided by HP (kW) | L2: DHW by LPS (kW) | M2: Useful Bldg Htg by LPS (kW) | N2: Bldg Htg Uncertainty (kW) | O2: Bldg Clg Uncertainty (kW) | P2: DHW Htg by HP Uncertainty (kW) | Q2: Bldg + DHW Htg by HP Uncertainty (kW) | R2: EL007+EL011 Uncertainty (kW) | S2: EL011 Uncertainty (kW) | T2: LPS DHW Uncertainty (kW) | U2: CP Power for Heat Extraction from GHE (kW) | V2: CP Power for Heat Rejection to GHE (kW) | W2: Heat Extraction by GHE (kW) | X2: Heat Rejection to GHE (kW) | Y2: EL007 Uncertainty (kW) | Z2: LPS Electricity going to bldg heat (kW) | AA2: Alt Calc GHE Heat Extraction (kW) | AB2: Alt Calc GHE Heat Extraction (kW) | AC2: HtgFrac | AD2: COP H4 | AE2: COP H3 | AF2: COP H2 | AG2: COP C3 | AH2: COP C2 | AI2: Overall (H+C) COP | AJ2: Not used | AK2: Not used | AL2: Not used | AM2: Not used | AN2: Error COP H4 | AO2: Error COP H3 | AP2: Error COP H2 | AQ2: Error COP H3b | AR2: Error COP C2 | AS2: BPF0, heating | AT2: BPF0, cooling | AU2: BPFH1* | AV2: BPFH2 | AW2: BPFH3+ | AX2: BPFH5+* | AY2: BPF2, cooling | AZ2: BPF3, cooling | BA2: BPF4, cooling | BB2: Error BPF0, heating | BC2: Error BPF0, cooling | BD2: Error BPF1*, heating | BE2: Error BPF2, heating | BF2: Error BPF3+, heating | BG2: Error BPF4+, heating | BH2: Error BPF2, cooling | BI2: Error BPF3, cooling | BJ2: Error BPF4, cooling | BK2: Htg & Clg Provided Boundary 2 | BL2: Htg & Clg Provided Boundary 4+ | BM2: Electricity Used Boundary 2 | BN2: Electricity Used Boundary 4+ | BO2: BPFHC2 | BP2: BPFHC4+ | BQ2: Error BPFHC2 | BR2: Error BPFHC4+ | BU2: BPF2* w/all CP power allocated to cooling | BV2: BPF4* w/all pumping power allocated to cooling | BW2: Difference BPF2* | BX2: Difference BPF2*
A3: 6.5 | B3: 36 | C3: -7.041186146 | D3: 30.48433796 | E3: 5.278085006 | F3: 6.640245319 | G3: 8.043670254 | H3: 104.7534158 | I3: 14.99377017 | J3: 1.058918631 | K3: 4.294033754 | L3: 0.4362792098 | M3: 2.403560373 | N3: 5.263185215 | O3: 0.442401864 | P3: 0.3182975573 | Q3: 5.293123099 | R3: 0.3562764585 | S3: 0.19 | T3: 0.1253116626 | U3: 0.9951845105 | V3: 0.06373412046 | W3: 52.57427692 | X3: 0.4341467112 | Y3: 0.3048433796 | Z3: 2.560837962 | AA3: 73.38800632 | AB3: 0.9303664208 | AC3: 0.931304182 | AD3: 2.517257028 | AE3: 3.555305503 | AF3: 3.829801301 | AG3: 7.809318037 | AH3: 110.5761259 | AI3: 3.802110891 | AJ3: 0 | AK3: 0 | AL3: 0 | AM3: 0 | AN3: 0.1207827455 | AO3: 0.1729420081 | AP3: 0.1930442928 | AQ3: 0.172987842 | AR3: 20.75167312 | AS3: 52.82867284 | AT3: 6.811841257 | AU3: 3.967205358 | AV3: 3.829801301 | AW3: 3.555305503 | AX3: 2.517257028 | AY3: 110.5761259 | AZ3: 110.5761259 | BA3: 7.809318037 | BB3: 0 | BC3: 0 | BD3: 0.2004446958 | BE3: 0.1930442928 | BF3: 0.1729420081 | BG3: 0.1207827455 | BH3: 20.75167312 | BI3: 20.75167312 | BJ3: 0.4407651187 | BK3: 117.0911198 | BL3: 119.9309594 | BM3: 28.54613942 | BN3: 45.47810813 | BO3: 4.101819798 | BP3: 2.637114083 | BQ3: 0.1872515292 | BR3: 0.201667721 | BU3: =G3/J3 -> 7.596117415 | BV3: =G3/(I3) -> 0.5364674903 | BW3: =(BU3-AY3)/AY3 -> -0.931304182 | BX3: =(BV3-BA3)/BA3 -> -0.931304182
A4: 7 | B4: 271 | C4: -6.521581914 | D4: 27.57337215 | E4: 5.332347866 | F4: 7.066200309 | G4: 7.555013474 | H4: 89.50567159 | I4: 14.02168824 | J4: 1.064724546 | K4: 3.121082756 | L4: 0.3174413062 | M4: 2.606379168 | N4: 4.495964429 | O4: 0.4155257411 | P4: 0.2314698293 | Q4: 4.510836518 | R4: 0.3278612581 | S4: 0.19 | T4: 0.0911780735 | U4: 1.015548845 | V4: 0.04917570127 | W4: 60.31582591 | X4: 0.09233735893 | Y4: 0.2757337215 | Z4: 2.669850261 | AA4: 59.97888031 | AB4: 0.5579445657 | AC4: 0.9245869419 | AD4: 2.357082704 | AE4: 3.345865797 | AF4: 3.622405292 | AG4: 7.144772163 | AH4: 94.09172368 | AI4: 3.600294719 | AJ4: 0 | AK4: 0 | AL4: 0 | AM4: 0 | AN4: 0.1128964399 | AO4: 0.1625582572 | AP4: 0.183378793 | AQ4: 0.1625896082 | AR4: 17.57006946 | AS4: 59.39234355 | AT4: 1.877702942 | AU4: 3.767446952 | AV4: 3.622405292 | AW4: 3.345865797 | AX4: 2.357082704 | AY4: 94.09172368 | AZ4: 94.09172368 | BA4: 7.144772163 | BB4: 0 | BC4: 0 | BD4: 0.191262501 | BE4: 0.183378793 | BF4: 0.1625582572 | BG4: 0.1128964399 | BH4: 17.57006946 | BI4: 17.57006946 | BJ4: 0.40471299 | BK4: 100.1817678 | BL4: 103.1055883 | BM4: 25.65080513 | BN4: 41.59506039 | BO4: 3.905599349 | BP4: 2.478794052 | BQ4: 0.1779388067 | BR4: 0.2001602261 | BU4: =G4/J4 -> 7.095744622 | BV4: =G4/(I4) -> 0.538809118 | BW4: =(BU4-AY4)/AY4 -> -0.9245869419 | BX4: =(BV4-BA4)/BA4 -> -0.9245869419
A5: 7.5 | B5: 1041 | C5: -3.627339908 | D5: 22.30365235 | E5: 6.115487426 | F5: 7.550501461 | G5: 7.026815839 | H5: 69.55518685 | I5: 12.98705908 | J5: 1.017339829 | K5: 2.103728247 | L5: 0.2139511973 | M5: 2.77802092 | N5: 3.50553025 | O5: 0.3864748712 | P5: 0.1560129076 | Q5: 3.521106379 | R5: 0.2823454922 | S5: 0.19 | T5: 0.06145280281 | U5: 0.9428462727 | V5: 0.0744935563 | W5: 46.53446567 | X5: 0.1509039958 | Y5: 0.2230365235 | Z5: 2.784320449 | AA5: 44.93187086 | AB5: 0.6224921383 | AC5: 0.9106977116 | AD5: 2.187191242 | AE5: 3.213535635 | AF5: 3.541882977 | AG5: 6.058779777 | AH5: 77.34458899 | AI5: 3.502325391 | AJ5: 0 | AK5: 0 | AL5: 0 | AM5: 0 | AN5: 0.1047392763 | AO5: 0.1565263327 | AP5: 0.1821113228 | AQ5: 0.1565486855 | AR5: 15.05835587 | AS5: 49.35530534 | AT5: 2.025732202 | AU5: 3.711862314 | AV5: 3.541882977 | AW5: 3.213535635 | AX5: 2.187191242 | AY5: 77.34458899 | AZ5: 77.34458899 | BA5: 6.058779777 | BB5: 0 | BC5: 0 | BD5: 0.1916334884 | BE5: 0.1821113228 | BF5: 0.1565263327 | BG5: 0.1047392763 | BH5: 15.05835587 | BI5: 15.05835587 | BJ5: 0.3448204491 | BK5: 78.68573094 | BL5: 81.67770306 | BM5: 20.32272053 | BN5: 35.29071144 | BO5: 3.871810903 | BP5: 2.31442495 | BQ5: 0.1754545827 | BR5: 0.215059656 | BU5: 6.907048794 | BV5: 0.5410628992 | BW5: -0.9106977116 | BX5: -0.9106977116
A6: 8 | B6: 2951 | C6: 0.7164643063 | D6: 18.83865841 | E6: 6.789736059 | F6: 8.038963031 | G6: 8.559467645 | H6: 56.89990718 | I6: 13.32963132 | J6: 0.9842814804 | K6: 2.023420899 | L6: 0.2059326995 | M6: 2.789410297 | N6: 2.872027469 | O6: 0.4707707205 | P6: 0.1501202507 | Q6: 2.889208695 | R6: 0.2510713574 | S6: 0.19 | T6: 0.05914966467 | U6: 0.9292558671 | V6: 0.05502561335 | W6: 39.75936754 | X6: 0.1582124502 | Y6: 0.1883865841 | Z6: 2.794013022 | AA6: 34.25461462 | AB6: 0.71374836 | AC6: 0.8731607434 | AD6: 2.031614485 | AE6: 3.14338382 | AF6: 3.528734195 | AG6: 5.062615318 | AH6: 68.56046473 | AI6: 3.55538276 | AJ6: 0 | AK6: 0 | AL6: 0 | AM6: 0 | AN6: 0.09626390045 | AO6: 0.1520482162 | AP6: 0.1829696912 | AQ6: 0.1520778647 | AR6: 13.76123251 | AS6: 42.78624322 | AT6: 2.875251007 | AU6: 3.720209417 | AV6: 3.528734195 | AW6: 3.14338382 | AX6: 2.031614485 | AY6: 68.56046473 | AZ6: 68.56046473 | BA6: 5.062615318 | BB6: 0 | BC6: 0 | BD6: 0.1939914905 | BE6: 0.1829696912 | BF6: 0.1520482162 | BG6: 0.09626390045 | BH6: 13.76123251 | BI6: 13.76123251 | BJ6: 0.2876427846 | BK6: 67.48279572 | BL6: 70.47813872 | BM6: 16.82299416 | BN6: 32.16828973 | BO6: 4.011342753 | BP6: 2.19091967 | BQ6: 0.1753887881 | BR6: 0.2316952277 | BU6: 8.696158381 | BV6: 0.6421383635 | BW6: -0.8731607434 | BX6: -0.8731607434
A7: 8.5 | B7: 7336 | C7: 2.776545608 | D7: 15.91312047 | E7: 7.445009847 | F7: 8.521286199 | G7: 8.287019444 | H7: 47.29654335 | I7: 13.27964792 | J7: 0.9920147603 | K7: 1.916473154 | L7: 0.1973948983 | M7: 2.799357362 | N7: 2.389920522 | O7: 0.4557860694 | P7: 0.1431388992 | Q7: 2.407998369 | R7: 0.2282080168 | S7: 0.19 | T7: 0.05669736798 | U7: 0.9397980587 | V7: 0.05221670163 | W7: 34.15185142 | X7: 0.1637306541 | Y7: 0.1591312047 | Z7: 2.802348191 | AA7: 27.53113802 | AB7: 0.5105331027 | AC7: 0.8558780128 | AD7: 1.913926466 | AE7: 3.114739151 | AF7: 3.575898201 | AG7: 4.329936778 | AH7: 57.96288347 | AI7: 3.578604216 | AJ7: 0 | AK7: 0 | AL7: 0 | AM7: 0 | AN7: 0.08971372083 | AO7: 0.149784835 | AP7: 0.1877717907 | AQ7: 0.1498230217 | AR7: 11.55026107 | AS7: 36.3395637 | AT7: 3.135599319 | AU7: 3.811010478 | AV7: 3.575898201 | AW7: 3.114739151 | AX7: 1.913926466 | AY7: 57.96288347 | AZ7: 57.96288347 | BA7: 4.329936778 | BB7: 0 | BC7: 0 | BD7: 0.2018454906 | BE7: 0.1877717907 | BF7: 0.149784835 | BG7: 0.08971372083 | BH7: 11.55026107 | BI7: 11.55026107 | BJ7: 0.2460725453 | BK7: 57.50003595 | BL7: 60.49678821 | BM7: 13.90539214 | BN7: 29.1927684 | BO7: 4.135089134 | BP7: 2.072321042 | BQ7: 0.178010892 | BR7: 0.2557487077 | BU7: 8.353725948 | BV7: 0.6240390928 | BW7: -0.8558780128 | BX7: -0.8558780128
A8: 9 | B8: 7811 | C8: 4.698165891 | D8: 12.99264568 | E8: 8.077924707 | F8: 8.977878551 | G8: 8.580242496 | H8: 38.74366431 | I8: 12.9846361 | J8: 1.008127141 | K8: 1.819531784 | L8: 0.1897635579 | M8: 2.806787508 | N8: 1.960334723 | O8: 0.4719133373 | P8: 0.1368555079 | Q8: 1.982015632 | R8: 0.2034902059 | S8: 0.19 | T8: 0.05450543231 | U8: 0.9666908824 | V8: 0.04143625843 | W8: 28.78725091 | X8: 0.1660982512 | Y8: 0.1299264568 | Z8: 2.809986863 | AA8: 21.45157568 | AB8: 0.4696444899 | AC8: 0.825404108 | AD8: 1.837171964 | AE8: 3.150850617 | AF8: 3.747174857 | AG8: 3.784737454 | AH8: 48.74726272 | AI8: 3.7240794 | AJ8: 0 | AK8: 0 | AL8: 0 | AM8: 0 | AN8: 0.0850673271 | AO8: 0.1506820009 | AP8: 0.2017951927 | AQ8: 0.1507335711 | AR8: 9.570528743 | AS8: 29.77916874 | AT8: 4.008524357 | AU8: 4.059203568 | AV8: 3.747174857 | AW8: 3.150850617 | AX8: 1.837171964 | AY8: 48.74726272 | AZ8: 48.74726272 | BA8: 3.784737454 | BB8: 0 | BC8: 0 | BD8: 0.2218459297 | BE8: 0.2017951927 | BF8: 0.1506820009 | BG8: 0.0850673271 | BH8: 9.570528743 | BI8: 9.570528743 | BJ8: 0.2154016172 | BK8: 49.14343859 | BL8: 52.13998965 | BM8: 11.0010224 | BN8: 25.97728178 | BO8: 4.467170123 | BP8: 2.00713801 | BQ8: 0.187794431 | BR8: 0.2984486476 | BU8: 8.511071817 | BV8: 0.6607996119 | BW8: -0.825404108 | BX8: -0.825404108
A9: 9.5 | B9: 4714 | C9: 6.655733013 | D9: 10.31724308 | E9: 8.855596268 | F9: 9.478922024 | G9: 9.146774733 | H9: 27.42802869 | I9: 12.77237258 | J9: 1.013696479 | K9: 1.820331749 | L9: 0.1952929397 | M9: 2.779084737 | N9: 1.396167471 | O9: 0.5030726103 | P9: 0.1391449908 | Q9: 1.43039992 | R9: 0.1740863021 | S9: 0.19 | T9: 0.05609362634 | U9: 0.8495599196 | V9: 0.1641365595 | W9: 20.65280459 | X9: 0.5440457432 | Y9: 0.1031724308 | Z9: 2.804067252 | AA9: 13.22066338 | AB9: 1.450657043 | AC9: 0.7617725607 | AD9: 1.607368747 | AE9: 2.905711312 | AF9: 3.615332321 | AG9: 3.006108296 | AH9: 37.87636237 | AI9: 3.651022284 | AJ9: 0 | AK9: 0 | AL9: 0 | AM9: 0 | AN9: 0.07270519861 | AO9: 0.1368155256 | AP9: 0.2050654356 | AQ9: 0.1369090001 | AR9: 7.398608678 | AS9: 24.31000347 | AT9: 3.314592098 | AU9: 3.996833629 | AV9: 3.615332321 | AW9: 2.905711312 | AX9: 1.607368747 | AY9: 37.87636237 | AZ9: 37.87636237 | BA9: 3.006108296 | BB9: 0 | BC9: 0 | BD9: 0.2329232939 | BE9: 0.2050654356 | BF9: 0.1368155256 | BG9: 0.07270519861 | BH9: 7.398608678 | BI9: 7.398608678 | BJ9: 0.1712767273 | BK9: 38.39513518 | BL9: 41.36951285 | BM9: 8.331579372 | BN9: 23.08961567 | BO9: 4.608386173 | BP9: 1.791693437 | BQ9: 0.1856838619 | BR9: 0.3534899768 | BU9: 9.023188816 | BV9: 0.7161374815 | BW9: -0.7617725607 | BX9: -0.7617725607
A10: 10 | B10: 3638 | C10: 9.162561749 | D10: 8.076599856 | E10: 9.564831492 | F10: 9.979127717 | G10: 10.85120802 | H10: 18.48596624 | I10: 13.24533148 | J10: 1.01637262 | K10: 2.230663135 | L10: 0.2449713659 | M10: 2.568250443 | N10: 0.9601336607 | O10: 0.5968164413 | P10: 0.1728368844 | Q10: 1.026568859 | R10: 0.1392056537 | S10: 0.19 | T10: 0.0703626679 | U10: 0.6523288584 | V10: 0.3640437611 | W10: 14.15862631 | X10: 0.9730879219 | Y10: 0.08076599856 | Z10: 2.749705793 | AA10: 7.552280134 | AB10: 3.785154102 | AC10: 0.6562574785 | AD10: 1.40317995 | AE10: 2.691093581 | AF10: 3.603565882 | AG10: 2.383318035 | AH10: 31.05931505 | AI10: 3.781058317 | AJ10: 0 | AK10: 0 | AL10: 0 | AM10: 0 | AN10: 0.06231678557 | AO10: 0.1249811684 | AP10: 0.2286058059 | AQ10: 0.1252399776 | AR10: 6.052288855 | AS10: 21.70473701 | AT10: 2.672997111 | AU10: 4.076533747 | AV10: 3.603565882 | AW10: 2.691093581 | AX10: 1.40317995 | AY10: 31.05931505 | AZ10: 31.05931505 | BA10: 2.383318035 | BB10: 0 | BC10: 0 | BD10: 0.2718960426 | BE10: 0.2286058059 | BF10: 0.1249811684 | BG10: 0.06231678557 | BH10: 6.052288855 | BI10: 6.052288855 | BJ10: 0.1354674649 | BK10: 31.5678374 | BL10: 34.38105921 | BM10: 6.098295316 | BN10: 21.32193133 | BO10: 5.176501917 | BP10: 1.612473967 | BQ10: 0.2017306816 | BR10: 0.4265578815 | BU10: 10.67640727 | BV10: 0.8192477509 | BW10: -0.6562574785 | BX10: -0.6562574785
A11: 10.5 | B11: 4188 | C11: 11.46452979 | D11: 5.80094653 | E11: 10.35616644 | F11: 10.52546362 | G11: 10.13184684 | H11: 8.880056527 | I11: 12.19112372 | J11: 1.013071194 | K11: 1.533641015 | L11: 0.1756146069 | M11: 1.926572995 | N11: 0.4855307991 | O11: 0.5572515763 | P11: 0.1218146003 | Q11: 0.5530917602 | R11: 0.09684883711 | S11: 0.19 | T11: 0.05044145554 | U11: 0.3671369636 | V11: 0.6459342306 | W11: 7.130977844 | X11: 1.628448498 | Y11: 0.0580094653 | Z11: 2.802653042 | AA11: 3.182178073 | AB11: 6.736077449 | AC11: 0.5068591684 | AD11: 1.044720367 | AE11: 1.982108164 | AF11: 3.121459171 | AG11: 1.685287169 | AH11: 20.28045462 | AI11: 3.323697252 | AJ11: 0 | AK11: 0 | AL11: 0 | AM11: 0 | AN11: 0.04693357409 | AO11: 0.09271745159 | AP11: 0.2605845191 | AQ11: 0.0930609396 | AR11: 3.963749677 | AS11: 19.42320864 | AT11: 2.521074779 | AU11: 3.689295871 | AV11: 3.121459171 | AW11: 1.982108164 | AX11: 1.044720367 | AY11: 20.28045462 | AZ11: 20.28045462 | BA11: 1.685287169 | BB11: 0 | BC11: 0 | BD11: 0.3417920214 | BE11: 0.2605845191 | BF11: 0.09271745159 | BG11: 0.04693357409 | BH11: 3.963749677 | BI11: 3.963749677 | BJ11: 0.09634030211 | BK11: 20.54554438 | BL11: 22.64773199 | BM11: 3.835750075 | BN11: 17.99207025 | BO11: 5.356330308 | BP11: 1.258761869 | BQ11: 0.2263885217 | BR11: 0.4922804481 | BU11: 10.00112026 | BV11: 0.8310839158 | BW11: -0.5068591684 | BX11: -0.5068591684
A12: 11 | B12: 6498 | C12: 14.65049136 | D12: 3.80596597 | E12: 10.99981661 | F12: 11.00731709 | G12: 11.44857679 | H12: 2.449657206 | I12: 11.13811569 | J12: 1.011940401 | K12: 1.002358512 | L12: 0.1177657373 | M12: 0.7635273299 | N12: 0.1327698092 | O12: 0.6296717234 | P12: 0.08086203362 | Q12: 0.1947080651 | R12: 0.05158498832 | S12: 0.19 | T12: 0.03382563277 | U12: 0.1425299011 | V12: 0.8694105004 | W12: 2.418564006 | X12: 2.027019951 | Y12: 0.0380596597 | Z12: 2.778369488 | AA12: 0.733708184 | AB12: 10.6520404 | AC12: 0.2316696948 | AD12: 0.6785288106 | AE12: 1.072494494 | AF12: 3.016793037 | AG12: 1.337801915 | AH12: 14.72477281 | AI12: 3.27567295 | AJ12: 0 | AK12: 0 | AL12: 0 | AM12: 0 | AN12: 0.03097696685 | AO12: 0.05009786844 | AP12: 0.5708614361 | AQ12: 0.05079256118 | AR12: 2.880870904 | AS12: 16.96881839 | AT12: 2.331487773 | AU12: 3.794129555 | AV12: 3.016793037 | AW12: 1.072494494 | AX12: 0.6785288106 | AY12: 14.72477281 | AZ12: 14.72477281 | BA12: 1.337801915 | BB12: 0 | BC12: 0 | BD12: 0.8868434226 | BE12: 0.5708614361 | BF12: 0.05009786844 | BG12: 0.03097696685 | BH12: 2.880870904 | BI12: 2.880870904 | BJ12: 0.07703687709 | BK12: 14.90059251 | BL12: 15.78188557 | BM12: 1.921771146 | BN12: 14.94408166 | BO12: 7.753572811 | BP12: 1.056062589 | BQ12: 0.4633586613 | BR12: 0.4993234872 | BU12: 11.31348919 | BV12: 1.027873754 | BW12: -0.2316696948 | BX12: -0.2316696948
A13: 11.5 | B13: 4710 | C13: 16.78997383 | D13: 3.424770683 | E13: 11.5071053 | F13: 11.46476325 | G13: 18.38942718 | H13: 0.4045906793 | I13: 12.36676845 | J13: 1.010563695 | K13: 1.256648281 | L13: 0.1507516404 | M13: 0.1994911979 | N13: 0.02192241349 | O13: 1.011418495 | P13: 0.1026873606 | Q13: 0.118853955 | R13: 0.03841877189 | S13: 0.19 | T13: 0.04330011211 | U13: 0.07909080032 | V13: 0.9314728942 | W13: 0.9347646451 | X13: 2.182887168 | Y13: 0.03424770683 | Z13: 2.772389346 | AA13: 0.07472026107 | AB13: 18.31510187 | AC13: 0.0828520583 | AD13: 0.4520810732 | AE13: 0.573317077 | AF13: 2.837992916 | AG13: 1.621334322 | AH13: 19.84107112 | AI13: 4.599632686 | AJ13: 0 | AK13: 0 | AL13: 0 | AM13: 0 | AN13: 0.02699616913 | AO13: 0.03445282871 | AP13: 1.028876219 | AQ13: 0.03659658343 | AR13: 3.886734602 | AS13: 11.81887958 | AT13: 2.343479002 | AU13: 3.311683838 | AV13: 2.837992916 | AW13: 0.573317077 | AX13: 0.4520810732 | AY13: 19.84107112 | AZ13: 19.84107112 | BA13: 1.621334322 | BB13: 0 | BC13: 0 | BD13: 1.390090668 | BE13: 1.028876219 | BF13: 0.03445282871 | BG13: 0.02699616913 | BH13: 3.886734602 | BI13: 3.886734602 | BJ13: 0.09258720418 | BK13: 20.05066614 | BL13: 20.40090898 | BM13: 1.512193391 | BN13: 15.79153913 | BO13: 13.25932665 | BP13: 1.291888574 | BQ13: 0.9663295255 | BR13: 0.6890562649 | BU13: 18.19719754 | BV13: 1.487003436 | BW13: -0.0828520583 | BX13: -0.0828520583
A14: 12 | B14: 2039 | C14: 19.66717301 | D14: 3.549037968 | E14: 12.0233633 | F14: 11.97129282 | G14: 34.37771827 | H14: 0.007333168466 | I14: 13.90554616 | J14: 1.003327186 | K14: 1.69024845 | L14: 0.2023673219 | M14: 0.01095989311 | N14: 0.0004164785986 | O14: 1.890774505 | P14: 0.1379516392 | Q14: 0.1380887676 | R14: 0.03715296176 | S14: 0.19 | T14: 0.0581255879 | U14: 0.08148506723 | V14: 0.9218421192 | W14: 0.9414454661 | X14: 2.204900095 | Y14: 0.03549037968 | Z14: 2.74860485 | AA14: 0.0008492920148 | AB14: 34.28237892 | AC14: 0.04705661834 | AD14: 0.4546117957 | AE14: 0.5313613405 | AF14: 2.630771605 | AG14: 2.594310175 | AH14: 35.95566867 | AI14: 7.971378804 | AJ14: 0 | AK14: 0 | AL14: 0 | AM14: 0 | AN14: 0.03309662403 | AO14: 0.0387883913 | AP14: 0.8921122537 | AQ14: 0.04202114111 | AR14: 7.090287448 | AS14: 11.55359501 | AT14: 2.391841346 | AU14: 2.838452944 | AV14: 2.630771605 | AW14: 0.5313613405 | AX14: 0.4546117957 | AY14: 35.95566867 | AZ14: 35.95566867 | BA14: 2.594310175 | BB14: 0 | BC14: 0 | BD14: 1.028973827 | BE14: 0.8921122537 | BF14: 0.0387883913 | BG14: 0.03309662403 | BH14: 7.090287448 | BI14: 7.090287448 | BJ14: 0.1470242595 | BK14: 36.07529988 | BL14: 36.2886271 | BM14: 1.601392982 | BN14: 17.45458412 | BO14: 22.52744972 | BP14: 2.079031321 | BQ14: 1.640571966 | BR14: 1.197996027 | BU14: 34.26371649 | BV14: 2.472230711 | BW14: -0.04705661834 | BX14: -0.04705661834
A15: 12.5 | B15: 930 | C15: 21.7228645 | D15: 3.694248129 | E15: 12.49506941 | F15: 12.46241425 | G15: 53.28881056 | H15: 0 | I15: 15.07802535 | J15: 0.990809445 | K15: 2.051491632 | L15: 0.2411204466 | M15: 0 | N15: 0 | O15: 2.930884581 | P15: 0.1655405296 | Q15: 0.1655405296 | R15: 0.03787727872 | S15: 0.19 | T15: 0.06925657555 | U15: 0.0967149834 | V15: 0.8940944616 | W15: 1.127491496 | X15: 2.130600856 | Y15: 0.03694248129 | Z15: 2.72203338 | AA15: 0.001719193888 | AB15: 52.96094186 | AC15: 0.0370704812 | AD15: 0.5390325574 | AE15: 0.6144802067 | AF15: 2.67182506 | AG15: 3.670261915 | AH15: 55.85362803 | AI15: 11.86355168 | AJ15: 0 | AK15: 0 | AL15: 0 | AM15: 0 | AN15: 0.03921634159 | AO15: 0.04480560759 | AP15: 0.7833031454 | AQ15: 0.04849857568 | AR15: 11.14245851 | AS15: 11.6578782 | AT15: 2.382970645 | AU15: 2.806056109 | AV15: 2.67182506 | AW15: 0.6144802067 | AX15: 0.5390325574 | AY15: 55.85362803 | AZ15: 55.85362803 | BA15: 3.670261915 | BB15: 0 | BC15: 0 | BD15: 0.8551562287 | BE15: 0.7833031454 | BF15: 0.04480560759 | BG15: 0.03921634159 | BH15: 11.14245851 | BI15: 11.14245851 | BJ15: 0.2070947754 | BK15: 55.34030219 | BL15: 55.58142263 | BM15: 1.721903747 | BN15: 18.77227348 | BO15: 32.13902187 | BP15: 2.960825321 | BQ15: 2.294313733 | BR15: 1.723764804 | BU15: 53.78310716 | BV15: 3.53420354 | BW15: -0.0370704812 | BX15: -0.0370704812
A16: 13 | B16: 464 | C16: 23.74460272 | D16: 3.718512281 | E16: 13.060503 | F16: 12.95525719 | G16: 70.90376471 | H16: 0 | I16: 16.87679486 | J16: 1.008020234 | K16: 2.089879608 | L16: 0.2448983092 | M16: 0 | N16: 0 | O16: 3.899707059 | P16: 0.1683277735 | Q16: 0.1683277735 | R16: 0.03851469913 | S16: 0.19 | T16: 0.07034168395 | U16: 0.1432781406 | V16: 0.8647420938 | W16: 1.502753736 | X16: 2.194480299 | Y16: 0.03718512281 | Z16: 2.721975613 | AA16: 0 | AB16: 70.5735437 | AC16: 0.02863098051 | AD16: 0.5556730719 | AE16: 0.6230439262 | AF16: 2.677619957 | AG16: 4.325089267 | AH16: 72.41287608 | AI16: 15.49519492 | AJ16: 0 | AK16: 0 | AL16: 0 | AM16: 0 | AN16: 0.04038422052 | AO16: 0.04537301272 | AP16: 0.7745434201 | AQ16: 0.04910252738 | AR16: 14.2181777 | AS16: 10.4883671 | AT16: 2.537728086 | AU16: 2.780432351 | AV16: 2.677619957 | AW16: 0.6230439262 | AX16: 0.5556730719 | AY16: 72.41287608 | AZ16: 72.41287608 | BA16: 4.325089267 | BB16: 0 | BC16: 0 | BD16: 0.8271230735 | BE16: 0.7745434201 | BF16: 0.04537301272 | BG16: 0.04038422052 | BH16: 14.2181777 | BI16: 14.2181777 | BJ16: 0.2428122201 | BK16: 72.99364432 | BL16: 73.23854263 | BM16: 1.759658593 | BN16: 20.59530714 | BO16: 41.48170822 | BP16: 3.556079165 | BQ16: 2.948998346 | BR16: 2.242345888 | BU16: 70.33962443 | BV16: 4.20125772 | BW16: -0.02863098051 | BX16: -0.02863098051
A17: 13.5 | B17: 165 | C17: 25.36498725 | D17: 3.50147533 | E17: 13.49326967 | F17: 13.46988373 | G17: 84.40457164 | H17: 0 | I17: 17.61434438 | J17: 1.011380588 | K17: 1.632136157 | L17: 0.1976363732 | M17: 0 | N17: 0 | O17: 4.64225144 | P17: 0.1341467566 | Q17: 0.1341467566 | R17: 0.03527741651 | S17: 0.19 | T17: 0.05676672634 | U17: 0.1118241767 | V17: 0.8995564117 | W17: 1.069732738 | X17: 1.814663418 | Y17: 0.0350147533 | Z17: 2.782865109 | AA17: 0 | AB17: 84.30478992 | AC17: 0.01897023026 | AD17: 0.4770469602 | AE17: 0.5197240789 | AF17: 3.021579251 | AG17: 4.884468358 | AH17: 85.06857734 | AI17: 19.1085968 | AJ17: 0 | AK17: 0 | AL17: 0 | AM17: 0 | AN17: 0.0352480505 | AO17: 0.0384569484 | AP17: 1.209781033 | AQ17: 0.04170031678 | AR17: 16.65197322 | AS17: 9.566202675 | AT17: 2.017286959 | AU17: 3.132856218 | AV17: 3.021579251 | AW17: 0.5197240789 | AX17: 0.4770469602 | AY17: 85.06857734 | AZ17: 85.06857734 | BA17: 4.884468358 | BB17: 0 | BC17: 0 | BD17: 1.293690959 | BE17: 1.209781033 | BF17: 0.0384569484 | BG17: 0.0352480505 | BH17: 16.65197322 | BI17: 16.65197322 | BJ17: 0.2737635408 | BK17: 86.0367078 | BL17: 86.23434417 | BM17: 1.532354436 | BN17: 21.11581971 | BO17: 56.14674111 | BP17: 4.08387386 | BQ17: 4.23036853 | BR17: 3.063985238 | BU17: 83.45480684 | BV17: 4.791808869 | BW17: -0.01897023026 | BX17: -0.01897023026
A18: 14 | B18: 110 | C18: 27.71432628 | D18: 3.438997974 | E18: 14.38210884 | F18: 13.96958823 | G18: 92.5177156 | H18: 0 | I18: 16.71324472 | J18: 0.9943983389 | K18: 1.049520095 | L18: 0.1288120662 | M18: 0 | N18: 0 | O18: 5.088474358 | P18: 0.08698111881 | Q18: 0.08698111881 | R18: 0.03747101264 | S18: 0.19 | T18: 0.03699844921 | U18: 0.06391267911 | V18: 0.9304856598 | W18: 0.5879208611 | X18: 2.19687213 | Y18: 0.03438997974 | Z18: 2.862637465 | AA18: 0 | AB18: 92.91014229 | AC18: 0.0112167479 | AD18: 0.3249257231 | AE18: 0.3415305177 | AF18: 2.288019836 | AG18: 5.59838842 | AH18: 94.09432019 | AI18: 21.13414663 | AJ18: 0 | AK18: 0 | AL18: 0 | AM18: 0 | AN18: 0.02421892448 | AO18: 0.02548221819 | AP18: 1.049363438 | AQ18: 0.02764672729 | AR18: 18.70865416 | AS18: 9.198814215 | AT18: 2.36099515 | AU18: 2.345042445 | AV18: 2.288019836 | AW18: 0.3415305177 | AX18: 0.3249257231 | AY18: 94.09432019 | AZ18: 94.09432019 | BA18: 5.59838842 | BB18: 0 | BC18: 0 | BD18: 1.098191513 | BE18: 1.049363438 | BF18: 0.02548221819 | BG18: 0.02421892448 | BH18: 18.70865416 | BI18: 18.70865416 | BJ18: 0.3144199997 | BK18: 93.5672357 | BL18: 93.69604776 | BM18: 1.441946782 | BN18: 20.15224269 | BO18: 64.8895208 | BP18: 4.649410449 | BQ18: 4.998424032 | BR18: 3.568238669 | BU18: 93.03888792 | BV18: 5.535592708 | BW18: -0.0112167479 | BX18: -0.0112167479
A19: 14.5 | B19: 31 | C19: 27.69208621 | D19: 3.297758945 | E19: 15.07527478 | F19: 14.37490146 | G19: 99.24062881 | H19: 0 | I19: 16.4546784 | J19: 0.9757480514 | K19: 0.9590354258 | L19: 0.1180659068 | M19: 0 | N19: 0 | O19: 5.458234585 | P19: 0.07963571287 | Q19: 0.07963571287 | R19: 0.03832277914 | S19: 0.19 | T19: 0.03391184991 | U19: 0.03309574158 | V19: 0.9426523098 | W19: 0.4879569282 | X19: 2.15382562 | Y19: 0.03297758945 | Z19: 2.868390002 | AA19: 0 | AB19: 99.56864448 | AC19: 0.009571243907 | AD19: 0.3117288529 | AE19: 0.3256937988 | AF19: 2.990983557 | AG19: 6.089433156 | AH19: 102.6900992 | AI19: 23.4743339 | AJ19: 0 | AK19: 0 | AL19: 0 | AM19: 0 | AN19: 0.02330562402 | AO19: 0.02437421075 | AP19: 1.936002862 | AQ19: 0.02644337418 | AR19: 20.77840008 | AS19: 14.74379799 | AT19: 2.284856885 | AU19: 3.080713366 | AV19: 2.990983557 | AW19: 0.3256937988 | AX19: 0.3117288529 | AY19: 102.6900992 | AZ19: 102.6900992 | BA19: 6.089433156 | BB19: 0 | BC19: 0 | BD19: 2.049866891 | BE19: 1.936002862 | BF19: 0.02437421075 | BG19: 0.02330562402 | BH19: 20.77840008 | BI19: 20.77840008 | BJ19: 0.3422201927 | BK19: 100.1996642 | BL19: 100.3177301 | BM19: 1.287051088 | BN19: 19.75243735 | BO19: 77.8521266 | BP19: 5.078751973 | BQ19: 6.35945697 | BR19: 4.288648639 | BU19: 101.7072273 | BV19: 6.031149706 | BW19: -0.009571243907 | BX19: -0.009571243907
W39: =CELL("filename") -> /Users/signhildgehlin/Dropbox/Gehlin-Spitler_collaboration/Studenthuset/studenthuset data detailed excel files/2021_update/20211208_Results/[BinResultsHPEFT_V2.xlsm]Plot (2)
I89: =CELL("filename") -> /Users/signhildgehlin/Dropbox/Gehlin-Spitler_collaboration/Studenthuset/studenthuset data detailed excel files/2021_update/20211208_Results/[BinResultsHPEFT_V2.xlsm]Plot (2)
A99: HP EFT / BH ExFT (°C) | B99: Hours
A100: 6.5 | B100: 36 | D100: 6.45 | E100: 0
A101: 7 | B101: 271 | D101: 6.45 | E101: 36
A102: 7.5 | B102: 1041 | D102: 6.55 | E102: 36
A103: 8 | B103: 2951 | D103: 6.55 | E103: 0
A104: 8.5 | B104: 7336
A105: 9 | B105: 7811 | D105: 6.95 | E105: 0
A106: 9.5 | B106: 4714 | D106: 6.95 | E106: 271
A107: 10 | B107: 3638 | D107: 7.05 | E107: 271
A108: 10.5 | B108: 4188 | D108: 7.05 | E108: 0
A109: 11 | B109: 6498
A110: 11.5 | B110: 4710 | D110: 7.45 | E110: 0
A111: 12 | B111: 2039 | D111: 7.45 | E111: 1041
A112: 12.5 | B112: 930 | D112: 7.55 | E112: 1041
A113: 13 | B113: 464 | D113: 7.55 | E113: 0
A114: 13.5 | B114: 165
A115: 14 | B115: 110 | D115: 7.95 | E115: 0
A116: 14.5 | B116: 31 | D116: 7.95 | E116: 2951
D117: 8.05 | E117: 2951
D118: 8.05 | E118: 0
D120: 8.45 | E120: 0
D121: 8.45 | E121: 7336
D122: 8.55 | E122: 7336
D123: 8.55 | E123: 0
D125: 8.95 | E125: 0
D126: 8.95 | E126: 7811
D127: 9.05 | E127: 7811
D128: 9.05 | E128: 0
D130: 9.45 | E130: 0
D131: 9.45 | E131: 4714
D132: 9.55 | E132: 4714
D133: 9.55 | E133: 0
D135: 9.95 | E135: 0
D136: 9.95 | E136: 3638
D137: 10.05 | E137: 3638
D138: 10.05 | E138: 0
D140: 10.45 | E140: 0
D141: 10.45 | E141: 4188
D142: 10.55 | E142: 4188
D143: 10.55 | E143: 0
D145: 10.95 | E145: 0
D146: 10.95 | E146: 6498
D147: 11.05 | E147: 6498
D148: 11.05 | E148: 0
D150: 11.45 | E150: 0
D151: 11.45 | E151: 4710
D152: 11.55 | E152: 4710
D153: 11.55 | E153: 0
D155: 11.95 | E155: 0
D156: 11.95 | E156: 2039
D157: 12.05 | E157: 2039
D158: 12.05 | E158: 0
D160: 12.45 | E160: 0
D161: 12.45 | E161: 930
D162: 12.55 | E162: 930
D163: 12.55 | E163: 0
D165: 12.95 | E165: 0
D166: 12.95 | E166: 464
D167: 13.05 | E167: 464
D168: 13.05 | E168: 0
D170: 13.45 | E170: 0
D171: 13.45 | E171: 165
D172: 13.55 | E172: 165
D173: 13.55 | E173: 0
D175: 13.95 | E175: 0
D176: 13.95 | E176: 110
D177: 14.05 | E177: 110
D178: 14.05 | E178: 0
D180: 14.45 | E180: 0
D181: 14.45 | E181: 31
D182: 14.55 | E182: 31
D183: 14.55 | E183: 0

Sheet Plot5
A2: HP EFT / BH ExFT (°C) | B2: Count | C2: ODA Temperature (°C) | D2: EL 007 (kW) | E2: GHE EFT (°C) | F2: GHE ExFT (°C) | G2: Clg Provided (kW) | H2: Bldg Htg Provided (kW) | I2: EL 003 (kW) | J2: CP Energy (kW) | K2: DHW Provided by HP (kW) | L2: DHW by LPS (kW) | M2: Useful Bldg Htg by LPS (kW) | N2: Bldg Htg Uncertainty (kW) | O2: Bldg Clg Uncertainty (kW) | P2: DHW Htg by HP Uncertainty (kW) | Q2: Bldg + DHW Htg by HP Uncertainty (kW) | R2: EL007+EL011 Uncertainty (kW) | S2: EL011 Uncertainty (kW) | T2: LPS DHW Uncertainty (kW) | U2: CP Power for Heat Extraction from GHE (kW) | V2: CP Power for Heat Rejection to GHE (kW) | W2: Heat Extraction by GHE (kW) | X2: Heat Rejection to GHE (kW) | Y2: EL007 Uncertainty (kW) | Z2: LPS Electricity going to bldg heat (kW) | AA2: Alt Calc GHE Heat Extraction (kW) | AB2: Alt Calc GHE Heat Extraction (kW) | AC2: HtgFrac | AD2: COP H4 | AE2: COP H3 | AF2: COP H2 | AG2: COP C3 | AH2: COP C2 | AI2: Overall (H+C) COP | AJ2: Not used | AK2: Not used | AL2: Not used | AM2: Not used | AN2: Error COP H4 | AO2: Error COP H3 | AP2: Error COP H2 | AQ2: Error COP H3b | AR2: Error COP C2 | AS2: BPF0, heating | AT2: BPF0, cooling | AU2: BPF1*, heating | AV2: BPF2, heating | AW2: BPF3+, heating | AX2: BPF4+, heating | AY2: BPF2, cooling | AZ2: BPF3, cooling | BA2: BPF4, cooling | BB2: Error BPF0, heating | BC2: Error BPF0, cooling | BD2: Error BPF1*, heating | BE2: Error BPF2, heating | BF2: Error BPF3+, heating | BG2: Error BPF4+, heating | BH2: Error BPF2, cooling | BI2: Error BPF3, cooling | BJ2: Error BPF4, cooling | BK2: Htg & Clg Provided Boundary 2 | BL2: Htg & Clg Provided Boundary 4+ | BM2: Electricity Used Boundary 2 | BN2: Electricity Used Boundary 4+ | BO2: BPFHC2 | BP2: BPFHC4+ | BQ2: Error BPFHC2 | BR2: Error BPFHC4+
A3: 6.5 | B3: 36 | C3: -7.041186146 | D3: 30.48433796 | E3: 5.278085006 | F3: 6.640245319 | G3: 8.043670254 | H3: 104.7534158 | I3: 14.99377017 | J3: 1.058918631 | K3: 4.294033754 | L3: 0.4362792098 | M3: 2.403560373 | N3: 5.263185215 | O3: 0.442401864 | P3: 0.3182975573 | Q3: 5.293123099 | R3: 0.3562764585 | S3: 0.19 | T3: 0.1253116626 | U3: 0.9951845105 | V3: 0.06373412046 | W3: 52.57427692 | X3: 0.4341467112 | Y3: 0.3048433796 | Z3: 2.560837962 | AA3: 73.38800632 | AB3: 0.9303664208 | AC3: 0.931304182 | AD3: 2.517257028 | AE3: 3.555305503 | AF3: 3.829801301 | AG3: 7.809318037 | AH3: 110.5761259 | AI3: 3.802110891 | AJ3: 0 | AK3: 0 | AL3: 0 | AM3: 0 | AN3: 0.1207827455 | AO3: 0.1729420081 | AP3: 0.1930442928 | AQ3: 0.172987842 | AR3: 20.75167312 | AS3: 52.82867284 | AT3: 6.811841257 | AU3: 3.967205358 | AV3: 3.829801301 | AW3: 3.555305503 | AX3: 2.517257028 | AY3: 110.5761259 | AZ3: 110.5761259 | BA3: 7.809318037 | BB3: 0 | BC3: 0 | BD3: 0.2004446958 | BE3: 0.1930442928 | BF3: 0.1729420081 | BG3: 0.1207827455 | BH3: 20.75167312 | BI3: 20.75167312 | BJ3: 0.4407651187 | BK3: 117.0911198 | BL3: 119.9309594 | BM3: 28.54613942 | BN3: 45.47810813 | BO3: 4.101819798 | BP3: 2.637114083 | BQ3: 0.1872515292 | BR3: 0.201667721
A4: 7 | B4: 271 | C4: -6.521581914 | D4: 27.57337215 | E4: 5.332347866 | F4: 7.066200309 | G4: 7.555013474 | H4: 89.50567159 | I4: 14.02168824 | J4: 1.064724546 | K4: 3.121082756 | L4: 0.3174413062 | M4: 2.606379168 | N4: 4.495964429 | O4: 0.4155257411 | P4: 0.2314698293 | Q4: 4.510836518 | R4: 0.3278612581 | S4: 0.19 | T4: 0.0911780735 | U4: 1.015548845 | V4: 0.04917570127 | W4: 60.31582591 | X4: 0.09233735893 | Y4: 0.2757337215 | Z4: 2.669850261 | AA4: 59.97888031 | AB4: 0.5579445657 | AC4: 0.9245869419 | AD4: 2.357082704 | AE4: 3.345865797 | AF4: 3.622405292 | AG4: 7.144772163 | AH4: 94.09172368 | AI4: 3.600294719 | AJ4: 0 | AK4: 0 | AL4: 0 | AM4: 0 | AN4: 0.1128964399 | AO4: 0.1625582572 | AP4: 0.183378793 | AQ4: 0.1625896082 | AR4: 17.57006946 | AS4: 59.39234355 | AT4: 1.877702942 | AU4: 3.767446952 | AV4: 3.622405292 | AW4: 3.345865797 | AX4: 2.357082704 | AY4: 94.09172368 | AZ4: 94.09172368 | BA4: 7.144772163 | BB4: 0 | BC4: 0 | BD4: 0.191262501 | BE4: 0.183378793 | BF4: 0.1625582572 | BG4: 0.1128964399 | BH4: 17.57006946 | BI4: 17.57006946 | BJ4: 0.40471299 | BK4: 100.1817678 | BL4: 103.1055883 | BM4: 25.65080513 | BN4: 41.59506039 | BO4: 3.905599349 | BP4: 2.478794052 | BQ4: 0.1779388067 | BR4: 0.2001602261
A5: 7.5 | B5: 1041 | C5: -3.627339908 | D5: 22.30365235 | E5: 6.115487426 | F5: 7.550501461 | G5: 7.026815839 | H5: 69.55518685 | I5: 12.98705908 | J5: 1.017339829 | K5: 2.103728247 | L5: 0.2139511973 | M5: 2.77802092 | N5: 3.50553025 | O5: 0.3864748712 | P5: 0.1560129076 | Q5: 3.521106379 | R5: 0.2823454922 | S5: 0.19 | T5: 0.06145280281 | U5: 0.9428462727 | V5: 0.0744935563 | W5: 46.53446567 | X5: 0.1509039958 | Y5: 0.2230365235 | Z5: 2.784320449 | AA5: 44.93187086 | AB5: 0.6224921383 | AC5: 0.9106977116 | AD5: 2.187191242 | AE5: 3.213535635 | AF5: 3.541882977 | AG5: 6.058779777 | AH5: 77.34458899 | AI5: 3.502325391 | AJ5: 0 | AK5: 0 | AL5: 0 | AM5: 0 | AN5: 0.1047392763 | AO5: 0.1565263327 | AP5: 0.1821113228 | AQ5: 0.1565486855 | AR5: 15.05835587 | AS5: 49.35530534 | AT5: 2.025732202 | AU5: 3.711862314 | AV5: 3.541882977 | AW5: 3.213535635 | AX5: 2.187191242 | AY5: 77.34458899 | AZ5: 77.34458899 | BA5: 6.058779777 | BB5: 0 | BC5: 0 | BD5: 0.1916334884 | BE5: 0.1821113228 | BF5: 0.1565263327 | BG5: 0.1047392763 | BH5: 15.05835587 | BI5: 15.05835587 | BJ5: 0.3448204491 | BK5: 78.68573094 | BL5: 81.67770306 | BM5: 20.32272053 | BN5: 35.29071144 | BO5: 3.871810903 | BP5: 2.31442495 | BQ5: 0.1754545827 | BR5: 0.215059656
A6: 8 | B6: 2951 | C6: 0.7164643063 | D6: 18.83865841 | E6: 6.789736059 | F6: 8.038963031 | G6: 8.559467645 | H6: 56.89990718 | I6: 13.32963132 | J6: 0.9842814804 | K6: 2.023420899 | L6: 0.2059326995 | M6: 2.789410297 | N6: 2.872027469 | O6: 0.4707707205 | P6: 0.1501202507 | Q6: 2.889208695 | R6: 0.2510713574 | S6: 0.19 | T6: 0.05914966467 | U6: 0.9292558671 | V6: 0.05502561335 | W6: 39.75936754 | X6: 0.1582124502 | Y6: 0.1883865841 | Z6: 2.794013022 | AA6: 34.25461462 | AB6: 0.71374836 | AC6: 0.8731607434 | AD6: 2.031614485 | AE6: 3.14338382 | AF6: 3.528734195 | AG6: 5.062615318 | AH6: 68.56046473 | AI6: 3.55538276 | AJ6: 0 | AK6: 0 | AL6: 0 | AM6: 0 | AN6: 0.09626390045 | AO6: 0.1520482162 | AP6: 0.1829696912 | AQ6: 0.1520778647 | AR6: 13.76123251 | AS6: 42.78624322 | AT6: 2.875251007 | AU6: 3.720209417 | AV6: 3.528734195 | AW6: 3.14338382 | AX6: 2.031614485 | AY6: 68.56046473 | AZ6: 68.56046473 | BA6: 5.062615318 | BB6: 0 | BC6: 0 | BD6: 0.1939914905 | BE6: 0.1829696912 | BF6: 0.1520482162 | BG6: 0.09626390045 | BH6: 13.76123251 | BI6: 13.76123251 | BJ6: 0.2876427846 | BK6: 67.48279572 | BL6: 70.47813872 | BM6: 16.82299416 | BN6: 32.16828973 | BO6: 4.011342753 | BP6: 2.19091967 | BQ6: 0.1753887881 | BR6: 0.2316952277
A7: 8.5 | B7: 7336 | C7: 2.776545608 | D7: 15.91312047 | E7: 7.445009847 | F7: 8.521286199 | G7: 8.287019444 | H7: 47.29654335 | I7: 13.27964792 | J7: 0.9920147603 | K7: 1.916473154 | L7: 0.1973948983 | M7: 2.799357362 | N7: 2.389920522 | O7: 0.4557860694 | P7: 0.1431388992 | Q7: 2.407998369 | R7: 0.2282080168 | S7: 0.19 | T7: 0.05669736798 | U7: 0.9397980587 | V7: 0.05221670163 | W7: 34.15185142 | X7: 0.1637306541 | Y7: 0.1591312047 | Z7: 2.802348191 | AA7: 27.53113802 | AB7: 0.5105331027 | AC7: 0.8558780128 | AD7: 1.913926466 | AE7: 3.114739151 | AF7: 3.575898201 | AG7: 4.329936778 | AH7: 57.96288347 | AI7: 3.578604216 | AJ7: 0 | AK7: 0 | AL7: 0 | AM7: 0 | AN7: 0.08971372083 | AO7: 0.149784835 | AP7: 0.1877717907 | AQ7: 0.1498230217 | AR7: 11.55026107 | AS7: 36.3395637 | AT7: 3.135599319 | AU7: 3.811010478 | AV7: 3.575898201 | AW7: 3.114739151 | AX7: 1.913926466 | AY7: 57.96288347 | AZ7: 57.96288347 | BA7: 4.329936778 | BB7: 0 | BC7: 0 | BD7: 0.2018454906 | BE7: 0.1877717907 | BF7: 0.149784835 | BG7: 0.08971372083 | BH7: 11.55026107 | BI7: 11.55026107 | BJ7: 0.2460725453 | BK7: 57.50003595 | BL7: 60.49678821 | BM7: 13.90539214 | BN7: 29.1927684 | BO7: 4.135089134 | BP7: 2.072321042 | BQ7: 0.178010892 | BR7: 0.2557487077
A8: 9 | B8: 7811 | C8: 4.698165891 | D8: 12.99264568 | E8: 8.077924707 | F8: 8.977878551 | G8: 8.580242496 | H8: 38.74366431 | I8: 12.9846361 | J8: 1.008127141 | K8: 1.819531784 | L8: 0.1897635579 | M8: 2.806787508 | N8: 1.960334723 | O8: 0.4719133373 | P8: 0.1368555079 | Q8: 1.982015632 | R8: 0.2034902059 | S8: 0.19 | T8: 0.05450543231 | U8: 0.9666908824 | V8: 0.04143625843 | W8: 28.78725091 | X8: 0.1660982512 | Y8: 0.1299264568 | Z8: 2.809986863 | AA8: 21.45157568 | AB8: 0.4696444899 | AC8: 0.825404108 | AD8: 1.837171964 | AE8: 3.150850617 | AF8: 3.747174857 | AG8: 3.784737454 | AH8: 48.74726272 | AI8: 3.7240794 | AJ8: 0 | AK8: 0 | AL8: 0 | AM8: 0 | AN8: 0.0850673271 | AO8: 0.1506820009 | AP8: 0.2017951927 | AQ8: 0.1507335711 | AR8: 9.570528743 | AS8: 29.77916874 | AT8: 4.008524357 | AU8: 4.059203568 | AV8: 3.747174857 | AW8: 3.150850617 | AX8: 1.837171964 | AY8: 48.74726272 | AZ8: 48.74726272 | BA8: 3.784737454 | BB8: 0 | BC8: 0 | BD8: 0.2218459297 | BE8: 0.2017951927 | BF8: 0.1506820009 | BG8: 0.0850673271 | BH8: 9.570528743 | BI8: 9.570528743 | BJ8: 0.2154016172 | BK8: 49.14343859 | BL8: 52.13998965 | BM8: 11.0010224 | BN8: 25.97728178 | BO8: 4.467170123 | BP8: 2.00713801 | BQ8: 0.187794431 | BR8: 0.2984486476
A9: 9.5 | B9: 4714 | C9: 6.655733013 | D9: 10.31724308 | E9: 8.855596268 | F9: 9.478922024 | G9: 9.146774733 | H9: 27.42802869 | I9: 12.77237258 | J9: 1.013696479 | K9: 1.820331749 | L9: 0.1952929397 | M9: 2.779084737 | N9: 1.396167471 | O9: 0.5030726103 | P9: 0.1391449908 | Q9: 1.43039992 | R9: 0.1740863021 | S9: 0.19 | T9: 0.05609362634 | U9: 0.8495599196 | V9: 0.1641365595 | W9: 20.65280459 | X9: 0.5440457432 | Y9: 0.1031724308 | Z9: 2.804067252 | AA9: 13.22066338 | AB9: 1.450657043 | AC9: 0.7617725607 | AD9: 1.607368747 | AE9: 2.905711312 | AF9: 3.615332321 | AG9: 3.006108296 | AH9: 37.87636237 | AI9: 3.651022284 | AJ9: 0 | AK9: 0 | AL9: 0 | AM9: 0 | AN9: 0.07270519861 | AO9: 0.1368155256 | AP9: 0.2050654356 | AQ9: 0.1369090001 | AR9: 7.398608678 | AS9: 24.31000347 | AT9: 3.314592098 | AU9: 3.996833629 | AV9: 3.615332321 | AW9: 2.905711312 | AX9: 1.607368747 | AY9: 37.87636237 | AZ9: 37.87636237 | BA9: 3.006108296 | BB9: 0 | BC9: 0 | BD9: 0.2329232939 | BE9: 0.2050654356 | BF9: 0.1368155256 | BG9: 0.07270519861 | BH9: 7.398608678 | BI9: 7.398608678 | BJ9: 0.1712767273 | BK9: 38.39513518 | BL9: 41.36951285 | BM9: 8.331579372 | BN9: 23.08961567 | BO9: 4.608386173 | BP9: 1.791693437 | BQ9: 0.1856838619 | BR9: 0.3534899768
A10: 10 | B10: 3638 | C10: 9.162561749 | D10: 8.076599856 | E10: 9.564831492 | F10: 9.979127717 | G10: 10.85120802 | H10: 18.48596624 | I10: 13.24533148 | J10: 1.01637262 | K10: 2.230663135 | L10: 0.2449713659 | M10: 2.568250443 | N10: 0.9601336607 | O10: 0.5968164413 | P10: 0.1728368844 | Q10: 1.026568859 | R10: 0.1392056537 | S10: 0.19 | T10: 0.0703626679 | U10: 0.6523288584 | V10: 0.3640437611 | W10: 14.15862631 | X10: 0.9730879219 | Y10: 0.08076599856 | Z10: 2.749705793 | AA10: 7.552280134 | AB10: 3.785154102 | AC10: 0.6562574785 | AD10: 1.40317995 | AE10: 2.691093581 | AF10: 3.603565882 | AG10: 2.383318035 | AH10: 31.05931505 | AI10: 3.781058317 | AJ10: 0 | AK10: 0 | AL10: 0 | AM10: 0 | AN10: 0.06231678557 | AO10: 0.1249811684 | AP10: 0.2286058059 | AQ10: 0.1252399776 | AR10: 6.052288855 | AS10: 21.70473701 | AT10: 2.672997111 | AU10: 4.076533747 | AV10: 3.603565882 | AW10: 2.691093581 | AX10: 1.40317995 | AY10: 31.05931505 | AZ10: 31.05931505 | BA10: 2.383318035 | BB10: 0 | BC10: 0 | BD10: 0.2718960426 | BE10: 0.2286058059 | BF10: 0.1249811684 | BG10: 0.06231678557 | BH10: 6.052288855 | BI10: 6.052288855 | BJ10: 0.1354674649 | BK10: 31.5678374 | BL10: 34.38105921 | BM10: 6.098295316 | BN10: 21.32193133 | BO10: 5.176501917 | BP10: 1.612473967 | BQ10: 0.2017306816 | BR10: 0.4265578815
A11: 10.5 | B11: 4188 | C11: 11.46452979 | D11: 5.80094653 | E11: 10.35616644 | F11: 10.52546362 | G11: 10.13184684 | H11: 8.880056527 | I11: 12.19112372 | J11: 1.013071194 | K11: 1.533641015 | L11: 0.1756146069 | M11: 1.926572995 | N11: 0.4855307991 | O11: 0.5572515763 | P11: 0.1218146003 | Q11: 0.5530917602 | R11: 0.09684883711 | S11: 0.19 | T11: 0.05044145554 | U11: 0.3671369636 | V11: 0.6459342306 | W11: 7.130977844 | X11: 1.628448498 | Y11: 0.0580094653 | Z11: 2.802653042 | AA11: 3.182178073 | AB11: 6.736077449 | AC11: 0.5068591684 | AD11: 1.044720367 | AE11: 1.982108164 | AF11: 3.121459171 | AG11: 1.685287169 | AH11: 20.28045462 | AI11: 3.323697252 | AJ11: 0 | AK11: 0 | AL11: 0 | AM11: 0 | AN11: 0.04693357409 | AO11: 0.09271745159 | AP11: 0.2605845191 | AQ11: 0.0930609396 | AR11: 3.963749677 | AS11: 19.42320864 | AT11: 2.521074779 | AU11: 3.689295871 | AV11: 3.121459171 | AW11: 1.982108164 | AX11: 1.044720367 | AY11: 20.28045462 | AZ11: 20.28045462 | BA11: 1.685287169 | BB11: 0 | BC11: 0 | BD11: 0.3417920214 | BE11: 0.2605845191 | BF11: 0.09271745159 | BG11: 0.04693357409 | BH11: 3.963749677 | BI11: 3.963749677 | BJ11: 0.09634030211 | BK11: 20.54554438 | BL11: 22.64773199 | BM11: 3.835750075 | BN11: 17.99207025 | BO11: 5.356330308 | BP11: 1.258761869 | BQ11: 0.2263885217 | BR11: 0.4922804481
A12: 11 | B12: 6498 | C12: 14.65049136 | D12: 3.80596597 | E12: 10.99981661 | F12: 11.00731709 | G12: 11.44857679 | H12: 2.449657206 | I12: 11.13811569 | J12: 1.011940401 | K12: 1.002358512 | L12: 0.1177657373 | M12: 0.7635273299 | N12: 0.1327698092 | O12: 0.6296717234 | P12: 0.08086203362 | Q12: 0.1947080651 | R12: 0.05158498832 | S12: 0.19 | T12: 0.03382563277 | U12: 0.1425299011 | V12: 0.8694105004 | W12: 2.418564006 | X12: 2.027019951 | Y12: 0.0380596597 | Z12: 2.778369488 | AA12: 0.733708184 | AB12: 10.6520404 | AC12: 0.2316696948 | AD12: 0.6785288106 | AE12: 1.072494494 | AF12: 3.016793037 | AG12: 1.337801915 | AH12: 14.72477281 | AI12: 3.27567295 | AJ12: 0 | AK12: 0 | AL12: 0 | AM12: 0 | AN12: 0.03097696685 | AO12: 0.05009786844 | AP12: 0.5708614361 | AQ12: 0.05079256118 | AR12: 2.880870904 | AS12: 16.96881839 | AT12: 2.331487773 | AU12: 3.794129555 | AV12: 3.016793037 | AW12: 1.072494494 | AX12: 0.6785288106 | AY12: 14.72477281 | AZ12: 14.72477281 | BA12: 1.337801915 | BB12: 0 | BC12: 0 | BD12: 0.8868434226 | BE12: 0.5708614361 | BF12: 0.05009786844 | BG12: 0.03097696685 | BH12: 2.880870904 | BI12: 2.880870904 | BJ12: 0.07703687709 | BK12: 14.90059251 | BL12: 15.78188557 | BM12: 1.921771146 | BN12: 14.94408166 | BO12: 7.753572811 | BP12: 1.056062589 | BQ12: 0.4633586613 | BR12: 0.4993234872
A13: 11.5 | B13: 4710 | C13: 16.78997383 | D13: 3.424770683 | E13: 11.5071053 | F13: 11.46476325 | G13: 18.38942718 | H13: 0.4045906793 | I13: 12.36676845 | J13: 1.010563695 | K13: 1.256648281 | L13: 0.1507516404 | M13: 0.1994911979 | N13: 0.02192241349 | O13: 1.011418495 | P13: 0.1026873606 | Q13: 0.118853955 | R13: 0.03841877189 | S13: 0.19 | T13: 0.04330011211 | U13: 0.07909080032 | V13: 0.9314728942 | W13: 0.9347646451 | X13: 2.182887168 | Y13: 0.03424770683 | Z13: 2.772389346 | AA13: 0.07472026107 | AB13: 18.31510187 | AC13: 0.0828520583 | AD13: 0.4520810732 | AE13: 0.573317077 | AF13: 2.837992916 | AG13: 1.621334322 | AH13: 19.84107112 | AI13: 4.599632686 | AJ13: 0 | AK13: 0 | AL13: 0 | AM13: 0 | AN13: 0.02699616913 | AO13: 0.03445282871 | AP13: 1.028876219 | AQ13: 0.03659658343 | AR13: 3.886734602 | AS13: 11.81887958 | AT13: 2.343479002 | AU13: 3.311683838 | AV13: 2.837992916 | AW13: 0.573317077 | AX13: 0.4520810732 | AY13: 19.84107112 | AZ13: 19.84107112 | BA13: 1.621334322 | BB13: 0 | BC13: 0 | BD13: 1.390090668 | BE13: 1.028876219 | BF13: 0.03445282871 | BG13: 0.02699616913 | BH13: 3.886734602 | BI13: 3.886734602 | BJ13: 0.09258720418 | BK13: 20.05066614 | BL13: 20.40090898 | BM13: 1.512193391 | BN13: 15.79153913 | BO13: 13.25932665 | BP13: 1.291888574 | BQ13: 0.9663295255 | BR13: 0.6890562649
A14: 12 | B14: 2039 | C14: 19.66717301 | D14: 3.549037968 | E14: 12.0233633 | F14: 11.97129282 | G14: 34.37771827 | H14: 0.007333168466 | I14: 13.90554616 | J14: 1.003327186 | K14: 1.69024845 | L14: 0.2023673219 | M14: 0.01095989311 | N14: 0.0004164785986 | O14: 1.890774505 | P14: 0.1379516392 | Q14: 0.1380887676 | R14: 0.03715296176 | S14: 0.19 | T14: 0.0581255879 | U14: 0.08148506723 | V14: 0.9218421192 | W14: 0.9414454661 | X14: 2.204900095 | Y14: 0.03549037968 | Z14: 2.74860485 | AA14: 0.0008492920148 | AB14: 34.28237892 | AC14: 0.04705661834 | AD14: 0.4546117957 | AE14: 0.5313613405 | AF14: 2.630771605 | AG14: 2.594310175 | AH14: 35.95566867 | AI14: 7.971378804 | AJ14: 0 | AK14: 0 | AL14: 0 | AM14: 0 | AN14: 0.03309662403 | AO14: 0.0387883913 | AP14: 0.8921122537 | AQ14: 0.04202114111 | AR14: 7.090287448 | AS14: 11.55359501 | AT14: 2.391841346 | AU14: 2.838452944 | AV14: 2.630771605 | AW14: 0.5313613405 | AX14: 0.4546117957 | AY14: 35.95566867 | AZ14: 35.95566867 | BA14: 2.594310175 | BB14: 0 | BC14: 0 | BD14: 1.028973827 | BE14: 0.8921122537 | BF14: 0.0387883913 | BG14: 0.03309662403 | BH14: 7.090287448 | BI14: 7.090287448 | BJ14: 0.1470242595 | BK14: 36.07529988 | BL14: 36.2886271 | BM14: 1.601392982 | BN14: 17.45458412 | BO14: 22.52744972 | BP14: 2.079031321 | BQ14: 1.640571966 | BR14: 1.197996027
A15: 12.5 | B15: 930 | C15: 21.7228645 | D15: 3.694248129 | E15: 12.49506941 | F15: 12.46241425 | G15: 53.28881056 | H15: 0 | I15: 15.07802535 | J15: 0.990809445 | K15: 2.051491632 | L15: 0.2411204466 | M15: 0 | N15: 0 | O15: 2.930884581 | P15: 0.1655405296 | Q15: 0.1655405296 | R15: 0.03787727872 | S15: 0.19 | T15: 0.06925657555 | U15: 0.0967149834 | V15: 0.8940944616 | W15: 1.127491496 | X15: 2.130600856 | Y15: 0.03694248129 | Z15: 2.72203338 | AA15: 0.001719193888 | AB15: 52.96094186 | AC15: 0.0370704812 | AD15: 0.5390325574 | AE15: 0.6144802067 | AF15: 2.67182506 | AG15: 3.670261915 | AH15: 55.85362803 | AI15: 11.86355168 | AJ15: 0 | AK15: 0 | AL15: 0 | AM15: 0 | AN15: 0.03921634159 | AO15: 0.04480560759 | AP15: 0.7833031454 | AQ15: 0.04849857568 | AR15: 11.14245851 | AS15: 11.6578782 | AT15: 2.382970645 | AU15: 2.806056109 | AV15: 2.67182506 | AW15: 0.6144802067 | AX15: 0.5390325574 | AY15: 55.85362803 | AZ15: 55.85362803 | BA15: 3.670261915 | BB15: 0 | BC15: 0 | BD15: 0.8551562287 | BE15: 0.7833031454 | BF15: 0.04480560759 | BG15: 0.03921634159 | BH15: 11.14245851 | BI15: 11.14245851 | BJ15: 0.2070947754 | BK15: 55.34030219 | BL15: 55.58142263 | BM15: 1.721903747 | BN15: 18.77227348 | BO15: 32.13902187 | BP15: 2.960825321 | BQ15: 2.294313733 | BR15: 1.723764804
A16: 13 | B16: 464 | C16: 23.74460272 | D16: 3.718512281 | E16: 13.060503 | F16: 12.95525719 | G16: 70.90376471 | H16: 0 | I16: 16.87679486 | J16: 1.008020234 | K16: 2.089879608 | L16: 0.2448983092 | M16: 0 | N16: 0 | O16: 3.899707059 | P16: 0.1683277735 | Q16: 0.1683277735 | R16: 0.03851469913 | S16: 0.19 | T16: 0.07034168395 | U16: 0.1432781406 | V16: 0.8647420938 | W16: 1.502753736 | X16: 2.194480299 | Y16: 0.03718512281 | Z16: 2.721975613 | AA16: 0 | AB16: 70.5735437 | AC16: 0.02863098051 | AD16: 0.5556730719 | AE16: 0.6230439262 | AF16: 2.677619957 | AG16: 4.325089267 | AH16: 72.41287608 | AI16: 15.49519492 | AJ16: 0 | AK16: 0 | AL16: 0 | AM16: 0 | AN16: 0.04038422052 | AO16: 0.04537301272 | AP16: 0.7745434201 | AQ16: 0.04910252738 | AR16: 14.2181777 | AS16: 10.4883671 | AT16: 2.537728086 | AU16: 2.780432351 | AV16: 2.677619957 | AW16: 0.6230439262 | AX16: 0.5556730719 | AY16: 72.41287608 | AZ16: 72.41287608 | BA16: 4.325089267 | BB16: 0 | BC16: 0 | BD16: 0.8271230735 | BE16: 0.7745434201 | BF16: 0.04537301272 | BG16: 0.04038422052 | BH16: 14.2181777 | BI16: 14.2181777 | BJ16: 0.2428122201 | BK16: 72.99364432 | BL16: 73.23854263 | BM16: 1.759658593 | BN16: 20.59530714 | BO16: 41.48170822 | BP16: 3.556079165 | BQ16: 2.948998346 | BR16: 2.242345888
A17: 13.5 | B17: 165 | C17: 25.36498725 | D17: 3.50147533 | E17: 13.49326967 | F17: 13.46988373 | G17: 84.40457164 | H17: 0 | I17: 17.61434438 | J17: 1.011380588 | K17: 1.632136157 | L17: 0.1976363732 | M17: 0 | N17: 0 | O17: 4.64225144 | P17: 0.1341467566 | Q17: 0.1341467566 | R17: 0.03527741651 | S17: 0.19 | T17: 0.05676672634 | U17: 0.1118241767 | V17: 0.8995564117 | W17: 1.069732738 | X17: 1.814663418 | Y17: 0.0350147533 | Z17: 2.782865109 | AA17: 0 | AB17: 84.30478992 | AC17: 0.01897023026 | AD17: 0.4770469602 | AE17: 0.5197240789 | AF17: 3.021579251 | AG17: 4.884468358 | AH17: 85.06857734 | AI17: 19.1085968 | AJ17: 0 | AK17: 0 | AL17: 0 | AM17: 0 | AN17: 0.0352480505 | AO17: 0.0384569484 | AP17: 1.209781033 | AQ17: 0.04170031678 | AR17: 16.65197322 | AS17: 9.566202675 | AT17: 2.017286959 | AU17: 3.132856218 | AV17: 3.021579251 | AW17: 0.5197240789 | AX17: 0.4770469602 | AY17: 85.06857734 | AZ17: 85.06857734 | BA17: 4.884468358 | BB17: 0 | BC17: 0 | BD17: 1.293690959 | BE17: 1.209781033 | BF17: 0.0384569484 | BG17: 0.0352480505 | BH17: 16.65197322 | BI17: 16.65197322 | BJ17: 0.2737635408 | BK17: 86.0367078 | BL17: 86.23434417 | BM17: 1.532354436 | BN17: 21.11581971 | BO17: 56.14674111 | BP17: 4.08387386 | BQ17: 4.23036853 | BR17: 3.063985238
A18: 14 | B18: 110 | C18: 27.71432628 | D18: 3.438997974 | E18: 14.38210884 | F18: 13.96958823 | G18: 92.5177156 | H18: 0 | I18: 16.71324472 | J18: 0.9943983389 | K18: 1.049520095 | L18: 0.1288120662 | M18: 0 | N18: 0 | O18: 5.088474358 | P18: 0.08698111881 | Q18: 0.08698111881 | R18: 0.03747101264 | S18: 0.19 | T18: 0.03699844921 | U18: 0.06391267911 | V18: 0.9304856598 | W18: 0.5879208611 | X18: 2.19687213 | Y18: 0.03438997974 | Z18: 2.862637465 | AA18: 0 | AB18: 92.91014229 | AC18: 0.0112167479 | AD18: 0.3249257231 | AE18: 0.3415305177 | AF18: 2.288019836 | AG18: 5.59838842 | AH18: 94.09432019 | AI18: 21.13414663 | AJ18: 0 | AK18: 0 | AL18: 0 | AM18: 0 | AN18: 0.02421892448 | AO18: 0.02548221819 | AP18: 1.049363438 | AQ18: 0.02764672729 | AR18: 18.70865416 | AS18: 9.198814215 | AT18: 2.36099515 | AU18: 2.345042445 | AV18: 2.288019836 | AW18: 0.3415305177 | AX18: 0.3249257231 | AY18: 94.09432019 | AZ18: 94.09432019 | BA18: 5.59838842 | BB18: 0 | BC18: 0 | BD18: 1.098191513 | BE18: 1.049363438 | BF18: 0.02548221819 | BG18: 0.02421892448 | BH18: 18.70865416 | BI18: 18.70865416 | BJ18: 0.3144199997 | BK18: 93.5672357 | BL18: 93.69604776 | BM18: 1.441946782 | BN18: 20.15224269 | BO18: 64.8895208 | BP18: 4.649410449 | BQ18: 4.998424032 | BR18: 3.568238669
A19: 14.5 | B19: 31 | C19: 27.69208621 | D19: 3.297758945 | E19: 15.07527478 | F19: 14.37490146 | G19: 99.24062881 | H19: 0 | I19: 16.4546784 | J19: 0.9757480514 | K19: 0.9590354258 | L19: 0.1180659068 | M19: 0 | N19: 0 | O19: 5.458234585 | P19: 0.07963571287 | Q19: 0.07963571287 | R19: 0.03832277914 | S19: 0.19 | T19: 0.03391184991 | U19: 0.03309574158 | V19: 0.9426523098 | W19: 0.4879569282 | X19: 2.15382562 | Y19: 0.03297758945 | Z19: 2.868390002 | AA19: 0 | AB19: 99.56864448 | AC19: 0.009571243907 | AD19: 0.3117288529 | AE19: 0.3256937988 | AF19: 2.990983557 | AG19: 6.089433156 | AH19: 102.6900992 | AI19: 23.4743339 | AJ19: 0 | AK19: 0 | AL19: 0 | AM19: 0 | AN19: 0.02330562402 | AO19: 0.02437421075 | AP19: 1.936002862 | AQ19: 0.02644337418 | AR19: 20.77840008 | AS19: 14.74379799 | AT19: 2.284856885 | AU19: 3.080713366 | AV19: 2.990983557 | AW19: 0.3256937988 | AX19: 0.3117288529 | AY19: 102.6900992 | AZ19: 102.6900992 | BA19: 6.089433156 | BB19: 0 | BC19: 0 | BD19: 2.049866891 | BE19: 1.936002862 | BF19: 0.02437421075 | BG19: 0.02330562402 | BH19: 20.77840008 | BI19: 20.77840008 | BJ19: 0.3422201927 | BK19: 100.1996642 | BL19: 100.3177301 | BM19: 1.287051088 | BN19: 19.75243735 | BO19: 77.8521266 | BP19: 5.078751973 | BQ19: 6.35945697 | BR19: 4.288648639
K22: =CELL("filename") -> /Users/signhildgehlin/Dropbox/Gehlin-Spitler_collaboration/Studenthuset/studenthuset data detailed excel files/2021_update/20211208_Results/[BinResultsHPEFT_V2.xlsm]Plot (2)
A25: HP EFT / BH ExFT (°C) | B25: Bldg+DHW HP Heating Provided (kWj) | C25: HP Htg. Elec. (kWh) | D25: BPFH1* | E25: Boundary 2 Elec. | P25: HP EFT / BH ExFT (°C) | Q25: Clg. Provided | R25: Clg LSCP
A26: 6.5 | B26: =B3*(H3+K3) -> 3925.708185 | C26: =B3*(D3-L3-M3) -> 995.2019416 | D26: =B26/C26 -> 3.944634773 | P26: 6.5 | Q26: =B3*G3 -> 289.5721291 | R26: =B3*V3 -> 2.294428337
A27: 7 | B27: =B4*(H4+K4) -> 25101.85043 | C27: =B4*(D4-L4-M4) -> 6680.028504 | D27: =B27/C27 -> 3.757746006 | P27: 7 | Q27: =B4*G4 -> 2047.408651 | R27: =B4*V4 -> 13.32661504
A28: 7.5 | B28: 74596.93062 | C28: 20103.45912 | D28: 3.710651493 | P28: 7.5 | Q28: 7314.915289 | R28: 77.54779211 | AI28: Figure 9 for B&W
A29: 8 | B29: 173882.7411 | C29: 46753.62377 | D29: 3.719128639 | P29: 8 | Q29: 25258.98902 | R29: 162.380585
A30: 8.5 | B30: 361026.6891 | C30: 94754.4772 | D30: 3.810128025 | P30: 8.5 | Q30: 60793.57464 | R30: 383.0617232
A31: 9 | B31: 316839.1247 | C31: 78079.49504 | D31: 4.057904377 | P31: 9 | Q31: 67020.27414 | R31: 323.6586146
A32: 9.5 | B32: 137876.7711 | C32: 34614.26753 | D32: 3.983235265 | P32: 9.5 | Q32: 43117.89609 | R32: 773.7397416
A33: 10 | B33: 75367.09766 | C33: 19148.16933 | D33: 3.935994943 | P33: 10 | Q33: 39476.69479 | R33: 1324.391203
A34: 10.5 | B34: 43612.5653 | C34: 15490.40239 | D34: 2.815457224 | P34: 10.5 | Q34: 42432.17457 | R34: 2705.172558
A35: 11 | B35: 22431.19813 | C35: 19004.52452 | D35: 1.180308306 | P35: 11 | Q35: 74392.85197 | R35: 5649.429432
A36: 11.5 | B36: 7824.435501 | C36: 14481.02615 | D36: 0.5403232768 | P36: 11.5 | Q36: 86614.20201 | R36: 4387.237332
A37: 12 | B37: 3461.36892 | C37: 6801.514225 | D37: 0.5089115166 | P37: 12 | Q37: 70096.16754 | R37: 1879.636081
A38: 12.5 | B38: 1907.887217 | C38: 3211.408744 | D38: 0.5940966627 | P38: 12.5 | Q38: 49558.59382 | R38: 831.5078493
A39: 13 | B39: 969.7041381 | C39: 1611.756883 | D39: 0.6016441738 | P39: 13 | Q39: 32899.34683 | R39: 401.2403315
A40: 13.5 | B40: 269.302466 | C40: 545.1334278 | D40: 0.4940120202 | P40: 13.5 | Q40: 13926.75432 | R40: 148.4268079
A41: 14 | B41: 115.4472104 | C41: 364.1204499 | D41: 0.3170577497 | P41: 14 | Q41: 10176.94872 | R41: 102.3534226
A42: 14.5 | B42: 29.7300982 | C42: 98.57048419 | D42: 0.3016125815 | P42: 14.5 | Q42: 3076.459493 | R42: 29.2222216
